Workbook

Sheet 2020-2021
BS1: Data | BT1: Sarbatoare legala
BS2: 2020-11-30 | BT2: Sf Andrei
BS3: 2020-12-01 | BT3: Ziua Nationala
BS4: 2020-12-25 | BT4: Craciun prima zi
BS5: 2021-01-01 | BT5: Anul nou prima zi
BS6: 2021-04-30 | BT6: Vinerea Mare
BS7: 2021-05-03 | BT7: Paste
BC8: parteneri adiacenti | BD8: UR | BP8: parteneri adiacenti | BQ8: UR | BS8: 2021-06-01 | BT8: Ziua copilului
A9: EVIDENȚA LIMITĂRILOR ȘI/SAU ÎNTRERUPERILOR PLANIFICATE ȘI NEPLANIFICATE pentru anul gazier 2020 - 2021 / RECORD OF THE PLANNED AND UNPLANNED LIMITATIONS AND/OR INTERRUPTIONS related to the gas year 2020 - 2021 | AR9: Lucrari neprogramate | BB9: NU6 | BC9: =SUBTOTAL(9,AS:AS) -> 25 | BD9: =SUBTOTAL(9,AV:AV) -> 787 | BF9: Lucrari programate | BO9: NU5 | BP9: =SUBTOTAL(9,BG:BG) -> 1 | BQ9: =SUBTOTAL(9,BJ:BJ) -> 1 | BS9: 2021-06-21 | BT9: Rusalii
AR10: Partener adiacent | AU10: UR | BB10: NUafectati | BC10: =SUBTOTAL(9,AT:AT) -> 25 | BD10: =SUBTOTAL(9,AW:AW) -> 787 | BF10: Partener adiacent | BI10: UR | BO10: NUafectati | BP10: =SUBTOTAL(9,BH:BH) -> 1 | BQ10: =SUBTOTAL(9,BK:BK) -> 1
A11: Nr. crt. / Item No. | B11: Tipul limitării/întreruperii / Type of limitation/interruption | D11: Denumire lucrare/motiv limitare și/sau întrerupere / Name of the works/reason for the limitation and/or interruption | E11: Locația limitării/întreruperii / Location of the limitation/interruption | L11: Punct de ieșire/intrare afectat / Affected exit/entry point | T11: Cod punct relevant / Code of the relevant point | U11: Utilizator ST afectat / Affected TS user | W11: Perioada planificată de execuție a lucrării / Planned period for the execution of the works | X11: Data și ora limitării/întreruperii / Date and hour of the limitation/interruption | Z11: Data și ora reluării prestării serviciului / Date and hour the service supply is resumed | AB11: Exploatarea Teritorială / Regional Office | AC11: Observații / Comments | AD11: Justificarea modificării perioadei planificate de execuție a lucrări | AE11: Data și ora efectivă de limitare/întrerupere | AG11: Data și ora efectivă de reluare a prestării serviciului | AI11: Data și ora informării UR | AK11: Data și ora informării partenerului adiacent | AM11: Foaia de manevră | AN11: A fost afectat producătorul (în cazul PM) sau consumatorul final (în cazul SM)? (DA/NU) | AO11: Observatii | AP11: Program bugetat | AR11: Numar de ore de la producerea intreruperii / limitarii pana la anuntarea partenerului adiacent (trebuie sa fie mai mic decat 6) | AS11: NU6 | AT11: NUafectati | AU11: Numar de ore de la producerea intreruperii / limitarii pana la anuntarea UR (trebuie sa fie mai mic decat 6) | AV11: NU6 | AW11: NUafectati | AX11: Durata intreruperii / limitarii [ore] (daca este mai mare de 24, trebuie sa fie completata celula aferenta de pe coloana AZ) | AY11: NU24 | AZ11: Nuafectati | BA11: Partener adiacent informat din 12 in 12 ore, daca durata mai mare de 24h (DA/NU) | BB11: NU6 | BC11: =BC9+BD9 -> 812 | BD11: IP51 | BF11: Numar de zile lucratoare de anuntare partener adiacent pana la limitare / intrerupere (trebuie sa fie mai mare de 5) | BG11: NU5 | BH11: NUafectati | BI11: Numar de zile de anuntare UR pana la limitare / intrerupere (trebuie sa fie mai mare de 5) | BJ11: NU5 | BK11: NUafectati | BL11: Numar ore intre data anuntata si cea efectiva de reluare (trebuie sa fie mai mic sau egal cu 0) | BM11: NUreluate | BN11: NUafectati | BO11: NU5 | BP11: =BP9+BQ9 -> 2 | BQ11: IP61
E12: Siruta / Siruta code | F12: Localitate / Locality | G12: Județ / County | H12: Coordonate GPS început / GPS coordinates-beginning | J12: Coordonate GPS sfârșit / GPS coordinates-end | L12: Puncte de ieșire din SNT / NTS exit points | P12: Puncte de intrare în SNT / NTS entry points | BB12: NUafectati | BC12: =BC10+BD10 -> 812 | BD12: =IF(BC12=0,1,BC11/BC12) -> 1 | BO12: NUafectati | BP12: =BP10+BQ10 -> 2 | BQ12: =IF(BP12=0,1,BP11/BP12) -> 1
B13: Neplanificată / Unplanned | C13: Planificată / Planned | L13: Limitare / Limitation | N13: Întrerupere / Interruption | P13: Limitare / Limitation | R13: Întrerupere / Interruption | X13: Data / Date | Y13: Ora / Hour | Z13: Data / Date | AA13: Ora / Hour | AE13: Data | AF13: Ora | AG13: Data | AH13: Ora | AI13: Data | AJ13: Ora | AK13: Data | AL13: Ora | BB13: NU24 | BC13: =SUBTOTAL(9,AY:AY) -> 0 | BD13: IP52 | BO13: NUreluare | BP13: =SUBTOTAL(9,BM:BM) -> 2 | BQ13: IP62
H14: X1 | I14: Y1 | J14: X2 | K14: Y2 | L14: Cod / Code | M14: Denumire / Name | N14: Cod / Code | O14: Denumire / Name | P14: Cod / Code | Q14: Denumire / Name | R14: Cod / Code | S14: Denumire / Name | U14: Utilizator de rețea / Network User | V14: Partener adiacent / Adjacent Partner | BB14: NUafectati | BC14: =SUBTOTAL(9,AZ:AZ) -> 0 | BD14: =IF(BC14=0,1,BC13/BC14) -> 1 | BO14: NUafectati | BP14: =SUBTOTAL(9,BN:BN) -> 2 | BQ14: =IF(BP14=0,1,BP13/BP14) -> 1
A15: 0 | B15: 1 | C15: 2 | D15: 3 | E15: 4 | F15: 5 | G15: 6 | H15: 7 | I15: 8 | J15: 9 | K15: 10 | L15: 11 | M15: 12 | N15: 13 | O15: 14 | P15: 15 | Q15: 16 | R15: 17 | S15: 18 | T15: 19 | U15: 20 | V15: 21 | W15: 22 | X15: 23 | Y15: 24 | Z15: 25 | AA15: 26 | AB15: 27 | AC15: 28 | AD15: 29 | AE15: 30 | AF15: 31 | AG15: 32 | AH15: 33 | AI15: 34 | AJ15: 35 | AK15: 36 | AL15: 37 | AM15: 38 | AN15: 39 | AO15: 40 | AP15: 41
A16: =SUM(1,A15) -> 1 | B16: - | C16: x | D16: Punere în siguranță a conductei de transport gaze naturale 8” Cornățel -Avrig, zona Cornățel - Săcădate | E16: 145435 | F16: Cornățel | G16: Sibiu | H16: 449818.78 | I16: 477723.02 | J16: 449818.78 | K16: 477723.02 | L16: - | M16: - | N16: SM0795D0 | O16: Cornățel | P16: - | Q16: - | R16: - | S16: - | T16: SM-SD001 | V16: Delgaz Grid | W16: octombrie - decembrie 2020 | AB16: Mediaș | AP16: PMDI_2020_cap.A_2.1.B.6 | AR16: =IF(B16="X",IF(AN16="","Afectat sau NU?",IF(AN16="DA",IF(((AK16+AL16)-(AE16+AF16))*24<-720,"Neinformat",((AK16+AL16)-(AE16+AF16))*24),"Nu a fost afectat producator/consumator")),"") ->  | AS16: =IF(B16="X",IF(AN16="DA",IF(AR16<6,LEN(TRIM(V16))-LEN(SUBSTITUTE(V16,CHAR(44),""))+1,0),"-"),"") ->  | AT16: =IF(B16="X",IF(AN16="DA",LEN(TRIM(V16))-LEN(SUBSTITUTE(V16,CHAR(44),""))+1,"-"),"") ->  | AU16: =IF(B16="X",IF(AN16="","Afectat sau NU?",IF(AN16="DA",IF(((AI16+AJ16)-(AE16+AF16))*24<-720,"Neinformat",((AI16+AJ16)-(AE16+AF16))*24),"Nu a fost afectat producator/consumator")),"") ->  | AV16: =IF(B16="X",IF(AN16="DA",IF(AU16<6,LEN(TRIM(U16))-LEN(SUBSTITUTE(U16,CHAR(44),""))+1,0),"-"),"") ->  | AW16: =IF(B16="X",IF(AN16="DA",LEN(TRIM(U16))-LEN(SUBSTITUTE(U16,CHAR(44),""))+1,"-"),"") ->  | AX16: =IF(B16="X",IF(AN16="","Afectat sau NU?",IF(AN16="DA",((AG16+AH16)-(AE16+AF16))*24,"Nu a fost afectat producator/consumator")),"") ->  | AY16: =IF(B16="X",IF(AN16="DA",IF(AX16>24,IF(BA16="NU",0,LEN(TRIM(V16))-LEN(SUBSTITUTE(V16,CHAR(44),""))+1),0),"-"),"") ->  | AZ16: =IF(B16="X",IF(AN16="DA",IF(AX16>24,LEN(TRIM(V16))-LEN(SUBSTITUTE(V16,CHAR(44),""))+1,0),"-"),"") ->  | BF16: =IF(C16="X",IF(AN16="","Afectat sau NU?",IF(AN16="DA",IF(AK16="","Neinformat",NETWORKDAYS(AK16+AL16,AE16+AF16,$BS$2:$BS$14)-2),"Nu a fost afectat producator/consumator")),"") -> Afectat sau NU? | BG16: =IF(C16="X",IF(AN16="DA",IF(AND(BF16>=5,AK16<>""),LEN(TRIM(V16))-LEN(SUBSTITUTE(V16,CHAR(44),""))+1,0),"-"),"") -> - | BH16: =IF(C16="X",IF(AN16="DA",LEN(TRIM(V16))-LEN(SUBSTITUTE(V16,CHAR(44),""))+1,"-"),"") -> - | BI16: =IF(C16="X",IF(AN16="","Afectat sau NU?",IF(AN16="DA",IF(AI16="","Neinformat",NETWORKDAYS(AI16+AJ16,AE16+AF16,$BS$2:$BS$14)-2),"Nu a fost afectat producator/consumator")),"") -> Afectat sau NU? | BJ16: =IF(C16="X",IF(AN16="DA",IF(AND(BI16>=5,AI16<>""),LEN(TRIM(U16))-LEN(SUBSTITUTE(U16,CHAR(44),""))+1,0),"-"),"") -> - | BK16: =IF(C16="X",IF(AN16="DA",LEN(TRIM(U16))-LEN(SUBSTITUTE(U16,CHAR(44),""))+1,"-"),"") -> - | BL16: =IF(C16="X",IF(AN16="","Afectat sau NU?",IF(AN16="DA",((AG16+AH16)-(Z16+AA16))*24,"Nu a fost afectat producator/consumator")),"") -> Afectat sau NU? | BM16: =IF(C16="X",IF(AN16<>"DA","-",IF(AND(AN16="DA",BL16<=0),LEN(TRIM(V16))-LEN(SUBSTITUTE(V16,CHAR(44),""))+1+LEN(TRIM(U16))-LEN(SUBSTITUTE(U16,CHAR(44),""))+1,0)),"") -> - | BN16: =IF(C16="X",IF(AN16="DA",LEN(TRIM(V16))-LEN(SUBSTITUTE(V16,CHAR(44),""))+1+LEN(TRIM(U16))-LEN(SUBSTITUTE(U16,CHAR(44),""))+1,"-"),"") -> -
A17: =SUM(1,A16) -> 2 | B17: - | C17: x | D17: Punere în siguranță a conductei de transport gaze naturale 8” Cornățel -Avrig, zona Cornățel - Săcădate | E17: 144072 | F17: Bradu | G17: Sibiu | H17: 448674.81 | I17: 469982.34 | J17: 448674.81 | K17: 469982.34 | L17: - | M17: - | N17: SM0801D0 | O17: Bradu | P17: - | Q17: - | R17: - | S17: - | T17: SM-SD001 | V17: Delgaz Grid | W17: octombrie - decembrie 2020 | AB17: Mediaș | AP17: PMDI_2020_cap.A_2.1.B.6 | AR17: =IF(B17="X",IF(AN17="","Afectat sau NU?",IF(AN17="DA",IF(((AK17+AL17)-(AE17+AF17))*24<-720,"Neinformat",((AK17+AL17)-(AE17+AF17))*24),"Nu a fost afectat producator/consumator")),"") ->  | AS17: =IF(B17="X",IF(AN17="DA",IF(AR17<6,LEN(TRIM(V17))-LEN(SUBSTITUTE(V17,CHAR(44),""))+1,0),"-"),"") ->  | AT17: =IF(B17="X",IF(AN17="DA",LEN(TRIM(V17))-LEN(SUBSTITUTE(V17,CHAR(44),""))+1,"-"),"") ->  | AU17: =IF(B17="X",IF(AN17="","Afectat sau NU?",IF(AN17="DA",IF(((AI17+AJ17)-(AE17+AF17))*24<-720,"Neinformat",((AI17+AJ17)-(AE17+AF17))*24),"Nu a fost afectat producator/consumator")),"") ->  | AV17: =IF(B17="X",IF(AN17="DA",IF(AU17<6,LEN(TRIM(U17))-LEN(SUBSTITUTE(U17,CHAR(44),""))+1,0),"-"),"") ->  | AW17: =IF(B17="X",IF(AN17="DA",LEN(TRIM(U17))-LEN(SUBSTITUTE(U17,CHAR(44),""))+1,"-"),"") ->  | AX17: =IF(B17="X",IF(AN17="","Afectat sau NU?",IF(AN17="DA",((AG17+AH17)-(AE17+AF17))*24,"Nu a fost afectat producator/consumator")),"") ->  | AY17: =IF(B17="X",IF(AN17="DA",IF(AX17>24,IF(BA17="NU",0,LEN(TRIM(V17))-LEN(SUBSTITUTE(V17,CHAR(44),""))+1),0),"-"),"") ->  | AZ17: =IF(B17="X",IF(AN17="DA",IF(AX17>24,LEN(TRIM(V17))-LEN(SUBSTITUTE(V17,CHAR(44),""))+1,0),"-"),"") ->  | BF17: =IF(C17="X",IF(AN17="","Afectat sau NU?",IF(AN17="DA",IF(AK17="","Neinformat",NETWORKDAYS(AK17+AL17,AE17+AF17,$BS$2:$BS$14)-2),"Nu a fost afectat producator/consumator")),"") -> Afectat sau NU? | BG17: =IF(C17="X",IF(AN17="DA",IF(AND(BF17>=5,AK17<>""),LEN(TRIM(V17))-LEN(SUBSTITUTE(V17,CHAR(44),""))+1,0),"-"),"") -> - | BH17: =IF(C17="X",IF(AN17="DA",LEN(TRIM(V17))-LEN(SUBSTITUTE(V17,CHAR(44),""))+1,"-"),"") -> - | BI17: =IF(C17="X",IF(AN17="","Afectat sau NU?",IF(AN17="DA",IF(AI17="","Neinformat",NETWORKDAYS(AI17+AJ17,AE17+AF17,$BS$2:$BS$14)-2),"Nu a fost afectat producator/consumator")),"") -> Afectat sau NU? | BJ17: =IF(C17="X",IF(AN17="DA",IF(AND(BI17>=5,AI17<>""),LEN(TRIM(U17))-LEN(SUBSTITUTE(U17,CHAR(44),""))+1,0),"-"),"") -> - | BK17: =IF(C17="X",IF(AN17="DA",LEN(TRIM(U17))-LEN(SUBSTITUTE(U17,CHAR(44),""))+1,"-"),"") -> - | BL17: =IF(C17="X",IF(AN17="","Afectat sau NU?",IF(AN17="DA",((AG17+AH17)-(Z17+AA17))*24,"Nu a fost afectat producator/consumator")),"") -> Afectat sau NU? | BM17: =IF(C17="X",IF(AN17<>"DA","-",IF(AND(AN17="DA",BL17<=0),LEN(TRIM(V17))-LEN(SUBSTITUTE(V17,CHAR(44),""))+1+LEN(TRIM(U17))-LEN(SUBSTITUTE(U17,CHAR(44),""))+1,0)),"") -> - | BN17: =IF(C17="X",IF(AN17="DA",LEN(TRIM(V17))-LEN(SUBSTITUTE(V17,CHAR(44),""))+1+LEN(TRIM(U17))-LEN(SUBSTITUTE(U17,CHAR(44),""))+1,"-"),"") -> -
A18: =SUM(1,A17) -> 3 | B18: - | C18: x | D18: Punere în siguranță a conductei de transport gaze naturale 8” Cornățel -Avrig, zona Cornățel - Săcădate | E18: 144107 | F18: Săcădate | G18: Sibiu | H18: 452372.31 | I18: 473781.88 | J18: 452372.31 | K18: 473781.88 | L18: - | M18: - | N18: SM0796D0 | O18: Săcădate | P18: - | Q18: - | R18: - | S18: - | T18: SM-SD001 | V18: Delgaz Grid | W18: octombrie - decembrie 2020 | AB18: Mediaș | AP18: PMDI_2020_cap.A_2.1.B.6 | BF18: Afectat sau NU? | BG18: - | BH18: - | BI18: Afectat sau NU? | BJ18: - | BK18: - | BL18: Afectat sau NU? | BM18: - | BN18: -
A19: =SUM(1,A18) -> 4 | B19: - | C19: x | D19: Punere în siguranță a conductei de transport gaze naturale 8” Cornățel -Avrig, zona Cornățel - Săcădate | E19: 144063 | F19: Avrig | G19: Sibiu | H19: 453991.75 | I19: 471082.89 | J19: 453991.75 | K19: 471082.89 | L19: - | M19: - | N19: SM0804D0 | O19: SC Premium Porc Sibiu - Avrig | P19: - | Q19: - | R19: - | S19: - | T19: SM-CF001 | V19: SC Premium Porc Sibiu SRL | W19: octombrie - decembrie 2020 | AB19: Mediaș | AP19: PMDI_2020_cap.A_2.1.B.6 | BF19: Afectat sau NU? | BG19: - | BH19: - | BI19: Afectat sau NU? | BJ19: - | BK19: - | BL19: Afectat sau NU? | BM19: - | BN19: -
A20: 5 | B20: - | C20: x | D20: Punere în siguranță a conductei de transport gaze naturale 8” Cornățel -Avrig, zona Cornățel - Săcădate | E20: 144063 | F20: Avrig | G20: Sibiu | H20: 453138.85 | I20: 469627.97 | J20: 453138.85 | K20: 469627.97 | L20: - | M20: - | N20: SM0802D1 | O20: Avrig | P20: - | Q20: - | R20: - | S20: - | T20: SM-SD001 | V20: Delgaz Grid | W20: octombrie - decembrie 2020 | AB20: Mediaș | AP20: PMDI_2020_cap.A_2.1.B.6 | BF20: Afectat sau NU? | BG20: - | BH20: - | BI20: Afectat sau NU? | BJ20: - | BK20: - | BL20: Afectat sau NU? | BM20: - | BN20: -
A21: 6 | B21: - | C21: x | D21: Punere în siguranță a conductei de transport gaze naturale 8” Cornățel -Avrig, zona Cornățel - Săcădate | E21: 144063 | F21: Avrig | G21: Sibiu | H21: 453138.85 | I21: 469627.97 | J21: 453138.85 | K21: 469627.97 | L21: - | M21: - | N21: SM0802D2 | O21: SC Fabrica de sticlă Avrig | P21: - | Q21: - | R21: - | S21: - | T21: SM-CF001 | V21: SC Fabrica de sticlă Avrig SA | W21: octombrie - decembrie 2020 | AB21: Mediaș | AP21: PMDI_2020_cap.A_2.1.B.6 | BF21: Afectat sau NU? | BG21: - | BH21: - | BI21: Afectat sau NU? | BJ21: - | BK21: - | BL21: Afectat sau NU? | BM21: - | BN21: -
A22: 7 | B22: - | C22: x | D22: Punere în siguranță a conductei de transport gaze naturale 8” Cornățel -Avrig, zona Cornățel - Săcădate | E22: 144090 | F22: Mârșa | G22: Sibiu | H22: 451489.67 | I22: 466968.99 | J22: 451489.67 | K22: 466968.99 | L22: - | M22: - | N22: SM0819D1 | O22: Mârșa | P22: - | Q22: - | R22: - | S22: - | T22: SM-SD001 | V22: Delgaz Grid | W22: octombrie - decembrie 2020 | AB22: Mediaș | AP22: PMDI_2020_cap.A_2.1.B.6 | BF22: Afectat sau NU? | BG22: - | BH22: - | BI22: Afectat sau NU? | BJ22: - | BK22: - | BL22: Afectat sau NU? | BM22: - | BN22: -
A23: 8 | B23: - | C23: x | D23: Punere în siguranță a conductei de transport gaze naturale 8” Cornățel -Avrig, zona Cornățel - Săcădate | E23: 145364 | F23: Racovița | G23: Sibiu | H23: 448491.14 | I23: 465243.62 | J23: 448491.14 | K23: 465243.62 | L23: - | M23: - | N23: SM0876D0 | O23: Racovița | P23: - | Q23: - | R23: - | S23: - | T23: SM-SD001 | V23: Delgaz Grid | W23: octombrie - decembrie 2020 | AB23: Mediaș | AP23: PMDI_2020_cap.A_2.1.B.6 | BF23: Afectat sau NU? | BG23: - | BH23: - | BI23: Afectat sau NU? | BJ23: - | BK23: - | BL23: Afectat sau NU? | BM23: - | BN23: -
A24: 9 | B24: - | C24: x | D24: Punere în siguranță a conductei de transport gaze naturale 8” Cornățel -Avrig, zona Cornățel - Săcădate | E24: 145373 | F24: Sebeșu de Sus | G24: Sibiu | H24: 449528.49 | I24: 462452.81 | J24: 449528.49 | K24: 462452.81 | L24: - | M24: - | N24: SM0903D0 | O24: Sebeșu de Sus | P24: - | Q24: - | R24: - | S24: - | T24: SM-SD001 | V24: Delgaz Grid | W24: octombrie - decembrie 2020 | AB24: Mediaș | AP24: PMDI_2020_cap.A_2.1.B.6 | BF24: =IF(C24="X",IF(AN24="","Afectat sau NU?",IF(AN24="DA",IF(AK24="","Neinformat",NETWORKDAYS(AK24+AL24,AE24+AF24,$BS$2:$BS$14)-2),"Nu a fost afectat producator/consumator")),"") -> Afectat sau NU? | BG24: =IF(C24="X",IF(AN24="DA",IF(AND(BF24>=5,AK24<>""),LEN(TRIM(V24))-LEN(SUBSTITUTE(V24,CHAR(44),""))+1,0),"-"),"") -> - | BH24: =IF(C24="X",IF(AN24="DA",LEN(TRIM(V24))-LEN(SUBSTITUTE(V24,CHAR(44),""))+1,"-"),"") -> - | BI24: =IF(C24="X",IF(AN24="","Afectat sau NU?",IF(AN24="DA",IF(AI24="","Neinformat",NETWORKDAYS(AI24+AJ24,AE24+AF24,$BS$2:$BS$14)-2),"Nu a fost afectat producator/consumator")),"") -> Afectat sau NU? | BJ24: =IF(C24="X",IF(AN24="DA",IF(AND(BI24>=5,AI24<>""),LEN(TRIM(U24))-LEN(SUBSTITUTE(U24,CHAR(44),""))+1,0),"-"),"") -> - | BK24: =IF(C24="X",IF(AN24="DA",LEN(TRIM(U24))-LEN(SUBSTITUTE(U24,CHAR(44),""))+1,"-"),"") -> - | BL24: =IF(C24="X",IF(AN24="","Afectat sau NU?",IF(AN24="DA",((AG24+AH24)-(Z24+AA24))*24,"Nu a fost afectat producator/consumator")),"") -> Afectat sau NU? | BM24: =IF(C24="X",IF(AN24<>"DA","-",IF(AND(AN24="DA",BL24<=0),LEN(TRIM(V24))-LEN(SUBSTITUTE(V24,CHAR(44),""))+1+LEN(TRIM(U24))-LEN(SUBSTITUTE(U24,CHAR(44),""))+1,0)),"") -> - | BN24: =IF(C24="X",IF(AN24="DA",LEN(TRIM(V24))-LEN(SUBSTITUTE(V24,CHAR(44),""))+1+LEN(TRIM(U24))-LEN(SUBSTITUTE(U24,CHAR(44),""))+1,"-"),"") -> -
A25: 10 | B25: - | C25: x | D25: Punere în siguranță a conductei de transport gaze naturale 8” Cornățel -Avrig, zona Cornățel - Săcădate | E25: 145952 | F25: Sebeșu de Jos | G25: Sibiu | H25: 448296.46 | I25: 461833.47 | J25: 448296.46 | K25: 461833.47 | L25: - | M25: - | N25: SM1041D0 | O25: Sebeșu de Jos | P25: - | Q25: - | R25: - | S25: - | T25: SM-SD001 | V25: Delgaz Grid | W25: octombrie - decembrie 2020 | AB25: Mediaș | AP25: PMDI_2020_cap.A_2.1.B.6 | BF25: Afectat sau NU? | BG25: - | BH25: - | BI25: Afectat sau NU? | BJ25: - | BK25: - | BL25: Afectat sau NU? | BM25: - | BN25: -
A26: 11 | B26: - | C26: x | D26: Punere în siguranță a conductei de transport gaze naturale 8” Cornățel -Avrig, zona Cornățel - Săcădate | E26: 145943 | F26: Turnu Roșu | G26: Sibiu | H26: 445948.45 | I26: 460774.96 | J26: 445948.45 | K26: 460774.96 | L26: - | M26: - | N26: SM0805D0 | O26: Turnu Roșu | P26: - | Q26: - | R26: - | S26: - | T26: SM-SD001 | V26: Delgaz Grid | W26: octombrie - decembrie 2020 | AB26: Mediaș | AP26: PMDI_2020_cap.A_2.1.B.6 | BF26: Afectat sau NU? | BG26: - | BH26: - | BI26: Afectat sau NU? | BJ26: - | BK26: - | BL26: Afectat sau NU? | BM26: - | BN26: -
A27: 12 | B27: - | C27: x | D27: Punere în siguranță a conductei 8” racord PM Alămor, zona Alămor | E27: 144811 | F27: Alămor | G27: Sibiu | H27: 420533.37 | I27: 493520.71 | J27: 420533.37 | K27: 493520.71 | L27: - | M27: - | N27: - | O27: - | P27: - | Q27: - | R27: PM0140 | S27: Alămor | T27: PM-PP001 | V27: Romgaz | W27: octombrie - decembrie 2020 | AB27: Mediaș | AP27: PMDI_2020_cap.A_2.1.B.7 | BF27: Afectat sau NU? | BG27: - | BH27: - | BI27: Afectat sau NU? | BJ27: - | BK27: - | BL27: Afectat sau NU? | BM27: - | BN27: -
A28: 13 | B28: - | C28: x | D28: Punere în siguranță a conductei 8” racord PM Alămor, zona Alămor | E28: 144811 | F28: Alămor | G28: Sibiu | H28: 422864.33 | I28: 492914.95 | J28: 422864.33 | K28: 492914.95 | L28: - | M28: - | N28: SM0748D0 | O28: Alămor | P28: - | Q28: - | R28: - | S28: - | T28: SM-SD001 | V28: Delgaz Grid | W28: octombrie - decembrie 2020 | AB28: Mediaș | AP28: PMDI_2020_cap.A_2.1.B.7 | BF28: =IF(C28="X",IF(AN28="","Afectat sau NU?",IF(AN28="DA",IF(AK28="","Neinformat",NETWORKDAYS(AK28+AL28,AE28+AF28,$BS$2:$BS$14)-2),"Nu a fost afectat producator/consumator")),"") -> Afectat sau NU? | BG28: =IF(C28="X",IF(AN28="DA",IF(AND(BF28>=5,AK28<>""),LEN(TRIM(V28))-LEN(SUBSTITUTE(V28,CHAR(44),""))+1,0),"-"),"") -> - | BH28: =IF(C28="X",IF(AN28="DA",LEN(TRIM(V28))-LEN(SUBSTITUTE(V28,CHAR(44),""))+1,"-"),"") -> - | BI28: =IF(C28="X",IF(AN28="","Afectat sau NU?",IF(AN28="DA",IF(AI28="","Neinformat",NETWORKDAYS(AI28+AJ28,AE28+AF28,$BS$2:$BS$14)-2),"Nu a fost afectat producator/consumator")),"") -> Afectat sau NU? | BJ28: =IF(C28="X",IF(AN28="DA",IF(AND(BI28>=5,AI28<>""),LEN(TRIM(U28))-LEN(SUBSTITUTE(U28,CHAR(44),""))+1,0),"-"),"") -> - | BK28: =IF(C28="X",IF(AN28="DA",LEN(TRIM(U28))-LEN(SUBSTITUTE(U28,CHAR(44),""))+1,"-"),"") -> - | BL28: =IF(C28="X",IF(AN28="","Afectat sau NU?",IF(AN28="DA",((AG28+AH28)-(Z28+AA28))*24,"Nu a fost afectat producator/consumator")),"") -> Afectat sau NU? | BM28: =IF(C28="X",IF(AN28<>"DA","-",IF(AND(AN28="DA",BL28<=0),LEN(TRIM(V28))-LEN(SUBSTITUTE(V28,CHAR(44),""))+1+LEN(TRIM(U28))-LEN(SUBSTITUTE(U28,CHAR(44),""))+1,0)),"") -> - | BN28: =IF(C28="X",IF(AN28="DA",LEN(TRIM(V28))-LEN(SUBSTITUTE(V28,CHAR(44),""))+1+LEN(TRIM(U28))-LEN(SUBSTITUTE(U28,CHAR(44),""))+1,"-"),"") -> -
A29: 14 | B29: - | C29: x | D29: Punere în siguranță a conductei 12” Agârbiciu - Sibiu, zona Șeica Mare | E29: 145676 | F29: Șeica Mare | G29: Sibiu | H29: 434864.28 | I29: 502349.67 | J29: 434864.28 | K29: 502349.67 | L29: - | M29: - | N29: SM0737D0 | O29: Șeica Mare | P29: - | Q29: - | R29: - | S29: - | T29: SM-SD001 | V29: Delgaz Grid | W29: iulie - septembrie 2021 | AB29: Mediaș | AP29: PMDI_2020_cap.A_2.1.B.10 | BF29: Afectat sau NU? | BG29: - | BH29: - | BI29: Afectat sau NU? | BJ29: - | BK29: - | BL29: Afectat sau NU? | BM29: - | BN29: -
A30: 15 | B30: - | C30: x | D30: Refacere subtraversare râu Dâmbovița cu conducta Inel București, zona Bălăceanca | E30: 101760 | F30: Cernica | G30: Ilfov | H30: 602275.49 | I30: 322657.23 | J30: 602275.49 | K30: 322657.23 | L30: - | M30: - | N30: SM1133D0 | O30: Cernica II (Bălăceanca) | P30: - | Q30: - | R30: - | S30: - | T30: SM-SD001 | U30: Aderro GP, Nova Power, Cez Vânzare, Cis Gaz, Conef Gaz, Crest Energy, Distrigaz Vest, Engie, E.on Energie, Electrica Furnizare, Electric Planners, Electric&Gas, Energy Distribution, Enel Energie, Enel Muntenia, Gas&Power, Premier Energy Trading, Gaz Est, Gaz vest, Megaconstruct, Mehedinți Gaz, Met România, Monsson, Next Energy, Nord Gaz, Premier Energy, Petrom, Energy Gas Provider, Renovatio, Restart Energy, Tinmar, Transenergo, AIK Energy, Veolia, WIEE | V30: Premier Energy | W30: octombrie - decembrie 2020 ianuarie - martie 2021 | AB30: București | AD30: Întârzieri în execuția forajului orizontal | AP30: PMDI_2020_cap.A_2.1.B.13 | BF30: Afectat sau NU? | BG30: - | BH30: - | BI30: Afectat sau NU? | BJ30: - | BK30: - | BL30: Afectat sau NU? | BM30: - | BN30: -
A31: 16 | B31: - | C31: x | D31: Conductă de transport gaze naturale 20” Plătărești - Bălăceanca | E31: 100629 | F31: Oltenița | G31: Călărași | H31: 632481.62 | I31: 289201.63 | J31: 632481.62 | K31: 289201.63 | L31: - | M31: - | N31: SM0962D0 | O31: Oltenita | P31: - | Q31: - | R31: - | S31: - | T31: SM-SD001 | V31: Distrigaz Sud Rețele | W31: iulie - septembrie 2021 | AB31: București | AP31: PMDI_2020_cap.A_2.1.B.14 | BF31: Afectat sau NU? | BG31: - | BH31: - | BI31: Afectat sau NU? | BJ31: - | BK31: - | BL31: Afectat sau NU? | BM31: - | BN31: -
A32: 17 | B32: - | C32: x | D32: Conductă de transport gaze naturale 20” Plătărești - Bălăceanca | E32: 101813 | F32: Chirnogi | G32: Călărași | H32: 627947.05 | I32: 291419.55 | J32: 627947.05 | K32: 291419.55 | N32: SM1152D0 | O32: Chirnogi | P32: - | Q32: - | R32: - | S32: - | T32: SM-SD001 | V32: Gazmir Iași | W32: iulie - septembrie 2021 | AB32: București | AP32: PMDI_2020_cap.A_2.1.B.14 | AR32: =IF(B32="X",IF(AN32="","Afectat sau NU?",IF(AN32="DA",IF(((AK32+AL32)-(AE32+AF32))*24<-720,"Neinformat",((AK32+AL32)-(AE32+AF32))*24),"Nu a fost afectat producator/consumator")),"") ->  | AS32: =IF(B32="X",IF(AN32="DA",IF(AR32<6,LEN(TRIM(V32))-LEN(SUBSTITUTE(V32,CHAR(44),""))+1,0),"-"),"") ->  | AT32: =IF(B32="X",IF(AN32="DA",LEN(TRIM(V32))-LEN(SUBSTITUTE(V32,CHAR(44),""))+1,"-"),"") ->  | AU32: =IF(B32="X",IF(AN32="","Afectat sau NU?",IF(AN32="DA",IF(((AI32+AJ32)-(AE32+AF32))*24<-720,"Neinformat",((AI32+AJ32)-(AE32+AF32))*24),"Nu a fost afectat producator/consumator")),"") ->  | AV32: =IF(B32="X",IF(AN32="DA",IF(AU32<6,LEN(TRIM(U32))-LEN(SUBSTITUTE(U32,CHAR(44),""))+1,0),"-"),"") ->  | AW32: =IF(B32="X",IF(AN32="DA",LEN(TRIM(U32))-LEN(SUBSTITUTE(U32,CHAR(44),""))+1,"-"),"") ->  | AX32: =IF(B32="X",IF(AN32="","Afectat sau NU?",IF(AN32="DA",((AG32+AH32)-(AE32+AF32))*24,"Nu a fost afectat producator/consumator")),"") ->  | AY32: =IF(B32="X",IF(AN32="DA",IF(AX32>24,IF(BA32="NU",0,LEN(TRIM(V32))-LEN(SUBSTITUTE(V32,CHAR(44),""))+1),0),"-"),"") ->  | AZ32: =IF(B32="X",IF(AN32="DA",IF(AX32>24,LEN(TRIM(V32))-LEN(SUBSTITUTE(V32,CHAR(44),""))+1,0),"-"),"") ->  | BF32: =IF(C32="X",IF(AN32="","Afectat sau NU?",IF(AN32="DA",IF(AK32="","Neinformat",NETWORKDAYS(AK32+AL32,AE32+AF32,$BS$2:$BS$14)-2),"Nu a fost afectat producator/consumator")),"") -> Afectat sau NU? | BG32: =IF(C32="X",IF(AN32="DA",IF(AND(BF32>=5,AK32<>""),LEN(TRIM(V32))-LEN(SUBSTITUTE(V32,CHAR(44),""))+1,0),"-"),"") -> - | BH32: =IF(C32="X",IF(AN32="DA",LEN(TRIM(V32))-LEN(SUBSTITUTE(V32,CHAR(44),""))+1,"-"),"") -> - | BI32: =IF(C32="X",IF(AN32="","Afectat sau NU?",IF(AN32="DA",IF(AI32="","Neinformat",NETWORKDAYS(AI32+AJ32,AE32+AF32,$BS$2:$BS$14)-2),"Nu a fost afectat producator/consumator")),"") -> Afectat sau NU? | BJ32: =IF(C32="X",IF(AN32="DA",IF(AND(BI32>=5,AI32<>""),LEN(TRIM(U32))-LEN(SUBSTITUTE(U32,CHAR(44),""))+1,0),"-"),"") -> - | BK32: =IF(C32="X",IF(AN32="DA",LEN(TRIM(U32))-LEN(SUBSTITUTE(U32,CHAR(44),""))+1,"-"),"") -> - | BL32: =IF(C32="X",IF(AN32="","Afectat sau NU?",IF(AN32="DA",((AG32+AH32)-(Z32+AA32))*24,"Nu a fost afectat producator/consumator")),"") -> Afectat sau NU? | BM32: =IF(C32="X",IF(AN32<>"DA","-",IF(AND(AN32="DA",BL32<=0),LEN(TRIM(V32))-LEN(SUBSTITUTE(V32,CHAR(44),""))+1+LEN(TRIM(U32))-LEN(SUBSTITUTE(U32,CHAR(44),""))+1,0)),"") -> - | BN32: =IF(C32="X",IF(AN32="DA",LEN(TRIM(V32))-LEN(SUBSTITUTE(V32,CHAR(44),""))+1+LEN(TRIM(U32))-LEN(SUBSTITUTE(U32,CHAR(44),""))+1,"-"),"") -> -
A33: 18 | B33: - | C33: x | D33: Conductă de transport gaze naturale 20” Plătărești - Bălăceanca | E33: 100647 | F33: Mitreni | G33: Călărași | H33: 628420.76 | I33: 296597.06 | J33: 628420.76 | K33: 296597.06 | N33: SM1234D0 | O33: Mitreni | P33: - | Q33: - | R33: - | S33: - | T33: SM-SD001 | V33: Distrigaz Sud Rețele | W33: iulie - septembrie 2021 | AB33: București | AP33: PMDI_2020_cap.A_2.1.B.14 | BF33: Afectat sau NU? | BG33: - | BH33: - | BI33: Afectat sau NU? | BJ33: - | BK33: - | BL33: Afectat sau NU? | BM33: - | BN33: -
A34: 19 | B34: - | C34: x | D34: Conductă de transport gaze naturale Nadeș - Sighișoara | E34: 114596 | F34: Hetiur | G34: Mureș | H34: 481685.76 | I34: 529831.52 | J34: 481685.76 | K34: 529831.52 | N34: SM0834D0 | O34: Hetiur | T34: SM-SD001 | V34: Delgaz Grid | W34: iulie - septembrie 2021 | AB34: Brașov | AP34: PMDI_2020_cap.A_2.1.B.17 | BF34: Afectat sau NU? | BG34: - | BH34: - | BI34: Afectat sau NU? | BJ34: - | BK34: - | BL34: Afectat sau NU? | BM34: - | BN34: -
A35: 20 | B35: - | C35: x | D35: Punere în siguranță a conductei 3” racord SRM Ucea de Jos și adaptare la teren SRM Ucea de Jos | E35: 42110 | F35: Ucea de Jos | G35: Braşov | H35: 474571.17 | I35: 476371.61 | J35: 474571.17 | K35: 476371.61 | L35: - | M35: - | N35: SM0811D0 | O35: Ucea de Jos | P35: - | Q35: - | R35: - | S35: - | T35: SM-SD001 | V35: Distrigaz Sud Rețele | W35: aprilie - iunie 2021 | AB35: Mediaș | AP35: PMDI_2020_cap.A_2.1.B.19 | BF35: Afectat sau NU? | BG35: - | BH35: - | BI35: Afectat sau NU? | BJ35: - | BK35: - | BL35: Afectat sau NU? | BM35: - | BN35: -
A36: 21 | B36: - | C36: x | D36: Înlocuire tronson pe conducta de transport gaze naturale 8” racord SRM Poiana Brașov | E36: 42432 | F36: Poiana Brașov | G36: Braşov | H36: 543202.21 | I36: 455663.91 | J36: 543202.21 | K36: 455663.91 | L36: - | M36: - | N36: SM0054D0 | O36: Poiana Brașov | P36: - | Q36: - | R36: - | S36: - | T36: SM-SD001 | V36: Distrigaz Sud Rețele | W36: iulie - septembrie 2021 | AB36: Brașov | AP36: PMDI_2020_cap.A_2.1.B.22 | BF36: Afectat sau NU? | BG36: - | BH36: - | BI36: Afectat sau NU? | BJ36: - | BK36: - | BL36: Afectat sau NU? | BM36: - | BN36: -
A37: 22 | B37: - | C37: x | D37: Înlocuire tronson pe conducta de transport gaze naturale 8” racord SRM Poiana Brașov | E37: 42432 | F37: Poiana Brașov | G37: Braşov | H37: 543067.84 | I37: 456573.21 | J37: 543067.84 | K37: 456573.21 | L37: - | M37: - | N37: SM1113D0 | O37: Poiana Sticlăriei | P37: - | Q37: - | R37: - | S37: - | T37: SM-SD001 | V37: Distrigaz Sud Rețele | W37: iulie - septembrie 2021 | AB37: Brașov | AP37: PMDI_2020_cap.A_2.1.B.22 | AR37: =IF(B37="X",IF(AN37="","Afectat sau NU?",IF(AN37="DA",IF(((AK37+AL37)-(AE37+AF37))*24<-720,"Neinformat",((AK37+AL37)-(AE37+AF37))*24),"Nu a fost afectat producator/consumator")),"") ->  | AS37: =IF(B37="X",IF(AN37="DA",IF(AR37<6,LEN(TRIM(V37))-LEN(SUBSTITUTE(V37,CHAR(44),""))+1,0),"-"),"") ->  | AT37: =IF(B37="X",IF(AN37="DA",LEN(TRIM(V37))-LEN(SUBSTITUTE(V37,CHAR(44),""))+1,"-"),"") ->  | AU37: =IF(B37="X",IF(AN37="","Afectat sau NU?",IF(AN37="DA",IF(((AI37+AJ37)-(AE37+AF37))*24<-720,"Neinformat",((AI37+AJ37)-(AE37+AF37))*24),"Nu a fost afectat producator/consumator")),"") ->  | AV37: =IF(B37="X",IF(AN37="DA",IF(AU37<6,LEN(TRIM(U37))-LEN(SUBSTITUTE(U37,CHAR(44),""))+1,0),"-"),"") ->  | AW37: =IF(B37="X",IF(AN37="DA",LEN(TRIM(U37))-LEN(SUBSTITUTE(U37,CHAR(44),""))+1,"-"),"") ->  | AX37: =IF(B37="X",IF(AN37="","Afectat sau NU?",IF(AN37="DA",((AG37+AH37)-(AE37+AF37))*24,"Nu a fost afectat producator/consumator")),"") ->  | AY37: =IF(B37="X",IF(AN37="DA",IF(AX37>24,IF(BA37="NU",0,LEN(TRIM(V37))-LEN(SUBSTITUTE(V37,CHAR(44),""))+1),0),"-"),"") ->  | AZ37: =IF(B37="X",IF(AN37="DA",IF(AX37>24,LEN(TRIM(V37))-LEN(SUBSTITUTE(V37,CHAR(44),""))+1,0),"-"),"") ->  | BF37: =IF(C37="X",IF(AN37="","Afectat sau NU?",IF(AN37="DA",IF(AK37="","Neinformat",NETWORKDAYS(AK37+AL37,AE37+AF37,$BS$2:$BS$14)-2),"Nu a fost afectat producator/consumator")),"") -> Afectat sau NU? | BG37: =IF(C37="X",IF(AN37="DA",IF(AND(BF37>=5,AK37<>""),LEN(TRIM(V37))-LEN(SUBSTITUTE(V37,CHAR(44),""))+1,0),"-"),"") -> - | BH37: =IF(C37="X",IF(AN37="DA",LEN(TRIM(V37))-LEN(SUBSTITUTE(V37,CHAR(44),""))+1,"-"),"") -> - | BI37: =IF(C37="X",IF(AN37="","Afectat sau NU?",IF(AN37="DA",IF(AI37="","Neinformat",NETWORKDAYS(AI37+AJ37,AE37+AF37,$BS$2:$BS$14)-2),"Nu a fost afectat producator/consumator")),"") -> Afectat sau NU? | BJ37: =IF(C37="X",IF(AN37="DA",IF(AND(BI37>=5,AI37<>""),LEN(TRIM(U37))-LEN(SUBSTITUTE(U37,CHAR(44),""))+1,0),"-"),"") -> - | BK37: =IF(C37="X",IF(AN37="DA",LEN(TRIM(U37))-LEN(SUBSTITUTE(U37,CHAR(44),""))+1,"-"),"") -> - | BL37: =IF(C37="X",IF(AN37="","Afectat sau NU?",IF(AN37="DA",((AG37+AH37)-(Z37+AA37))*24,"Nu a fost afectat producator/consumator")),"") -> Afectat sau NU? | BM37: =IF(C37="X",IF(AN37<>"DA","-",IF(AND(AN37="DA",BL37<=0),LEN(TRIM(V37))-LEN(SUBSTITUTE(V37,CHAR(44),""))+1+LEN(TRIM(U37))-LEN(SUBSTITUTE(U37,CHAR(44),""))+1,0)),"") -> - | BN37: =IF(C37="X",IF(AN37="DA",LEN(TRIM(V37))-LEN(SUBSTITUTE(V37,CHAR(44),""))+1+LEN(TRIM(U37))-LEN(SUBSTITUTE(U37,CHAR(44),""))+1,"-"),"") -> -
A38: =SUM(1,A37) -> 23 | B38: - | C38: x | D38: Mărire capacitate SRM Uricani, județul Iași | E38: 95284 | F38: Iași | G38: Iași | H38: 688243.26 | I38: 633571.56 | J38: 688243.26 | K38: 633571.56 | L38: - | M38: - | N38: SM0480D2 | O38: Uricani | P38: - | Q38: - | R38: - | S38: - | T38: SM-SD001 | V38: Delgaz Grid | W38: iulie - septembrie 2021 | AB38: Bacău | AP38: PMDI_2020_cap.C_5 | BF38: Afectat sau NU? | BG38: - | BH38: - | BI38: Afectat sau NU? | BJ38: - | BK38: - | BL38: Afectat sau NU? | BM38: - | BN38: -
A39: =SUM(1,A38) -> 24 | B39: - | C39: x | D39: Racord și SRM Lețcani, județul Iași | E39: 97688 | F39: Lețcani | G39: Iași | H39: 682858.38 | I39: 636181.85 | J39: 682858.38 | K39: 636181.85 | L39: - | M39: - | N39: SM0886D0 | O39: Lețcani | P39: - | Q39: - | R39: - | S39: - | T39: SM-SD001 | V39: Delgaz Grid | W39: aprilie - iunie 2021 | AB39: Bacău | AP39: PMDI_2020_cap.C_16 | BF39: Afectat sau NU? | BG39: - | BH39: - | BI39: Afectat sau NU? | BJ39: - | BK39: - | BL39: Afectat sau NU? | BM39: - | BN39: -
A40: 25 | B40: - | C40: x | D40: SRM Clinceni - Eficientizarea sistemului de măsură prin completarea instalației tehnologice cu elemente/echipamente corespunzătoare | E40: 102044 | F40: Clinceni | G40: Ilfov | H40: 574454.58 | I40: 318647.9 | J40: 574454.58 | K40: 318647.9 | L40: - | M40: - | N40: SM0249D1 | O40: Clinceni | P40: - | Q40: - | R40: - | S40: - | T40: SM-SD001 | U40: Aderro GP, AIK Londra, Alpha Metal, Nova Power, Cez Vânzare, Cis Gaz, Conef Gaz, Crest Energy, Cyeb, Distrigaz Vest, Engie, E.On Energie, Electrocentrale București, Electrocentrale Constanța, Electrica Furnizare, Electric Planners, Electric&Gas, Energy Distribution, Enel Energie, Enel Muntenia, Gas&Power, Entrex, Euro Seven Industry, Premier Energy Trading, Gaz Est, Hargaz, Gaz Vest, Megaconstruct, Met România, Monsson, Next Energy Distribution, Nord Gaz, Oligopol, Premier Energy, Petrom, Progaz, Energy Gas Provider, Renovatio, Restart Energy, Romgaz, RWE Supply, Tinmar, Transenergo, AIK România, Veolia, WIEE | V40: Distrigaz Sud Rețele | W40: octombrie - decembrie 2020 ianuarie - aprilie 2021 | AB40: București | AD40: Întârzieri în execuție | AP40: PMDI_2020_1_Anexa_3 | BF40: Afectat sau NU? | BG40: - | BH40: - | BI40: Afectat sau NU? | BJ40: - | BK40: - | BL40: Afectat sau NU? | BM40: - | BN40: -
A41: 26 | B41: - | C41: x | D41: SRM Clinceni - Eficientizarea sistemului de măsură prin completarea instalației tehnologice cu elemente/echipamente corespunzătoare | E41: 102222 | F41: Clinceni | G41: Ilfov | H41: 574454.58 | I41: 318647.9 | J41: 574454.58 | K41: 318647.9 | L41: - | M41: - | N41: SM0249D2 | O41: Cornetu | P41: - | Q41: - | R41: - | S41: - | T41: SM-SD001 | U41: Aderro GP, Nova Power, Cez Vânzare, Cis Gaz, Conef Gaz, Crest Energy, Distrigaz Vest, Engie, E.on Energie, Electrica Furnizare, Electric Planners, Electric&Gas, Energy Distribution, Enel Energie, Enel Muntenia, Gas&Power, Premier Energy Trading, Gaz Est, Gaz vest, Megaconstruct, Mehedinți Gaz, Met România, Monsson, Next Energy, Nord Gaz, Premier Energy, Petrom, Energy Gas Provider, Renovatio, Restart Energy, Tinmar, Transenergo, AIK Energy, Veolia, WIEE | V41: Premier Energy | W41: octombrie - decembrie 2020 ianuarie - aprilie 2021 | AB41: București | AD41: Întârzieri în execuție | AP41: PMDI_2020_1_Anexa_3 | AR41: =IF(B41="X",IF(AN41="","Afectat sau NU?",IF(AN41="DA",IF(((AK41+AL41)-(AE41+AF41))*24<-720,"Neinformat",((AK41+AL41)-(AE41+AF41))*24),"Nu a fost afectat producator/consumator")),"") ->  | AS41: =IF(B41="X",IF(AN41="DA",IF(AR41<6,LEN(TRIM(V41))-LEN(SUBSTITUTE(V41,CHAR(44),""))+1,0),"-"),"") ->  | AT41: =IF(B41="X",IF(AN41="DA",LEN(TRIM(V41))-LEN(SUBSTITUTE(V41,CHAR(44),""))+1,"-"),"") ->  | AU41: =IF(B41="X",IF(AN41="","Afectat sau NU?",IF(AN41="DA",IF(((AI41+AJ41)-(AE41+AF41))*24<-720,"Neinformat",((AI41+AJ41)-(AE41+AF41))*24),"Nu a fost afectat producator/consumator")),"") ->  | AV41: =IF(B41="X",IF(AN41="DA",IF(AU41<6,LEN(TRIM(U41))-LEN(SUBSTITUTE(U41,CHAR(44),""))+1,0),"-"),"") ->  | AW41: =IF(B41="X",IF(AN41="DA",LEN(TRIM(U41))-LEN(SUBSTITUTE(U41,CHAR(44),""))+1,"-"),"") ->  | AX41: =IF(B41="X",IF(AN41="","Afectat sau NU?",IF(AN41="DA",((AG41+AH41)-(AE41+AF41))*24,"Nu a fost afectat producator/consumator")),"") ->  | AY41: =IF(B41="X",IF(AN41="DA",IF(AX41>24,IF(BA41="NU",0,LEN(TRIM(V41))-LEN(SUBSTITUTE(V41,CHAR(44),""))+1),0),"-"),"") ->  | AZ41: =IF(B41="X",IF(AN41="DA",IF(AX41>24,LEN(TRIM(V41))-LEN(SUBSTITUTE(V41,CHAR(44),""))+1,0),"-"),"") ->  | BF41: =IF(C41="X",IF(AN41="","Afectat sau NU?",IF(AN41="DA",IF(AK41="","Neinformat",NETWORKDAYS(AK41+AL41,AE41+AF41,$BS$2:$BS$14)-2),"Nu a fost afectat producator/consumator")),"") -> Afectat sau NU? | BG41: =IF(C41="X",IF(AN41="DA",IF(AND(BF41>=5,AK41<>""),LEN(TRIM(V41))-LEN(SUBSTITUTE(V41,CHAR(44),""))+1,0),"-"),"") -> - | BH41: =IF(C41="X",IF(AN41="DA",LEN(TRIM(V41))-LEN(SUBSTITUTE(V41,CHAR(44),""))+1,"-"),"") -> - | BI41: =IF(C41="X",IF(AN41="","Afectat sau NU?",IF(AN41="DA",IF(AI41="","Neinformat",NETWORKDAYS(AI41+AJ41,AE41+AF41,$BS$2:$BS$14)-2),"Nu a fost afectat producator/consumator")),"") -> Afectat sau NU? | BJ41: =IF(C41="X",IF(AN41="DA",IF(AND(BI41>=5,AI41<>""),LEN(TRIM(U41))-LEN(SUBSTITUTE(U41,CHAR(44),""))+1,0),"-"),"") -> - | BK41: =IF(C41="X",IF(AN41="DA",LEN(TRIM(U41))-LEN(SUBSTITUTE(U41,CHAR(44),""))+1,"-"),"") -> - | BL41: =IF(C41="X",IF(AN41="","Afectat sau NU?",IF(AN41="DA",((AG41+AH41)-(Z41+AA41))*24,"Nu a fost afectat producator/consumator")),"") -> Afectat sau NU? | BM41: =IF(C41="X",IF(AN41<>"DA","-",IF(AND(AN41="DA",BL41<=0),LEN(TRIM(V41))-LEN(SUBSTITUTE(V41,CHAR(44),""))+1+LEN(TRIM(U41))-LEN(SUBSTITUTE(U41,CHAR(44),""))+1,0)),"") -> - | BN41: =IF(C41="X",IF(AN41="DA",LEN(TRIM(V41))-LEN(SUBSTITUTE(V41,CHAR(44),""))+1+LEN(TRIM(U41))-LEN(SUBSTITUTE(U41,CHAR(44),""))+1,"-"),"") -> -
A42: 27 | B42: - | C42: x | D42: SRM Clinceni - Eficientizarea sistemului de măsură prin completarea instalației tehnologice cu elemente/echipamente corespunzătoare | E42: 102044 | F42: Clinceni | G42: Ilfov | H42: 574454.58 | I42: 318647.9 | J42: 574454.58 | K42: 318647.9 | L42: - | M42: - | N42: SM0249D3 | O42: Clinceni Aeroport | P42: - | Q42: - | R42: - | S42: - | T42: SM-SD001 | U42: Aderro GP, Nova Power, Cez Vânzare, Cis Gaz, Conef Gaz, Crest Energy, Distrigaz Vest, Engie, E.on Energie, Electrica Furnizare, Electric Planners, Electric&Gas, Energy Distribution, Enel Energie, Enel Muntenia, Gas&Power, Premier Energy Trading, Gaz Est, Gaz vest, Megaconstruct, Mehedinți Gaz, Met România, Monsson, Next Energy, Nord Gaz, Premier Energy, Petrom, Energy Gas Provider, Renovatio, Restart Energy, Tinmar, Transenergo, AIK Energy, Veolia, WIEE | V42: Premier Energy | W42: octombrie - decembrie 2020 ianuarie - aprilie 2021 | AB42: București | AD42: Întârzieri în execuție | AP42: PMDI_2020_1_Anexa_3 | BF42: Afectat sau NU? | BG42: - | BH42: - | BI42: Afectat sau NU? | BJ42: - | BK42: - | BL42: Afectat sau NU? | BM42: - | BN42: -
A43: 28 | B43: - | C43: x | D43: Punere în siguranță a conductei 8” Cornățel - Avrig, zona Avrig | E43: 144090 | F43: Mârșa | G43: Sibiu | H43: 451489.67 | I43: 466968.99 | J43: 451489.67 | K43: 466968.99 | L43: - | M43: - | N43: SM0819D1 | O43: Mârșa | P43: - | Q43: - | R43: - | S43: - | T43: SM-SD001 | V43: Delgaz Grid | W43: iulie - septembrie 2021 | AB43: Mediaș | AP43: PMDI_2020_3_Anexa_7 | BF43: Afectat sau NU? | BG43: - | BH43: - | BI43: Afectat sau NU? | BJ43: - | BK43: - | BL43: Afectat sau NU? | BM43: - | BN43: -
A44: 29 | B44: - | C44: x | D44: Punere în siguranță a conductei 8” Cornățel - Avrig, zona Avrig | E44: 145364 | F44: Racovița | G44: Sibiu | H44: 448491.14 | I44: 465243.62 | J44: 448491.14 | K44: 465243.62 | L44: - | M44: - | N44: SM0876D0 | O44: Racovița | P44: - | Q44: - | R44: - | S44: - | T44: SM-SD001 | V44: Delgaz Grid | W44: iulie - septembrie 2021 | AB44: Mediaș | AP44: PMDI_2020_3_Anexa_7 | BF44: Afectat sau NU? | BG44: - | BH44: - | BI44: Afectat sau NU? | BJ44: - | BK44: - | BL44: Afectat sau NU? | BM44: - | BN44: -
A45: 30 | B45: - | C45: x | D45: Punere în siguranță a conductei 8” Cornățel - Avrig, zona Avrig | E45: 145373 | F45: Sebeșu de Sus | G45: Sibiu | H45: 449528.49 | I45: 462452.81 | J45: 449528.49 | K45: 462452.81 | L45: - | M45: - | N45: SM0903D0 | O45: Sebeșu de Sus | P45: - | Q45: - | R45: - | S45: - | T45: SM-SD001 | V45: Delgaz Grid | W45: iulie - septembrie 2021 | AB45: Mediaș | AP45: PMDI_2020_3_Anexa_7 | BF45: Afectat sau NU? | BG45: - | BH45: - | BI45: Afectat sau NU? | BJ45: - | BK45: - | BL45: Afectat sau NU? | BM45: - | BN45: -
A46: 31 | B46: - | C46: x | D46: Punere în siguranță a conductei 8” Cornățel - Avrig, zona Avrig | E46: 145952 | F46: Sebeșu de Jos | G46: Sibiu | H46: 448296.46 | I46: 461833.47 | J46: 448296.46 | K46: 461833.47 | L46: - | M46: - | N46: SM1041D0 | O46: Sebeșu de Jos | P46: - | Q46: - | R46: - | S46: - | T46: SM-SD001 | V46: Delgaz Grid | W46: iulie - septembrie 2021 | AB46: Mediaș | AP46: PMDI_2020_3_Anexa_7 | BF46: Afectat sau NU? | BG46: - | BH46: - | BI46: Afectat sau NU? | BJ46: - | BK46: - | BL46: Afectat sau NU? | BM46: - | BN46: -
A47: 32 | B47: - | C47: x | D47: Punere în siguranță a conductei 8” Cornățel - Avrig, zona Avrig | E47: 145943 | F47: Turnu Roșu | G47: Sibiu | H47: 445948.45 | I47: 460774.96 | J47: 445948.45 | K47: 460774.96 | L47: - | M47: - | N47: SM0805D0 | O47: Turnu Roșu | P47: - | Q47: - | R47: - | S47: - | T47: SM-SD001 | V47: Delgaz Grid | W47: iulie - septembrie 2021 | AB47: Mediaș | AP47: PMDI_2020_3_Anexa_7 | BF47: Afectat sau NU? | BG47: - | BH47: - | BI47: Afectat sau NU? | BJ47: - | BK47: - | BL47: Afectat sau NU? | BM47: - | BN47: -
A48: 33 | B48: - | C48: x | D48: Punere în siguranță a conductei 12" Vlădeni - Mănești, zona Vlădeni | E48: 67256 | F48: Vlădeni | G48: Dâmbovița | H48: 561573.52 | I48: 374102.03 | J48: 561573.52 | K48: 374102.03 | L48: - | M48: - | N48: SM0137D0 | O48: Vlădeni | P48: - | Q48: - | R48: - | S48: - | T48: SM-SD001 | U48: Aderro GP, Alpha Metal, Nova Power, Cez Vânzare, Cis Gaz, Conef Gaz, Crest Energy, Cyeb, Distrigaz Vest, Engie, E.On Energie, Electrocentrale București, Electrocentrale Constanța, Electrica Furnizare, Electric Planners, Electric&Gas, Energy Distribution, Enel, Enel Muntenia, Gas&Power, Entrex, Euro Seven Industry, Premier Energy Trading, Gaz Est, Hargaz, Megaconstruct, Met România, Monsson, Next Energy, Nord Gaz, Oligopol, Premier Energy, Petrom, Progaz, Energy Gas Provider, Renovatio, Restart Energy, Romgaz, RWE Supply, Tinmar, Transenergo, AIK România, Veolia, WIEE | V48: Distrigaz Sud Rețele | W48: octombrie 2020 18-31 decembrie 2020 februarie - martie 2021 | AB48: București | AD48: Întârzieri în aprovizionarea cu materialele necesare Carantinarea unor zone care implică accesul restricționat al personalului implicat | AP48: PRRASM_2020_IA7_Anexa_1 | AR48: =IF(B48="X",IF(AN48="","Afectat sau NU?",IF(AN48="DA",IF(((AK48+AL48)-(AE48+AF48))*24<-720,"Neinformat",((AK48+AL48)-(AE48+AF48))*24),"Nu a fost afectat producator/consumator")),"") ->  | AS48: =IF(B48="X",IF(AN48="DA",IF(AR48<6,LEN(TRIM(V48))-LEN(SUBSTITUTE(V48,CHAR(44),""))+1,0),"-"),"") ->  | AT48: =IF(B48="X",IF(AN48="DA",LEN(TRIM(V48))-LEN(SUBSTITUTE(V48,CHAR(44),""))+1,"-"),"") ->  | AU48: =IF(B48="X",IF(AN48="","Afectat sau NU?",IF(AN48="DA",IF(((AI48+AJ48)-(AE48+AF48))*24<-720,"Neinformat",((AI48+AJ48)-(AE48+AF48))*24),"Nu a fost afectat producator/consumator")),"") ->  | AV48: =IF(B48="X",IF(AN48="DA",IF(AU48<6,LEN(TRIM(U48))-LEN(SUBSTITUTE(U48,CHAR(44),""))+1,0),"-"),"") ->  | AW48: =IF(B48="X",IF(AN48="DA",LEN(TRIM(U48))-LEN(SUBSTITUTE(U48,CHAR(44),""))+1,"-"),"") ->  | AX48: =IF(B48="X",IF(AN48="","Afectat sau NU?",IF(AN48="DA",((AG48+AH48)-(AE48+AF48))*24,"Nu a fost afectat producator/consumator")),"") ->  | AY48: =IF(B48="X",IF(AN48="DA",IF(AX48>24,IF(BA48="NU",0,LEN(TRIM(V48))-LEN(SUBSTITUTE(V48,CHAR(44),""))+1),0),"-"),"") ->  | AZ48: =IF(B48="X",IF(AN48="DA",IF(AX48>24,LEN(TRIM(V48))-LEN(SUBSTITUTE(V48,CHAR(44),""))+1,0),"-"),"") ->  | BF48: =IF(C48="X",IF(AN48="","Afectat sau NU?",IF(AN48="DA",IF(AK48="","Neinformat",NETWORKDAYS(AK48+AL48,AE48+AF48,$BS$2:$BS$14)-2),"Nu a fost afectat producator/consumator")),"") -> Afectat sau NU? | BG48: =IF(C48="X",IF(AN48="DA",IF(AND(BF48>=5,AK48<>""),LEN(TRIM(V48))-LEN(SUBSTITUTE(V48,CHAR(44),""))+1,0),"-"),"") -> - | BH48: =IF(C48="X",IF(AN48="DA",LEN(TRIM(V48))-LEN(SUBSTITUTE(V48,CHAR(44),""))+1,"-"),"") -> - | BI48: =IF(C48="X",IF(AN48="","Afectat sau NU?",IF(AN48="DA",IF(AI48="","Neinformat",NETWORKDAYS(AI48+AJ48,AE48+AF48,$BS$2:$BS$14)-2),"Nu a fost afectat producator/consumator")),"") -> Afectat sau NU? | BJ48: =IF(C48="X",IF(AN48="DA",IF(AND(BI48>=5,AI48<>""),LEN(TRIM(U48))-LEN(SUBSTITUTE(U48,CHAR(44),""))+1,0),"-"),"") -> - | BK48: =IF(C48="X",IF(AN48="DA",LEN(TRIM(U48))-LEN(SUBSTITUTE(U48,CHAR(44),""))+1,"-"),"") -> - | BL48: =IF(C48="X",IF(AN48="","Afectat sau NU?",IF(AN48="DA",((AG48+AH48)-(Z48+AA48))*24,"Nu a fost afectat producator/consumator")),"") -> Afectat sau NU? | BM48: =IF(C48="X",IF(AN48<>"DA","-",IF(AND(AN48="DA",BL48<=0),LEN(TRIM(V48))-LEN(SUBSTITUTE(V48,CHAR(44),""))+1+LEN(TRIM(U48))-LEN(SUBSTITUTE(U48,CHAR(44),""))+1,0)),"") -> - | BN48: =IF(C48="X",IF(AN48="DA",LEN(TRIM(V48))-LEN(SUBSTITUTE(V48,CHAR(44),""))+1+LEN(TRIM(U48))-LEN(SUBSTITUTE(U48,CHAR(44),""))+1,"-"),"") -> -
A49: 34 | B49: - | C49: x | D49: Punere în siguranță a conductei 12" Vlădeni - Mănești, zona Vlădeni | E49: 134238 | F49: Coada Izvorului | G49: Prahova | H49: 566412.39 | I49: 374268.11 | J49: 566412.39 | K49: 374268.11 | L49: - | M49: - | N49: SM0033D0 | O49: Coada Izvorului | P49: - | Q49: - | R49: - | S49: - | T49: SM-SD001 | U49: Aderro GP, Alpha Metal, Nova Power, Cez Vânzare, Cis Gaz, Conef Gaz, Crest Energy, Cyeb, Distrigaz Vest, Engie, E.On Energie, Electrocentrale București, Electrocentrale Constanța, Electrica Furnizare, Electric Planners, Electric&Gas, Energy Distribution, Enel, Enel Muntenia, Gas&Power, Entrex, Euro Seven Industry, Premier Energy Trading, Gaz Est, Hargaz, Megaconstruct, Met România, Monsson, Next Energy, Nord Gaz, Oligopol, Premier Energy, Petrom, Progaz, Energy Gas Provider, Renovatio, Restart Energy, Romgaz, RWE Supply, Tinmar, Transenergo, AIK România, Veolia, WIEE | V49: Distrigaz Sud Rețele | W49: octombrie 2020 18-31 decembrie 2020 februarie - martie 2021 | AB49: București | AD49: Întârzieri în aprovizionarea cu materialele necesare Carantinarea unor zone care implică accesul restricționat al personalului implicat | AP49: PRRASM_2020_IA7_Anexa_1 | BF49: Afectat sau NU? | BG49: - | BH49: - | BI49: Afectat sau NU? | BJ49: - | BK49: - | BL49: Afectat sau NU? | BM49: - | BN49: -
A50: 35 | B50: - | C50: x | D50: Punere în siguranță a conductei 12" Vlădeni - Mănești, zona Vlădeni | E50: 67265 | F50: Vlădeni | G50: Dâmbovița | H50: 561822.72 | I50: 373131.93 | J50: 561822.72 | K50: 373131.93 | L50: - | M50: - | N50: - | O50: - | P50: - | Q50: - | R50: PM0014 | S50: Vlădeni | T50: PM-PP001 | U50: Romgaz, Amromco | V50: Romgaz, Amromco | W50: octombrie 2020 18-31 decembrie 2020 februarie - martie 2021 | AB50: București | AD50: Întârzieri în aprovizionarea cu materialele necesare Carantinarea unor zone care implică accesul restricționat al personalului implicat | AP50: PRRASM_2020_IA7_Anexa_1 | BF50: Afectat sau NU? | BG50: - | BH50: - | BI50: Afectat sau NU? | BJ50: - | BK50: - | BL50: Afectat sau NU? | BM50: - | BN50: -
A51: 36 | B51: - | C51: X | D51: Înlocuire robineți la SRM Avrig | E51: 144063 | F51: Avrig | G51: Sibiu | H51: 453138.85 | I51: 469627.97 | J51: 453138.85 | K51: 469627.97 | L51: - | M51: - | N51: SM0802D1 | O51: Avrig | P51: - | Q51: - | R51: - | S51: - | T51: SM-SD001 | V51: Delgaz Grid | W51: mai 2021 | AB51: Mediaș | AP51: Forțe proprii | AR51: =IF(B51="X",IF(AN51="","Afectat sau NU?",IF(AN51="DA",IF(((AK51+AL51)-(AE51+AF51))*24<-720,"Neinformat",((AK51+AL51)-(AE51+AF51))*24),"Nu a fost afectat producator/consumator")),"") ->  | AS51: =IF(B51="X",IF(AN51="DA",IF(AR51<6,LEN(TRIM(V51))-LEN(SUBSTITUTE(V51,CHAR(44),""))+1,0),"-"),"") ->  | AT51: =IF(B51="X",IF(AN51="DA",LEN(TRIM(V51))-LEN(SUBSTITUTE(V51,CHAR(44),""))+1,"-"),"") ->  | AU51: =IF(B51="X",IF(AN51="","Afectat sau NU?",IF(AN51="DA",IF(((AI51+AJ51)-(AE51+AF51))*24<-720,"Neinformat",((AI51+AJ51)-(AE51+AF51))*24),"Nu a fost afectat producator/consumator")),"") ->  | AV51: =IF(B51="X",IF(AN51="DA",IF(AU51<6,LEN(TRIM(U51))-LEN(SUBSTITUTE(U51,CHAR(44),""))+1,0),"-"),"") ->  | AW51: =IF(B51="X",IF(AN51="DA",LEN(TRIM(U51))-LEN(SUBSTITUTE(U51,CHAR(44),""))+1,"-"),"") ->  | AX51: =IF(B51="X",IF(AN51="","Afectat sau NU?",IF(AN51="DA",((AG51+AH51)-(AE51+AF51))*24,"Nu a fost afectat producator/consumator")),"") ->  | AY51: =IF(B51="X",IF(AN51="DA",IF(AX51>24,IF(BA51="NU",0,LEN(TRIM(V51))-LEN(SUBSTITUTE(V51,CHAR(44),""))+1),0),"-"),"") ->  | AZ51: =IF(B51="X",IF(AN51="DA",IF(AX51>24,LEN(TRIM(V51))-LEN(SUBSTITUTE(V51,CHAR(44),""))+1,0),"-"),"") ->  | BF51: =IF(C51="X",IF(AN51="","Afectat sau NU?",IF(AN51="DA",IF(AK51="","Neinformat",NETWORKDAYS(AK51+AL51,AE51+AF51,$BS$2:$BS$14)-2),"Nu a fost afectat producator/consumator")),"") -> Afectat sau NU? | BG51: =IF(C51="X",IF(AN51="DA",IF(AND(BF51>=5,AK51<>""),LEN(TRIM(V51))-LEN(SUBSTITUTE(V51,CHAR(44),""))+1,0),"-"),"") -> - | BH51: =IF(C51="X",IF(AN51="DA",LEN(TRIM(V51))-LEN(SUBSTITUTE(V51,CHAR(44),""))+1,"-"),"") -> - | BI51: =IF(C51="X",IF(AN51="","Afectat sau NU?",IF(AN51="DA",IF(AI51="","Neinformat",NETWORKDAYS(AI51+AJ51,AE51+AF51,$BS$2:$BS$14)-2),"Nu a fost afectat producator/consumator")),"") -> Afectat sau NU? | BJ51: =IF(C51="X",IF(AN51="DA",IF(AND(BI51>=5,AI51<>""),LEN(TRIM(U51))-LEN(SUBSTITUTE(U51,CHAR(44),""))+1,0),"-"),"") -> - | BK51: =IF(C51="X",IF(AN51="DA",LEN(TRIM(U51))-LEN(SUBSTITUTE(U51,CHAR(44),""))+1,"-"),"") -> - | BL51: =IF(C51="X",IF(AN51="","Afectat sau NU?",IF(AN51="DA",((AG51+AH51)-(Z51+AA51))*24,"Nu a fost afectat producator/consumator")),"") -> Afectat sau NU? | BM51: =IF(C51="X",IF(AN51<>"DA","-",IF(AND(AN51="DA",BL51<=0),LEN(TRIM(V51))-LEN(SUBSTITUTE(V51,CHAR(44),""))+1+LEN(TRIM(U51))-LEN(SUBSTITUTE(U51,CHAR(44),""))+1,0)),"") -> - | BN51: =IF(C51="X",IF(AN51="DA",LEN(TRIM(V51))-LEN(SUBSTITUTE(V51,CHAR(44),""))+1+LEN(TRIM(U51))-LEN(SUBSTITUTE(U51,CHAR(44),""))+1,"-"),"") -> -
A52: 37 | B52: - | C52: X | D52: Înlocuire robineți la SRM Mârșa | E52: 144090 | F52: Mârșa | G52: Sibiu | H52: 451489.67 | I52: 466968.99 | J52: 451489.67 | K52: 466968.99 | L52: - | M52: - | N52: SM0819D1 | O52: Mârșa | P52: - | Q52: - | R52: - | S52: - | T52: SM-SD001 | V52: Delgaz Grid | W52: mai 2021 | AB52: Mediaș | AP52: Forțe proprii | AR52: =IF(B52="X",IF(AN52="","Afectat sau NU?",IF(AN52="DA",IF(((AK52+AL52)-(AE52+AF52))*24<-720,"Neinformat",((AK52+AL52)-(AE52+AF52))*24),"Nu a fost afectat producator/consumator")),"") ->  | AS52: =IF(B52="X",IF(AN52="DA",IF(AR52<6,LEN(TRIM(V52))-LEN(SUBSTITUTE(V52,CHAR(44),""))+1,0),"-"),"") ->  | AT52: =IF(B52="X",IF(AN52="DA",LEN(TRIM(V52))-LEN(SUBSTITUTE(V52,CHAR(44),""))+1,"-"),"") ->  | AU52: =IF(B52="X",IF(AN52="","Afectat sau NU?",IF(AN52="DA",IF(((AI52+AJ52)-(AE52+AF52))*24<-720,"Neinformat",((AI52+AJ52)-(AE52+AF52))*24),"Nu a fost afectat producator/consumator")),"") ->  | AV52: =IF(B52="X",IF(AN52="DA",IF(AU52<6,LEN(TRIM(U52))-LEN(SUBSTITUTE(U52,CHAR(44),""))+1,0),"-"),"") ->  | AW52: =IF(B52="X",IF(AN52="DA",LEN(TRIM(U52))-LEN(SUBSTITUTE(U52,CHAR(44),""))+1,"-"),"") ->  | AX52: =IF(B52="X",IF(AN52="","Afectat sau NU?",IF(AN52="DA",((AG52+AH52)-(AE52+AF52))*24,"Nu a fost afectat producator/consumator")),"") ->  | AY52: =IF(B52="X",IF(AN52="DA",IF(AX52>24,IF(BA52="NU",0,LEN(TRIM(V52))-LEN(SUBSTITUTE(V52,CHAR(44),""))+1),0),"-"),"") ->  | AZ52: =IF(B52="X",IF(AN52="DA",IF(AX52>24,LEN(TRIM(V52))-LEN(SUBSTITUTE(V52,CHAR(44),""))+1,0),"-"),"") ->  | BF52: =IF(C52="X",IF(AN52="","Afectat sau NU?",IF(AN52="DA",IF(AK52="","Neinformat",NETWORKDAYS(AK52+AL52,AE52+AF52,$BS$2:$BS$14)-2),"Nu a fost afectat producator/consumator")),"") -> Afectat sau NU? | BG52: =IF(C52="X",IF(AN52="DA",IF(AND(BF52>=5,AK52<>""),LEN(TRIM(V52))-LEN(SUBSTITUTE(V52,CHAR(44),""))+1,0),"-"),"") -> - | BH52: =IF(C52="X",IF(AN52="DA",LEN(TRIM(V52))-LEN(SUBSTITUTE(V52,CHAR(44),""))+1,"-"),"") -> - | BI52: =IF(C52="X",IF(AN52="","Afectat sau NU?",IF(AN52="DA",IF(AI52="","Neinformat",NETWORKDAYS(AI52+AJ52,AE52+AF52,$BS$2:$BS$14)-2),"Nu a fost afectat producator/consumator")),"") -> Afectat sau NU? | BJ52: =IF(C52="X",IF(AN52="DA",IF(AND(BI52>=5,AI52<>""),LEN(TRIM(U52))-LEN(SUBSTITUTE(U52,CHAR(44),""))+1,0),"-"),"") -> - | BK52: =IF(C52="X",IF(AN52="DA",LEN(TRIM(U52))-LEN(SUBSTITUTE(U52,CHAR(44),""))+1,"-"),"") -> - | BL52: =IF(C52="X",IF(AN52="","Afectat sau NU?",IF(AN52="DA",((AG52+AH52)-(Z52+AA52))*24,"Nu a fost afectat producator/consumator")),"") -> Afectat sau NU? | BM52: =IF(C52="X",IF(AN52<>"DA","-",IF(AND(AN52="DA",BL52<=0),LEN(TRIM(V52))-LEN(SUBSTITUTE(V52,CHAR(44),""))+1+LEN(TRIM(U52))-LEN(SUBSTITUTE(U52,CHAR(44),""))+1,0)),"") -> - | BN52: =IF(C52="X",IF(AN52="DA",LEN(TRIM(V52))-LEN(SUBSTITUTE(V52,CHAR(44),""))+1+LEN(TRIM(U52))-LEN(SUBSTITUTE(U52,CHAR(44),""))+1,"-"),"") -> -
A53: 38 | B53: - | C53: X | D53: Înlocuire robineță la SRM Rusciori | E53: 145818 | F53: Rusciori | G53: Sibiu | H53: 425238.47 | I53: 479734.58 | J53: 425238.47 | K53: 479734.58 | L53: - | M53: - | N53: SM0761D0 | O53: Rusciori | P53: - | Q53: - | R53: - | S53: - | T53: SM-SD001 | V53: Delgaz Grid | W53: iunie 2021 | AB53: Mediaș | AP53: Forțe proprii | BF53: Afectat sau NU? | BG53: - | BH53: - | BI53: Afectat sau NU? | BJ53: - | BK53: - | BL53: Afectat sau NU? | BM53: - | BN53: -
A54: 39 | B54: - | C54: X | D54: Înlocuire robineți la SRM Ocna Sibiului | E54: 143860 | F54: Ocna Sibiului | G54: Sibiu | H54: 427912.33 | I54: 486555.98 | J54: 427912.33 | K54: 486555.98 | L54: - | M54: - | N54: SM0723D0 | O54: Ocna Sibiului | P54: - | Q54: - | R54: - | S54: - | T54: SM-SD001 | V54: Delgaz Grid | W54: iunie 2021 | AB54: Mediaș | AP54: Forțe proprii | BF54: Afectat sau NU? | BG54: - | BH54: - | BI54: Afectat sau NU? | BJ54: - | BK54: - | BL54: Afectat sau NU? | BM54: - | BN54: -
A55: 40 | B55: - | C55: X | D55: Înlocuire robineți la SRM Șura Mare | E55: 145774 | F55: Șura Mare | G55: Sibiu | H55: 434542.96 | I55: 483711.13 | J55: 434542.96 | K55: 483711.13 | L55: - | M55: - | N55: SM0742D0 | O55: Șura Mare | P55: - | Q55: - | R55: - | S55: - | T55: SM-SD001 | V55: Delgaz Grid | W55: iulie 2021 | AB55: Mediaș | AP55: Forțe proprii | BF55: Afectat sau NU? | BG55: - | BH55: - | BI55: Afectat sau NU? | BJ55: - | BK55: - | BL55: Afectat sau NU? | BM55: - | BN55: -
A56: 41 | B56: - | C56: X | D56: Înlocuire robineți la SRM Hosman | E56: 145186 | F56: Hosman | G56: Sibiu | H56: 455162.02 | I56: 482490.4 | J56: 455162.02 | K56: 482490.4 | L56: - | M56: - | N56: SM0791D0 | O56: Hosman | P56: - | Q56: - | R56: - | S56: - | T56: SM-SD001 | V56: Delgaz Grid | W56: august 2021 | AB56: Mediaș | AP56: Forțe proprii | BF56: Afectat sau NU? | BG56: - | BH56: - | BI56: Afectat sau NU? | BJ56: - | BK56: - | BL56: Afectat sau NU? | BM56: - | BN56: -
A57: 42 | B57: - | C57: X | D57: Înlocuire robineți la SRM Ilimbav | E57: 144919 | F57: Ilimbav | G57: Sibiu | H57: 462643.39 | I57: 486014.37 | J57: 462643.39 | K57: 486014.37 | L57: - | M57: - | N57: SM0792D0 | O57: Ilimbav | P57: - | Q57: - | R57: - | S57: - | T57: SM-SD001 | V57: Delgaz Grid | W57: august 2021 | AB57: Mediaș | AP57: Forțe proprii | BF57: Afectat sau NU? | BG57: - | BH57: - | BI57: Afectat sau NU? | BJ57: - | BK57: - | BL57: Afectat sau NU? | BM57: - | BN57: -
A58: 43 | B58: - | C58: X | D58: Înlocuire robineți la SRM Vârd | E58: 144483 | F58: Vârd | G58: Sibiu | H58: 468618.46 | I58: 494023.26 | J58: 468618.46 | K58: 494023.26 | L58: - | M58: - | N58: SM0789D0 | O58: Vârd | P58: - | Q58: - | R58: - | S58: - | T58: SM-SD001 | V58: Delgaz Grid | W58: septembrie 2021 | AB58: Mediaș | AP58: Forțe proprii | BF58: Afectat sau NU? | BG58: - | BH58: - | BI58: Afectat sau NU? | BJ58: - | BK58: - | BL58: Afectat sau NU? | BM58: - | BN58: -
A59: 44 | B59: - | C59: X | D59: Înlocuire robineți la SRM Racovița | E59: 145364 | F59: Racovița | G59: Sibiu | H59: 448491.14 | I59: 465243.62 | J59: 448491.14 | K59: 465243.62 | L59: - | M59: - | N59: SM0876D0 | O59: Racovița | P59: - | Q59: - | R59: - | S59: - | T59: SM-SD001 | V59: Delgaz Grid | W59: septembrie 2021 | AB59: Mediaș | AP59: Forțe proprii | BF59: Afectat sau NU? | BG59: - | BH59: - | BI59: Afectat sau NU? | BJ59: - | BK59: - | BL59: Afectat sau NU? | BM59: - | BN59: -
A60: 45 | B60: - | C60: X | D60: Montare îmbinare electroizolantă pe conducta 3" racord SRM Vad | E60: 41845 | F60: Vad | G60: Brașov | H60: 511691.09 | I60: 477821.71 | J60: 511691.09 | K60: 477821.71 | L60: - | M60: - | N60: SM0021D0 | O60: Vad | P60: - | Q60: - | R60: - | S60: - | T60: SM-SD001 | V60: Distrigaz Sud Rețele | W60: mai 2021 | AB60: Mediaș | AP60: Forțe proprii | BF60: Afectat sau NU? | BG60: - | BH60: - | BI60: Afectat sau NU? | BJ60: - | BK60: - | BL60: Afectat sau NU? | BM60: - | BN60: -
A61: 46 | B61: - | C61: X | D61: Lucrări privind sistematizarea și creșterea siguranței în funcționare a infrastructurii SNT din zona NT Rodbav - SRM Făgăraș. | E61: 40571 | F61: Calbor | G61: Brașov | H61: 492123.16 | I61: 486057.15 | J61: 492123.16 | K61: 486057.15 | L61: - | M61: - | N61: SM0769D0 | O61: SRM Calbor | P61: - | Q61: - | R61: - | S61: - | T61: SM-SD001 | V61: Distrigaz Sud Rețele | W61: iulie 2021 | AB61: Mediaș | AP61: Sucursala_2020_A_24 | BF61: Afectat sau NU? | BG61: - | BH61: - | BI61: Afectat sau NU? | BJ61: - | BK61: - | BL61: Afectat sau NU? | BM61: - | BN61: -
A62: 47 | B62: - | C62: X | D62: Relocare instalație mecanică veche de la Aricești II la Stăncești (înlocuire SRM Stăncești) | E62: 130892 | F62: Ploiești | G62: Prahova | H62: 571593.42 | I62: 373696.77 | J62: 571593.42 | K62: 373696.77 | L62: - | M62: - | N62: SM0140D0 | O62: Stâncești | P62: - | Q62: - | R62: - | S62: - | T62: SM-SD001 | U62: Aderro GP, Alpha Metal, Nova Power, Cez Vânzare, Cis Gaz, Conef Gaz, Crest Energy, Cyeb, Distrigaz Vest, Engie, E.On Energie, Electrocentrale București, Electrocentrale Constanța, Electrica Furnizare, Electric Planners, Electric&Gas, Energy Distribution, Enel, Enel Muntenia, Gas&Power, Entrex, Euro Seven Industry, Premier Energy Trading, Gaz Est, Hargaz, Megaconstruct, Met România, Monsson, Next Energy, Nord Gaz, Oligopol, Premier Energy, Petrom, Progaz, Energy Gas Provider, Renovatio, Restart Energy, Romgaz, RWE Supply, Tinmar, Transenergo, AIK România, Veolia, WIEE | V62: Distrigaz Sud Rețele | W62: 03 - 31 octombrie 2020 18 decembrie 2020 - martie 2021 | AB62: București | AD62: Întârzieri în aprovizionarea cu materialele necesare | AP62: Forțe proprii | AR62: =IF(B62="X",IF(AN62="","Afectat sau NU?",IF(AN62="DA",IF(((AK62+AL62)-(AE62+AF62))*24<-720,"Neinformat",((AK62+AL62)-(AE62+AF62))*24),"Nu a fost afectat producator/consumator")),"") ->  | AS62: =IF(B62="X",IF(AN62="DA",IF(AR62<6,LEN(TRIM(V62))-LEN(SUBSTITUTE(V62,CHAR(44),""))+1,0),"-"),"") ->  | AT62: =IF(B62="X",IF(AN62="DA",LEN(TRIM(V62))-LEN(SUBSTITUTE(V62,CHAR(44),""))+1,"-"),"") ->  | AU62: =IF(B62="X",IF(AN62="","Afectat sau NU?",IF(AN62="DA",IF(((AI62+AJ62)-(AE62+AF62))*24<-720,"Neinformat",((AI62+AJ62)-(AE62+AF62))*24),"Nu a fost afectat producator/consumator")),"") ->  | AV62: =IF(B62="X",IF(AN62="DA",IF(AU62<6,LEN(TRIM(U62))-LEN(SUBSTITUTE(U62,CHAR(44),""))+1,0),"-"),"") ->  | AW62: =IF(B62="X",IF(AN62="DA",LEN(TRIM(U62))-LEN(SUBSTITUTE(U62,CHAR(44),""))+1,"-"),"") ->  | AX62: =IF(B62="X",IF(AN62="","Afectat sau NU?",IF(AN62="DA",((AG62+AH62)-(AE62+AF62))*24,"Nu a fost afectat producator/consumator")),"") ->  | AY62: =IF(B62="X",IF(AN62="DA",IF(AX62>24,IF(BA62="NU",0,LEN(TRIM(V62))-LEN(SUBSTITUTE(V62,CHAR(44),""))+1),0),"-"),"") ->  | AZ62: =IF(B62="X",IF(AN62="DA",IF(AX62>24,LEN(TRIM(V62))-LEN(SUBSTITUTE(V62,CHAR(44),""))+1,0),"-"),"") ->  | BF62: =IF(C62="X",IF(AN62="","Afectat sau NU?",IF(AN62="DA",IF(AK62="","Neinformat",NETWORKDAYS(AK62+AL62,AE62+AF62,$BS$2:$BS$14)-2),"Nu a fost afectat producator/consumator")),"") -> Afectat sau NU? | BG62: =IF(C62="X",IF(AN62="DA",IF(AND(BF62>=5,AK62<>""),LEN(TRIM(V62))-LEN(SUBSTITUTE(V62,CHAR(44),""))+1,0),"-"),"") -> - | BH62: =IF(C62="X",IF(AN62="DA",LEN(TRIM(V62))-LEN(SUBSTITUTE(V62,CHAR(44),""))+1,"-"),"") -> - | BI62: =IF(C62="X",IF(AN62="","Afectat sau NU?",IF(AN62="DA",IF(AI62="","Neinformat",NETWORKDAYS(AI62+AJ62,AE62+AF62,$BS$2:$BS$14)-2),"Nu a fost afectat producator/consumator")),"") -> Afectat sau NU? | BJ62: =IF(C62="X",IF(AN62="DA",IF(AND(BI62>=5,AI62<>""),LEN(TRIM(U62))-LEN(SUBSTITUTE(U62,CHAR(44),""))+1,0),"-"),"") -> - | BK62: =IF(C62="X",IF(AN62="DA",LEN(TRIM(U62))-LEN(SUBSTITUTE(U62,CHAR(44),""))+1,"-"),"") -> - | BL62: =IF(C62="X",IF(AN62="","Afectat sau NU?",IF(AN62="DA",((AG62+AH62)-(Z62+AA62))*24,"Nu a fost afectat producator/consumator")),"") -> Afectat sau NU? | BM62: =IF(C62="X",IF(AN62<>"DA","-",IF(AND(AN62="DA",BL62<=0),LEN(TRIM(V62))-LEN(SUBSTITUTE(V62,CHAR(44),""))+1+LEN(TRIM(U62))-LEN(SUBSTITUTE(U62,CHAR(44),""))+1,0)),"") -> - | BN62: =IF(C62="X",IF(AN62="DA",LEN(TRIM(V62))-LEN(SUBSTITUTE(V62,CHAR(44),""))+1+LEN(TRIM(U62))-LEN(SUBSTITUTE(U62,CHAR(44),""))+1,"-"),"") -> -
A63: 48 | B63: - | C63: X | D63: Modernizare NT Schitu Goleşti - montare gară godevil | E63: 18689 | F63: Schitu Golești | G63: Argeș | H63: 499964.406 | I63: 409075.773 | J63: 499964.406 | K63: 409075.773 | L63: - | M63: - | N63: SM1089D0 | O63: Schitu Golești | P63: - | Q63: - | R63: - | S63: - | T63: SM-SD001 | V63: SC Distrigaz Sud Rețele | W63: iulie - septembrie 2021 | AB63: Craiova | AP63: PMDI 2020_8 (Anexa 1) | AR63: =IF(B63="X",IF(AN63="","Afectat sau NU?",IF(AN63="DA",IF(((AK63+AL63)-(AE63+AF63))*24<-720,"Neinformat",((AK63+AL63)-(AE63+AF63))*24),"Nu a fost afectat producator/consumator")),"") ->  | AS63: =IF(B63="X",IF(AN63="DA",IF(AR63<6,LEN(TRIM(V63))-LEN(SUBSTITUTE(V63,CHAR(44),""))+1,0),"-"),"") ->  | AT63: =IF(B63="X",IF(AN63="DA",LEN(TRIM(V63))-LEN(SUBSTITUTE(V63,CHAR(44),""))+1,"-"),"") ->  | AU63: =IF(B63="X",IF(AN63="","Afectat sau NU?",IF(AN63="DA",IF(((AI63+AJ63)-(AE63+AF63))*24<-720,"Neinformat",((AI63+AJ63)-(AE63+AF63))*24),"Nu a fost afectat producator/consumator")),"") ->  | AV63: =IF(B63="X",IF(AN63="DA",IF(AU63<6,LEN(TRIM(U63))-LEN(SUBSTITUTE(U63,CHAR(44),""))+1,0),"-"),"") ->  | AW63: =IF(B63="X",IF(AN63="DA",LEN(TRIM(U63))-LEN(SUBSTITUTE(U63,CHAR(44),""))+1,"-"),"") ->  | AX63: =IF(B63="X",IF(AN63="","Afectat sau NU?",IF(AN63="DA",((AG63+AH63)-(AE63+AF63))*24,"Nu a fost afectat producator/consumator")),"") ->  | AY63: =IF(B63="X",IF(AN63="DA",IF(AX63>24,IF(BA63="NU",0,LEN(TRIM(V63))-LEN(SUBSTITUTE(V63,CHAR(44),""))+1),0),"-"),"") ->  | AZ63: =IF(B63="X",IF(AN63="DA",IF(AX63>24,LEN(TRIM(V63))-LEN(SUBSTITUTE(V63,CHAR(44),""))+1,0),"-"),"") ->  | BF63: =IF(C63="X",IF(AN63="","Afectat sau NU?",IF(AN63="DA",IF(AK63="","Neinformat",NETWORKDAYS(AK63+AL63,AE63+AF63,$BS$2:$BS$14)-2),"Nu a fost afectat producator/consumator")),"") -> Afectat sau NU? | BG63: =IF(C63="X",IF(AN63="DA",IF(AND(BF63>=5,AK63<>""),LEN(TRIM(V63))-LEN(SUBSTITUTE(V63,CHAR(44),""))+1,0),"-"),"") -> - | BH63: =IF(C63="X",IF(AN63="DA",LEN(TRIM(V63))-LEN(SUBSTITUTE(V63,CHAR(44),""))+1,"-"),"") -> - | BI63: =IF(C63="X",IF(AN63="","Afectat sau NU?",IF(AN63="DA",IF(AI63="","Neinformat",NETWORKDAYS(AI63+AJ63,AE63+AF63,$BS$2:$BS$14)-2),"Nu a fost afectat producator/consumator")),"") -> Afectat sau NU? | BJ63: =IF(C63="X",IF(AN63="DA",IF(AND(BI63>=5,AI63<>""),LEN(TRIM(U63))-LEN(SUBSTITUTE(U63,CHAR(44),""))+1,0),"-"),"") -> - | BK63: =IF(C63="X",IF(AN63="DA",LEN(TRIM(U63))-LEN(SUBSTITUTE(U63,CHAR(44),""))+1,"-"),"") -> - | BL63: =IF(C63="X",IF(AN63="","Afectat sau NU?",IF(AN63="DA",((AG63+AH63)-(Z63+AA63))*24,"Nu a fost afectat producator/consumator")),"") -> Afectat sau NU? | BM63: =IF(C63="X",IF(AN63<>"DA","-",IF(AND(AN63="DA",BL63<=0),LEN(TRIM(V63))-LEN(SUBSTITUTE(V63,CHAR(44),""))+1+LEN(TRIM(U63))-LEN(SUBSTITUTE(U63,CHAR(44),""))+1,0)),"") -> - | BN63: =IF(C63="X",IF(AN63="DA",LEN(TRIM(V63))-LEN(SUBSTITUTE(V63,CHAR(44),""))+1+LEN(TRIM(U63))-LEN(SUBSTITUTE(U63,CHAR(44),""))+1,"-"),"") -> -
A64: 49 | B64: - | C64: X | D64: Modernizare NT Schitu Goleşti - montare gară godevil | E64: 17254 | F64: Mihăești | G64: Argeș | H64: 500598.145 | I64: 401110.1547 | J64: 500598.145 | K64: 401110.1547 | L64: - | M64: - | N64: SM1243D0 | O64: Mihaești AG | P64: - | Q64: - | R64: - | S64: - | T64: SM-SD001 | V64: SC Distrigaz Sud Rețele | W64: iulie - septembrie 2021 | AB64: Craiova | AP64: PMDI 2020_8 (Anexa 1) | BF64: Afectat sau NU? | BG64: - | BH64: - | BI64: Afectat sau NU? | BJ64: - | BK64: - | BL64: Afectat sau NU? | BM64: - | BN64: -
A65: 50 | B65: - | C65: X | D65: Pregătire conductă 24” Paltin - Schitu Golești pentru transformare în conductă godevilabilă | E65: 13506 | F65: Câmpulung | G65: Argeș | H65: 506375.179 | I65: 420606.434 | J65: 506375.179 | K65: 420606.434 | L65: - | M65: - | N65: SM0429D0 | O65: SC Edilul Câmpulung | P65: - | Q65: - | R65: - | S65: - | T65: SM-CF001 | V65: SC Edilul C.G.A. SA | W65: iulie - august 2021 | AB65: Craiova | AP65: PRRASM 2020_II_A_3 (Anexa 1) | AR65: =IF(B65="X",IF(AN65="","Afectat sau NU?",IF(AN65="DA",IF(((AK65+AL65)-(AE65+AF65))*24<-720,"Neinformat",((AK65+AL65)-(AE65+AF65))*24),"Nu a fost afectat producator/consumator")),"") ->  | AS65: =IF(B65="X",IF(AN65="DA",IF(AR65<6,LEN(TRIM(V65))-LEN(SUBSTITUTE(V65,CHAR(44),""))+1,0),"-"),"") ->  | AT65: =IF(B65="X",IF(AN65="DA",LEN(TRIM(V65))-LEN(SUBSTITUTE(V65,CHAR(44),""))+1,"-"),"") ->  | AU65: =IF(B65="X",IF(AN65="","Afectat sau NU?",IF(AN65="DA",IF(((AI65+AJ65)-(AE65+AF65))*24<-720,"Neinformat",((AI65+AJ65)-(AE65+AF65))*24),"Nu a fost afectat producator/consumator")),"") ->  | AV65: =IF(B65="X",IF(AN65="DA",IF(AU65<6,LEN(TRIM(U65))-LEN(SUBSTITUTE(U65,CHAR(44),""))+1,0),"-"),"") ->  | AW65: =IF(B65="X",IF(AN65="DA",LEN(TRIM(U65))-LEN(SUBSTITUTE(U65,CHAR(44),""))+1,"-"),"") ->  | AX65: =IF(B65="X",IF(AN65="","Afectat sau NU?",IF(AN65="DA",((AG65+AH65)-(AE65+AF65))*24,"Nu a fost afectat producator/consumator")),"") ->  | AY65: =IF(B65="X",IF(AN65="DA",IF(AX65>24,IF(BA65="NU",0,LEN(TRIM(V65))-LEN(SUBSTITUTE(V65,CHAR(44),""))+1),0),"-"),"") ->  | AZ65: =IF(B65="X",IF(AN65="DA",IF(AX65>24,LEN(TRIM(V65))-LEN(SUBSTITUTE(V65,CHAR(44),""))+1,0),"-"),"") ->  | BF65: =IF(C65="X",IF(AN65="","Afectat sau NU?",IF(AN65="DA",IF(AK65="","Neinformat",NETWORKDAYS(AK65+AL65,AE65+AF65,$BS$2:$BS$14)-2),"Nu a fost afectat producator/consumator")),"") -> Afectat sau NU? | BG65: =IF(C65="X",IF(AN65="DA",IF(AND(BF65>=5,AK65<>""),LEN(TRIM(V65))-LEN(SUBSTITUTE(V65,CHAR(44),""))+1,0),"-"),"") -> - | BH65: =IF(C65="X",IF(AN65="DA",LEN(TRIM(V65))-LEN(SUBSTITUTE(V65,CHAR(44),""))+1,"-"),"") -> - | BI65: =IF(C65="X",IF(AN65="","Afectat sau NU?",IF(AN65="DA",IF(AI65="","Neinformat",NETWORKDAYS(AI65+AJ65,AE65+AF65,$BS$2:$BS$14)-2),"Nu a fost afectat producator/consumator")),"") -> Afectat sau NU? | BJ65: =IF(C65="X",IF(AN65="DA",IF(AND(BI65>=5,AI65<>""),LEN(TRIM(U65))-LEN(SUBSTITUTE(U65,CHAR(44),""))+1,0),"-"),"") -> - | BK65: =IF(C65="X",IF(AN65="DA",LEN(TRIM(U65))-LEN(SUBSTITUTE(U65,CHAR(44),""))+1,"-"),"") -> - | BL65: =IF(C65="X",IF(AN65="","Afectat sau NU?",IF(AN65="DA",((AG65+AH65)-(Z65+AA65))*24,"Nu a fost afectat producator/consumator")),"") -> Afectat sau NU? | BM65: =IF(C65="X",IF(AN65<>"DA","-",IF(AND(AN65="DA",BL65<=0),LEN(TRIM(V65))-LEN(SUBSTITUTE(V65,CHAR(44),""))+1+LEN(TRIM(U65))-LEN(SUBSTITUTE(U65,CHAR(44),""))+1,0)),"") -> - | BN65: =IF(C65="X",IF(AN65="DA",LEN(TRIM(V65))-LEN(SUBSTITUTE(V65,CHAR(44),""))+1+LEN(TRIM(U65))-LEN(SUBSTITUTE(U65,CHAR(44),""))+1,"-"),"") -> -
A66: 51 | B66: - | C66: X | D66: Pregătire conductă 24” Paltin - Schitu Golești pentru transformare în conductă godevilabilă | E66: 13506 | F66: Câmpulung | G66: Argeș | H66: 506435.561 | I66: 420938.471 | J66: 506435.561 | K66: 420938.471 | L66: - | M66: - | N66: SM0874D0 | O66: SC Complex Holcim Câmpulung Sediu | P66: - | Q66: - | R66: - | S66: - | T66: SM-CF001 | V66: SC Holcim (România) SA | W66: iulie - august 2021 | AB66: Craiova | AP66: PRRASM 2020_II_A_3 (Anexa 1) | BF66: Afectat sau NU? | BG66: - | BH66: - | BI66: Afectat sau NU? | BJ66: - | BK66: - | BL66: Afectat sau NU? | BM66: - | BN66: -
A67: 52 | B67: - | C67: X | D67: Pregătire conductă 24” Paltin - Schitu Golești pentru transformare în conductă godevilabilă | E67: 13506 | F67: Câmpulung | G67: Argeș | H67: 506492.155 | I67: 421280.194 | J67: 506492.155 | K67: 421280.194 | L67: - | M67: - | N67: SM0078D0 | O67: SC Romturingia Câmpulung | P67: - | Q67: - | R67: - | S67: - | T67: SM-CF001 | V67: SC Romturingia SRL | W67: iulie - august 2021 | AB67: Craiova | AP67: PRRASM 2020_II_A_3 (Anexa 1) | BF67: Afectat sau NU? | BG67: - | BH67: - | BI67: Afectat sau NU? | BJ67: - | BK67: - | BL67: Afectat sau NU? | BM67: - | BN67: -
A68: 53 | B68: - | C68: X | D68: Pregătire conductă 24” Paltin - Schitu Golești pentru transformare în conductă godevilabilă | E68: 13506 | F68: Câmpulung | G68: Argeș | H68: 509108.281 | I68: 421227.1767 | J68: 509108.281 | K68: 421227.1767 | L68: - | M68: - | N68: SM0213D1 | O68: SC Holcim Câmpulung | P68: - | Q68: - | R68: - | S68: - | T68: SM-CF001 | V68: SC Holcim (România) SA | W68: iulie - august 2021 | AB68: Craiova | AP68: PRRASM 2020_II_A_3 (Anexa 1) | BF68: Afectat sau NU? | BG68: - | BH68: - | BI68: Afectat sau NU? | BJ68: - | BK68: - | BL68: Afectat sau NU? | BM68: - | BN68: -
A69: 54 | B69: - | C69: X | D69: Pregătire conductă 24” Paltin - Schitu Golești pentru transformare în conductă godevilabilă | E69: 13506 | F69: Câmpulung | G69: Argeș | H69: 509108.281 | I69: 421227.1767 | J69: 509108.281 | K69: 421227.1767 | L69: - | M69: - | N69: SM0213D2 | O69: SC Carmeuse Holding Câmpulung | P69: - | Q69: - | R69: - | S69: - | T69: SM-CF001 | V69: SC Carmeuse Holding SRL | W69: iulie - august 2021 | AB69: Craiova | AP69: PRRASM 2020_II_A_3 (Anexa 1) | BF69: Afectat sau NU? | BG69: - | BH69: - | BI69: Afectat sau NU? | BJ69: - | BK69: - | BL69: Afectat sau NU? | BM69: - | BN69: -
A70: 55 | B70: - | C70: X | D70: Pregătire conductă 24” Paltin - Schitu Golești pentru transformare în conductă godevilabilă | E70: 13533 | F70: Valea Mare Pravăț | G70: Argeș | H70: 509108.281 | I70: 421227.1767 | J70: 509108.281 | K70: 421227.1767 | L70: - | M70: - | N70: SM0213D3 | O70: SC Star Multitrade Pravăț | P70: - | Q70: - | R70: - | S70: - | T70: SM-SD001 | V70: SC Distrigaz Sud Rețele | W70: iulie - august 2021 | AB70: Craiova | AP70: PRRASM 2020_II_A_3 (Anexa 1) | BF70: Afectat sau NU? | BG70: - | BH70: - | BI70: Afectat sau NU? | BJ70: - | BK70: - | BL70: Afectat sau NU? | BM70: - | BN70: -
A71: 56 | B71: - | C71: X | D71: Pregătire conductă 24” Paltin - Schitu Golești pentru transformare în conductă godevilabilă | E71: 13506 | F71: Câmpulung | G71: Argeș | H71: 504544.1711 | I71: 418845.7315 | J71: 504544.1711 | K71: 418845.7315 | L71: - | M71: - | N71: SM0216D0 | O71: Câmpulung Muscel | P71: - | Q71: - | R71: - | S71: - | T71: SM-SD001 | V71: SC Distrigaz Sud Rețele | W71: iulie - august 2021 | AB71: Craiova | AP71: PRRASM 2020_II_A_3 (Anexa 1) | BF71: Afectat sau NU? | BG71: - | BH71: - | BI71: Afectat sau NU? | BJ71: - | BK71: - | BL71: Afectat sau NU? | BM71: - | BN71: -
A72: 57 | B72: - | C72: X | D72: Pregătire conductă 24” Paltin - Schitu Golești pentru transformare în conductă godevilabilă | E72: 16917 | F72: Lerești | G72: Argeș | H72: 505375.834 | I72: 421813.476 | J72: 505375.834 | K72: 421813.476 | L72: - | M72: - | N72: SM1242D0 | O72: Lerești | P72: - | Q72: - | R72: - | S72: - | T72: SM-SD001 | V72: SC Distrigaz Sud Rețele | W72: iulie - august 2021 | AB72: Craiova | AP72: PRRASM 2020_II_A_3 (Anexa 1) | BF72: Afectat sau NU? | BG72: - | BH72: - | BI72: Afectat sau NU? | BJ72: - | BK72: - | BL72: Afectat sau NU? | BM72: - | BN72: -
A73: 58 | B73: - | C73: X | D73: Pregătire conductă 24” Paltin - Schitu Golești pentru transformare în conductă godevilabilă | E73: 16356 | F73: Podu Dâmboviței | G73: Argeș | H73: 515779.4133 | I73: 434408.4633 | J73: 515779.4133 | K73: 434408.4633 | L73: - | M73: - | N73: SM1088D0 | O73: Podu Dâmboviței | P73: - | Q73: - | R73: - | S73: - | T73: SM-SD001 | V73: SC Distrigaz Sud Rețele | W73: iulie - august 2021 | AB73: Brașov | AP73: PRRASM 2020_II_A_3 (Anexa 1) | BF73: Afectat sau NU? | BG73: - | BH73: - | BI73: Afectat sau NU? | BJ73: - | BK73: - | BL73: Afectat sau NU? | BM73: - | BN73: -
A74: 59 | B74: - | C74: X | D74: Pregătire conductă 24” Paltin - Schitu Golești pentru transformare în conductă godevilabilă | E74: 42272 | F74: Rucăr | G74: Argeș | H74: 514200.6351 | I74: 431834.6871 | J74: 514200.6351 | K74: 431834.6871 | L74: - | M74: - | N74: SM0938D0 | O74: Rucăr | P74: - | Q74: - | R74: - | S74: - | T74: SM-SD001 | V74: SC Distrigaz Sud Rețele | W74: iulie - august 2021 | AB74: Brașov | AP74: PRRASM 2020_II_A_3 (Anexa 1) | BF74: Afectat sau NU? | BG74: - | BH74: - | BI74: Afectat sau NU? | BJ74: - | BK74: - | BL74: Afectat sau NU? | BM74: - | BN74: -
A75: 60 | B75: - | C75: X | D75: Pregătire conductă 24” Paltin - Schitu Golești pentru transformare în conductă godevilabilă | E75: 41630 | F75: Poiana Mărului | G75: Brașov | H75: 523056.6423 | I75: 457084.3566 | J75: 523056.6423 | K75: 457084.3566 | L75: - | M75: - | N75: SM0212D0 | O75: Poiana Mărului | P75: - | Q75: - | R75: - | S75: - | T75: SM-SD001 | V75: SC Distrigaz Sud Rețele | W75: iulie - august 2021 | AB75: Brașov | AP75: PRRASM 2020_II_A_6 (Anexa 1) | BF75: Afectat sau NU? | BG75: - | BH75: - | BI75: Afectat sau NU? | BJ75: - | BK75: - | BL75: Afectat sau NU? | BM75: - | BN75: -
A76: 61 | B76: - | C76: X | D76: Pregătire conductă 24” Paltin - Schitu Golești pentru transformare în conductă godevilabilă | E76: 40508 | F76: Zărnești | G76: Brașov | H76: 525537.907 | I76: 451706.175 | J76: 525537.907 | K76: 451706.175 | L76: - | M76: - | N76: SM1251D0 | O76: DS Smith Paper Zărnești | P76: - | Q76: - | R76: - | S76: - | T76: SM-CF001 | V76: DS Smith Paper Zarnești SRL | W76: iulie - august 2021 | AB76: Brașov | AP76: PRRASM 2020_II_A_6 (Anexa 1) | BF76: Afectat sau NU? | BG76: - | BH76: - | BI76: Afectat sau NU? | BJ76: - | BK76: - | BL76: Afectat sau NU? | BM76: - | BN76: -
A77: 62 | B77: - | C77: X | D77: Pregătire conductă 24” Paltin - Schitu Golești pentru transformare în conductă godevilabilă | E77: 41480 | F77: Moieciu de Jos | G77: Brașov | H77: 520679.8634 | I77: 445316.5338 | J77: 520679.8634 | K77: 445316.5338 | L77: - | M77: - | N77: SM1139D0 | O77: Moieciu | P77: - | Q77: - | R77: - | S77: - | T77: SM-SD001 | V77: SC Premier Energy SRL | W77: iulie - august 2021 | AB77: Brașov | AP77: PRRASM 2020_II_A_6 (Anexa 1) | BF77: Afectat sau NU? | BG77: - | BH77: - | BI77: Afectat sau NU? | BJ77: - | BK77: - | BL77: Afectat sau NU? | BM77: - | BN77: -
A78: 63 | B78: - | C78: X | D78: Pregătirea conductei 20” Ișalnița - Cruce Ghercești pentru transformarea în conductă godevilabilă, zonele Melinești, CET II Craiova și Ghercești | E78: 72409 | F78: Ghercești | G78: Dolj | H78: 411337.3385 | I78: 315622.4637 | J78: 411337.3385 | K78: 315622.4637 | L78: - | M78: - | N78: - | O78: - | P78: PM0275 | Q78: Stația Centrală Ghercești Extras | R78: - | S78: - | T78: VPM01 | V78: Depogaz Ploiești | W78: 5 octombrie - 30 noiembrie 2020 8 februarie - 31 martie 2021 | AB78: Craiova | AD78: Întârzieri în aprovizionarea cu materialele necesare datorită pandemiei COVID | AP78: PRRASM 2020_II_A_5 (Anexa 1) | AR78: =IF(B78="X",IF(AN78="","Afectat sau NU?",IF(AN78="DA",IF(((AK78+AL78)-(AE78+AF78))*24<-720,"Neinformat",((AK78+AL78)-(AE78+AF78))*24),"Nu a fost afectat producator/consumator")),"") ->  | AS78: =IF(B78="X",IF(AN78="DA",IF(AR78<6,LEN(TRIM(V78))-LEN(SUBSTITUTE(V78,CHAR(44),""))+1,0),"-"),"") ->  | AT78: =IF(B78="X",IF(AN78="DA",LEN(TRIM(V78))-LEN(SUBSTITUTE(V78,CHAR(44),""))+1,"-"),"") ->  | AU78: =IF(B78="X",IF(AN78="","Afectat sau NU?",IF(AN78="DA",IF(((AI78+AJ78)-(AE78+AF78))*24<-720,"Neinformat",((AI78+AJ78)-(AE78+AF78))*24),"Nu a fost afectat producator/consumator")),"") ->  | AV78: =IF(B78="X",IF(AN78="DA",IF(AU78<6,LEN(TRIM(U78))-LEN(SUBSTITUTE(U78,CHAR(44),""))+1,0),"-"),"") ->  | AW78: =IF(B78="X",IF(AN78="DA",LEN(TRIM(U78))-LEN(SUBSTITUTE(U78,CHAR(44),""))+1,"-"),"") ->  | AX78: =IF(B78="X",IF(AN78="","Afectat sau NU?",IF(AN78="DA",((AG78+AH78)-(AE78+AF78))*24,"Nu a fost afectat producator/consumator")),"") ->  | AY78: =IF(B78="X",IF(AN78="DA",IF(AX78>24,IF(BA78="NU",0,LEN(TRIM(V78))-LEN(SUBSTITUTE(V78,CHAR(44),""))+1),0),"-"),"") ->  | AZ78: =IF(B78="X",IF(AN78="DA",IF(AX78>24,LEN(TRIM(V78))-LEN(SUBSTITUTE(V78,CHAR(44),""))+1,0),"-"),"") ->  | BF78: =IF(C78="X",IF(AN78="","Afectat sau NU?",IF(AN78="DA",IF(AK78="","Neinformat",NETWORKDAYS(AK78+AL78,AE78+AF78,$BS$2:$BS$14)-2),"Nu a fost afectat producator/consumator")),"") -> Afectat sau NU? | BG78: =IF(C78="X",IF(AN78="DA",IF(AND(BF78>=5,AK78<>""),LEN(TRIM(V78))-LEN(SUBSTITUTE(V78,CHAR(44),""))+1,0),"-"),"") -> - | BH78: =IF(C78="X",IF(AN78="DA",LEN(TRIM(V78))-LEN(SUBSTITUTE(V78,CHAR(44),""))+1,"-"),"") -> - | BI78: =IF(C78="X",IF(AN78="","Afectat sau NU?",IF(AN78="DA",IF(AI78="","Neinformat",NETWORKDAYS(AI78+AJ78,AE78+AF78,$BS$2:$BS$14)-2),"Nu a fost afectat producator/consumator")),"") -> Afectat sau NU? | BJ78: =IF(C78="X",IF(AN78="DA",IF(AND(BI78>=5,AI78<>""),LEN(TRIM(U78))-LEN(SUBSTITUTE(U78,CHAR(44),""))+1,0),"-"),"") -> - | BK78: =IF(C78="X",IF(AN78="DA",LEN(TRIM(U78))-LEN(SUBSTITUTE(U78,CHAR(44),""))+1,"-"),"") -> - | BL78: =IF(C78="X",IF(AN78="","Afectat sau NU?",IF(AN78="DA",((AG78+AH78)-(Z78+AA78))*24,"Nu a fost afectat producator/consumator")),"") -> Afectat sau NU? | BM78: =IF(C78="X",IF(AN78<>"DA","-",IF(AND(AN78="DA",BL78<=0),LEN(TRIM(V78))-LEN(SUBSTITUTE(V78,CHAR(44),""))+1+LEN(TRIM(U78))-LEN(SUBSTITUTE(U78,CHAR(44),""))+1,0)),"") -> - | BN78: =IF(C78="X",IF(AN78="DA",LEN(TRIM(V78))-LEN(SUBSTITUTE(V78,CHAR(44),""))+1+LEN(TRIM(U78))-LEN(SUBSTITUTE(U78,CHAR(44),""))+1,"-"),"") -> -
A79: 64 | B79: - | C79: X | D79: Pregătirea conductei 20” Ișalnița - Cruce Ghercești pentru transformarea în conductă godevilabilă, zonele Melinești, CET II Craiova și Ghercești | E79: 72409 | F79: Ghercești | G79: Dolj | H79: 404873.4365 | I79: 317922.641 | J79: 404873.4365 | K79: 317922.641 | L79: - | M79: - | N79: SM1142D0 | O79: Stația Centrală Ghercești Înmagazinat | P79: - | Q79: - | R79: - | S79: - | T79: VSM01 | V79: Depogaz Ploiești | W79: 5 octombrie - 30 noiembrie 2020 8 februarie - 31 martie 2021 | AB79: Craiova | AD79: Întârzieri în aprovizionarea cu materialele necesare datorită pandemiei COVID | AP79: PRRASM 2020_II_A_5 (Anexa 1) | BF79: Afectat sau NU? | BG79: - | BH79: - | BI79: Afectat sau NU? | BJ79: - | BK79: - | BL79: Afectat sau NU? | BM79: - | BN79: -
A80: 65 | B80: - | C80: X | D80: Pregătirea conductei 20” Ișalnița - Cruce Ghercești pentru transformarea în conductă godevilabilă, zonele Melinești, CET II Craiova și Ghercești | E80: 73246 | F80: Mischii | G80: Dolj | H80: 410109.2022 | I80: 320464.259 | J80: 410109.2022 | K80: 320464.259 | L80: - | M80: - | N80: SM1037D0 | O80: Mischii | P80: - | Q80: - | R80: - | S80: - | T80: SM-SD001 | V80: SC Distrigaz Sud Rețele | W80: 5 octombrie - 30 noiembrie 2020 8 februarie - 31 martie 2021 | AB80: Craiova | AD80: Întârzieri în aprovizionarea cu materialele necesare datorită pandemiei COVID | AP80: PRRASM 2020_II_A_5 (Anexa 1) | BF80: Afectat sau NU? | BG80: - | BH80: - | BI80: Afectat sau NU? | BJ80: - | BK80: - | BL80: Afectat sau NU? | BM80: - | BN80: -
A81: 66 | B81: - | C81: X | D81: Pregătirea conductei 20” Ișalnița - Cruce Ghercești pentru transformarea în conductă godevilabilă, zonele Melinești, CET II Craiova și Ghercești | E81: 72418 | F81: Ghercești | G81: Dolj | H81: 412675.233 | I81: 316838.1307 | J81: 412675.233 | K81: 316838.1307 | L81: - | M81: - | N81: SM1146D0 | O81: Ghercești | P81: - | Q81: - | R81: - | S81: - | T81: SM-SD001 | V81: SNGN Romgaz SA - Distribuție | W81: 5 octombrie - 30 noiembrie 2020 8 februarie - 31 martie 2021 | AB81: Craiova | AD81: Întârzieri în aprovizionarea cu materialele necesare datorită pandemiei COVID | AP81: PRRASM 2020_II_A_5 (Anexa 1) | BF81: Afectat sau NU? | BG81: - | BH81: - | BI81: Afectat sau NU? | BJ81: - | BK81: - | BL81: Afectat sau NU? | BM81: - | BN81: -
A82: 67 | B82: - | C82: X | D82: Pregătirea conductei 20” Ișalnița - Cruce Ghercești pentru transformarea în conductă godevilabilă, zonele Melinești, CET II Craiova și Ghercești | E82: 72409 | F82: Ghercești | G82: Dolj | H82: 409849.8983 | I82: 314332.0136 | J82: 409849.8983 | K82: 314332.0136 | L82: - | M82: - | N82: SM1194D0 | O82: Ghercești II | P82: - | Q82: - | R82: - | S82: - | T82: SM-SD001 | V82: SNGN Romgaz SA - Distribuție | W82: 5 octombrie - 30 noiembrie 2020 8 februarie - 31 martie 2021 | AB82: Craiova | AD82: Întârzieri în aprovizionarea cu materialele necesare datorită pandemiei COVID | AP82: PRRASM 2020_II_A_5 (Anexa 1) | BF82: Afectat sau NU? | BG82: - | BH82: - | BI82: Afectat sau NU? | BJ82: - | BK82: - | BL82: Afectat sau NU? | BM82: - | BN82: -
A83: =SUM(1,A82) -> 68 | B83: - | C83: X | D83: Pregătirea conductei 20” Ișalnița - Cruce Ghercești pentru transformarea în conductă godevilabilă, zonele Melinești, CET II Craiova și Ghercești | E83: 73629 | F83: Pielești | G83: Dolj | H83: 414077.2752 | I83: 316502.8502 | J83: 414077.2752 | K83: 316502.8502 | L83: - | M83: - | N83: SM1187D0 | O83: Pielești | P83: - | Q83: - | R83: - | S83: - | T83: SM-SD001 | V83: SC Megaconstruct SA | W83: 5 octombrie - 30 noiembrie 2020 8 februarie - 31 martie 2021 | AB83: Craiova | AD83: Întârzieri în aprovizionarea cu materialele necesare datorită pandemiei COVID | AP83: PRRASM 2020_II_A_5 (Anexa 1) | BF83: Afectat sau NU? | BG83: - | BH83: - | BI83: Afectat sau NU? | BJ83: - | BK83: - | BL83: Afectat sau NU? | BM83: - | BN83: -
A84: 69 | B84: - | C84: X | D84: Pregătirea conductei 20” Ișalnița - Cruce Ghercești pentru transformarea în conductă godevilabilă, zonele Melinești, CET II Craiova și Ghercești | E84: 69900 | F84: Craiova | G84: Dolj | H84: 404921.2652 | I84: 317959.3772 | J84: 404921.2652 | K84: 317959.3772 | L84: - | M84: - | N84: SM1158D0 | O84: CET Craiova II | P84: - | Q84: - | R84: - | S84: - | T84: SM-CF001 | V84: Complexul Energetic Oltenia | W84: 5 octombrie - 30 noiembrie 2020 8 februarie - 31 martie 2021 | AB84: Craiova | AD84: Întârzieri în aprovizionarea cu materialele necesare datorită pandemiei COVID | AP84: PRRASM 2020_II_A_5 (Anexa 1) | BF84: Afectat sau NU? | BG84: - | BH84: - | BI84: Afectat sau NU? | BJ84: - | BK84: - | BL84: Afectat sau NU? | BM84: - | BN84: -
A85: 70 | B85: - | C85: X | D85: Pregătirea conductei 20” Ișalnița - Cruce Ghercești pentru transformarea în conductă godevilabilă, zonele Melinești, CET II Craiova și Ghercești | E85: 69900 | F85: Craiova | G85: Dolj | H85: 408229.2898 | I85: 311000.1356 | J85: 408229.2898 | K85: 311000.1356 | L85: - | M85: - | N85: SM0209D1 | O85: SC Ford Combinat | P85: - | Q85: - | R85: - | S85: - | T85: SM-CF001 | V85: SC Ford România SA | W85: 5 octombrie - 30 noiembrie 2020 8 februarie - 31 martie 2021 | AB85: Craiova | AD85: Întârzieri în aprovizionarea cu materialele necesare datorită pandemiei COVID | AP85: PRRASM 2020_II_A_5 (Anexa 1) | BF85: Afectat sau NU? | BG85: - | BH85: - | BI85: Afectat sau NU? | BJ85: - | BK85: - | BL85: Afectat sau NU? | BM85: - | BN85: -
A86: 71 | B86: - | C86: X | D86: Pregătirea conductei 20” Ișalnița - Cruce Ghercești pentru transformarea în conductă godevilabilă, zonele Melinești, CET II Craiova și Ghercești | E86: 69900 | F86: Craiova | G86: Dolj | H86: 408229.2898 | I86: 311000.1356 | J86: 408229.2898 | K86: 311000.1356 | L86: - | M86: - | N86: SM0209D2 | O86: Ford Craiova Casnici | P86: - | Q86: - | R86: - | S86: - | T86: SM-SD001 | V86: SC Distrigaz Sud Rețele | W86: 5 octombrie - 30 noiembrie 2020 8 februarie - 31 martie 2021 | AB86: Craiova | AD86: Întârzieri în aprovizionarea cu materialele necesare datorită pandemiei COVID | AP86: PRRASM 2020_II_A_5 (Anexa 1) | BF86: Afectat sau NU? | BG86: - | BH86: - | BI86: Afectat sau NU? | BJ86: - | BK86: - | BL86: Afectat sau NU? | BM86: - | BN86: -
A87: 72 | B87: - | C87: X | D87: Pregătirea conductei 20” Ișalnița - Cruce Ghercești pentru transformarea în conductă godevilabilă, zonele Melinești, CET II Craiova și Ghercești | E87: 69900 | F87: Craiova | G87: Dolj | H87: 404628.8399 | I87: 311354.1039 | J87: 404628.8399 | K87: 311354.1039 | L87: - | M87: - | N87: SM0208D0 | O87: Craiova Sud | P87: - | Q87: - | R87: - | S87: - | T87: SM-SD001 | V87: SC Distrigaz Sud Rețele | W87: 5 octombrie - 30 noiembrie 2020 8 februarie - 31 martie 2021 | AB87: Craiova | AD87: Întârzieri în aprovizionarea cu materialele necesare datorită pandemiei COVID | AP87: PRRASM 2020_II_A_5 (Anexa 1) | BF87: Afectat sau NU? | BG87: - | BH87: - | BI87: Afectat sau NU? | BJ87: - | BK87: - | BL87: Afectat sau NU? | BM87: - | BN87: -
A88: 73 | B88: - | C88: X | D88: Pregătirea conductei 20” Ișalnița - Cruce Ghercești pentru transformarea în conductă godevilabilă, zonele Melinești, CET II Craiova și Ghercești | E88: 70110 | F88: Podari | G88: Dolj | H88: 404627.6737 | I88: 311347.6397 | J88: 404627.6737 | K88: 311347.6397 | L88: - | M88: - | N88: SM1053D0 | O88: Podari | P88: - | Q88: - | R88: - | S88: - | T88: SM-SD001 | V88: SC Distrigaz Sud Rețele | W88: 5 octombrie - 30 noiembrie 2020 8 februarie - 31 martie 2021 | AB88: Craiova | AD88: Întârzieri în aprovizionarea cu materialele necesare datorită pandemiei COVID | AP88: PRRASM 2020_II_A_5 (Anexa 1) | BF88: Afectat sau NU? | BG88: - | BH88: - | BI88: Afectat sau NU? | BJ88: - | BK88: - | BL88: Afectat sau NU? | BM88: - | BN88: -
A89: 74 | B89: - | C89: X | D89: Reparație 6" racord alimentare ELSID Titu, zona SRM Elsid | E89: 66090 | F89: Titu | G89: Dâmbovița | H89: 544542.72 | I89: 352331.07 | J89: 544542.72 | K89: 352331.07 | L89: - | M89: - | N89: SM0147D0 | O89: SC Elsid Titu | P89: - | Q89: - | R89: - | S89: - | T89: SM-CF001 | U89: E.on Energie | V89: SC Elsid SA | W89: 5 octombrie - 30 noiembrie 2020 14 - 31 decembrie 2020 | X89: 2020-12-21 | Y89: 08:00:00 | Z89: 2020-12-21 | AA89: 18:00:00 | AB89: București | AC89: Efectuată | AD89: Imposibilitate oprire alimentare cu gaze naturale datorită consumatorului direct ELSID, care pe perioada 09.11 - 10.12.2020 are instalația de calcinare în funcțiune. | AE89: 2020-12-21 | AF89: 08:00:00 | AG89: 2020-12-21 | AH89: 17:10:00 | AI89: 2020-12-07 | AJ89: 14:12:00 | AK89: 2020-12-07 | AL89: 13:37:00 | AM89: 5269/15.12.2020 | AN89: DA | AP89: PRRASM 2020_I_A_1 (Anexa 1) | BF89: 9 | BG89: 1 | BH89: 1 | BI89: 9 | BJ89: 1 | BK89: 1 | BL89: -0.8333333333 | BM89: 2 | BN89: 2
A90: 75 | B90: - | C90: X | D90: Lucrări de mentenanță în cadrul SRM Vlădeni | E90: 67265 | F90: Vlădeni | G90: Dâmbovița | H90: 561830.12 | I90: 373144.01 | J90: 567501.55 | K90: 372878.02 | L90: - | M90: - | N90: SM0137D0 | O90: Vlădeni | P90: - | Q90: - | R90: - | S90: - | T90: SM-SD001 | U90: Aderro GP, Alpha Metal, Nova Power, Cez Vânzare, Cis Gaz, Conef Gaz, Crest Energy, Cyeb, Distrigaz Vest, Engie, E.On Energie, Electrocentrale București, Electrocentrale Constanța, Electrica Furnizare, Electric Planners, Electric&Gas, Energy Distribution, Enel, Enel Muntenia, Gas&Power, Entrex, Euro Seven Industry, Premier Energy Trading, Gaz Est, Hargaz, Megaconstruct, Met România, Monsson, Next Energy, Nord Gaz, Oligopol, Premier Energy, Petrom, Progaz, Energy Gas Provider, Renovatio, Restart Energy, Romgaz, RWE Supply, Tinmar, Transenergo, AIK România, Veolia, WIEE | V90: Distrigaz Sud Rețele | W90: 5 octombrie - 30 noiembrie 2020 18 - 31 decembrie 2020 februarie - martie 2021 | AB90: București | AD90: Lucrarea se va executa concomitent cu lucrarea de la pozițiile 33 - 35 | AP90: Lucrare realizată cu Sucursala Mediaș între lucrările planificate din Programul acesteia | AR90: =IF(B90="X",IF(AN90="","Afectat sau NU?",IF(AN90="DA",IF(((AK90+AL90)-(AE90+AF90))*24<-720,"Neinformat",((AK90+AL90)-(AE90+AF90))*24),"Nu a fost afectat producator/consumator")),"") ->  | AS90: =IF(B90="X",IF(AN90="DA",IF(AR90<6,LEN(TRIM(V90))-LEN(SUBSTITUTE(V90,CHAR(44),""))+1,0),"-"),"") ->  | AT90: =IF(B90="X",IF(AN90="DA",LEN(TRIM(V90))-LEN(SUBSTITUTE(V90,CHAR(44),""))+1,"-"),"") ->  | AU90: =IF(B90="X",IF(AN90="","Afectat sau NU?",IF(AN90="DA",IF(((AI90+AJ90)-(AE90+AF90))*24<-720,"Neinformat",((AI90+AJ90)-(AE90+AF90))*24),"Nu a fost afectat producator/consumator")),"") ->  | AV90: =IF(B90="X",IF(AN90="DA",IF(AU90<6,LEN(TRIM(U90))-LEN(SUBSTITUTE(U90,CHAR(44),""))+1,0),"-"),"") ->  | AW90: =IF(B90="X",IF(AN90="DA",LEN(TRIM(U90))-LEN(SUBSTITUTE(U90,CHAR(44),""))+1,"-"),"") ->  | AX90: =IF(B90="X",IF(AN90="","Afectat sau NU?",IF(AN90="DA",((AG90+AH90)-(AE90+AF90))*24,"Nu a fost afectat producator/consumator")),"") ->  | AY90: =IF(B90="X",IF(AN90="DA",IF(AX90>24,IF(BA90="NU",0,LEN(TRIM(V90))-LEN(SUBSTITUTE(V90,CHAR(44),""))+1),0),"-"),"") ->  | AZ90: =IF(B90="X",IF(AN90="DA",IF(AX90>24,LEN(TRIM(V90))-LEN(SUBSTITUTE(V90,CHAR(44),""))+1,0),"-"),"") ->  | BF90: =IF(C90="X",IF(AN90="","Afectat sau NU?",IF(AN90="DA",IF(AK90="","Neinformat",NETWORKDAYS(AK90+AL90,AE90+AF90,$BS$2:$BS$14)-2),"Nu a fost afectat producator/consumator")),"") -> Afectat sau NU? | BG90: =IF(C90="X",IF(AN90="DA",IF(AND(BF90>=5,AK90<>""),LEN(TRIM(V90))-LEN(SUBSTITUTE(V90,CHAR(44),""))+1,0),"-"),"") -> - | BH90: =IF(C90="X",IF(AN90="DA",LEN(TRIM(V90))-LEN(SUBSTITUTE(V90,CHAR(44),""))+1,"-"),"") -> - | BI90: =IF(C90="X",IF(AN90="","Afectat sau NU?",IF(AN90="DA",IF(AI90="","Neinformat",NETWORKDAYS(AI90+AJ90,AE90+AF90,$BS$2:$BS$14)-2),"Nu a fost afectat producator/consumator")),"") -> Afectat sau NU? | BJ90: =IF(C90="X",IF(AN90="DA",IF(AND(BI90>=5,AI90<>""),LEN(TRIM(U90))-LEN(SUBSTITUTE(U90,CHAR(44),""))+1,0),"-"),"") -> - | BK90: =IF(C90="X",IF(AN90="DA",LEN(TRIM(U90))-LEN(SUBSTITUTE(U90,CHAR(44),""))+1,"-"),"") -> - | BL90: =IF(C90="X",IF(AN90="","Afectat sau NU?",IF(AN90="DA",((AG90+AH90)-(Z90+AA90))*24,"Nu a fost afectat producator/consumator")),"") -> Afectat sau NU? | BM90: =IF(C90="X",IF(AN90<>"DA","-",IF(AND(AN90="DA",BL90<=0),LEN(TRIM(V90))-LEN(SUBSTITUTE(V90,CHAR(44),""))+1+LEN(TRIM(U90))-LEN(SUBSTITUTE(U90,CHAR(44),""))+1,0)),"") -> - | BN90: =IF(C90="X",IF(AN90="DA",LEN(TRIM(V90))-LEN(SUBSTITUTE(V90,CHAR(44),""))+1+LEN(TRIM(U90))-LEN(SUBSTITUTE(U90,CHAR(44),""))+1,"-"),"") -> -
A91: 76 | B91: - | C91: X | D91: Lucrări de sistematizare a înstalației tehnologice SRM Gura Suții | E91: 65690 | F91: Găești | G91: Dimbovita | H91: 540272 | I91: 360540 | J91: 540272 | K91: 360540 | L91: - | M91: - | N91: SM0877D2 | O91: Gura Șuții - Găești | P91: - | Q91: - | R91: - | S91: - | T91: SM-SD001 | V91: Distrigaz Sud Rețele | W91: 5 octombrie - 30 noiembrie 2020 | AB91: București | AC91: Efectuată (Nu a mai fost necesară întreruperea) | AP91: Lucrare realizată cu Sucursala Mediaș între lucrările planificate din Programul acesteia | BF91: Afectat sau NU? | BG91: - | BH91: - | BI91: Afectat sau NU? | BJ91: - | BK91: - | BL91: Afectat sau NU? | BM91: - | BN91: -
A92: 77 | B92: - | C92: X | D92: Lucrări de sistematizare a înstalației tehnologice SRM Gura Suții | E92: 67657 | F92: Gura Șuții | G92: Dimbovita | H92: 540272 | I92: 360540 | J92: 540272 | K92: 360540 | L92: - | M92: - | N92: SM0877D1 | O92: Gura Șuții | P92: - | Q92: - | R92: - | S92: - | T92: SM-SD001 | V92: Distrigaz Sud Rețele | W92: 5 octombrie - 30 noiembrie 2020 | AB92: București | AC92: Efectuată (Nu a mai fost necesară întreruperea) | AP92: Lucrare realizată cu Sucursala Mediaș între lucrările planificate din Programul acesteia | BF92: Afectat sau NU? | BG92: - | BH92: - | BI92: Afectat sau NU? | BJ92: - | BK92: - | BL92: Afectat sau NU? | BM92: - | BN92: -
A93: 78 | B93: - | C93: X | D93: Lucrări de sistematizare a înstalației tehnologice SRM Gura Suții | E93: 66090 | F93: Titu | G93: Dimbovita | H93: 540271.56 | I93: 360541.04 | J93: 540271.56 | K93: 360541.04 | L93: - | M93: - | N93: SM0147D0 | O93: SC ELSID Titu | P93: - | Q93: - | R93: - | S93: - | T93: SM-CF001 | V93: SC ELSID SA | W93: 5 octombrie - 30 noiembrie 2020 | AB93: București | AC93: Efectuată (Nu a mai fost necesară întreruperea) | AP93: Lucrare realizată cu Sucursala Mediaș între lucrările planificate din Programul acesteia | BF93: Afectat sau NU? | BG93: - | BH93: - | BI93: Afectat sau NU? | BJ93: - | BK93: - | BL93: Afectat sau NU? | BM93: - | BN93: -
A94: 79 | B94: - | C94: X | D94: Reparație conductă 4'' racord SRM Zagna Vădeni, zona Vădeni | E94: 44408 | F94: Vădeni | G94: Brăila | H94: 728803.97 | I94: 433053.5 | J94: 728803.97 | K94: 433053.5 | L94: - | M94: - | N94: SM0532D0 | O94: Zagna Vădeni | P94: - | Q94: - | R94: - | S94: - | T94: SM-SD001 | V94: Distrigaz Sud Rețele | W94: aprilie - septembrie 2021 | AB94: Brăila | AP94: Sucursala A_13 | BF94: Afectat sau NU? | BG94: - | BH94: - | BI94: Afectat sau NU? | BJ94: - | BK94: - | BL94: Afectat sau NU? | BM94: - | BN94: -
A95: 80 | B95: X | C95: - | D95: Eliminare emanații la robinetul RF12 în SRM Rulmentul Bârlad | E95: 161801 | F95: Bârlad | G95: Vaslui | H95: 706749.84 | I95: 532319.88 | J95: 706749.84 | K95: 532319.88 | L95: - | M95: - | N95: SM0978D0 | O95: Rulmenți Bârlad | P95: - | Q95: - | R95: - | S95: - | T95: SM-CF001 | U95: Power&Gas, Cez Vânzare | V95: SC Rulmenți SA | W95: - | X95: 2020-10-03 | Y95: 08:05:00 | Z95: 2020-10-03 | AA95: 11:00:00 | AB95: Brăila | AC95: Efectuată | AE95: 2020-10-03 | AF95: 08:05:00 | AG95: 2020-10-03 | AH95: 09:35:00 | AI95: 2020-10-03 | AJ95: 08:24:00 | AK95: 2020-10-03 | AL95: 08:11:00 | AM95: 5720/29.09.2020 | AN95: DA | AR95: =IF(B95="X",IF(AN95="","Afectat sau NU?",IF(AN95="DA",IF(((AK95+AL95)-(AE95+AF95))*24<-720,"Neinformat",((AK95+AL95)-(AE95+AF95))*24),"Nu a fost afectat producator/consumator")),"") -> 0.09999999998 | AS95: =IF(B95="X",IF(AN95="DA",IF(AR95<6,LEN(TRIM(V95))-LEN(SUBSTITUTE(V95,CHAR(44),""))+1,0),"-"),"") -> 1 | AT95: =IF(B95="X",IF(AN95="DA",LEN(TRIM(V95))-LEN(SUBSTITUTE(V95,CHAR(44),""))+1,"-"),"") -> 1 | AU95: =IF(B95="X",IF(AN95="","Afectat sau NU?",IF(AN95="DA",IF(((AI95+AJ95)-(AE95+AF95))*24<-720,"Neinformat",((AI95+AJ95)-(AE95+AF95))*24),"Nu a fost afectat producator/consumator")),"") -> 0.3166666667 | AV95: =IF(B95="X",IF(AN95="DA",IF(AU95<6,LEN(TRIM(U95))-LEN(SUBSTITUTE(U95,CHAR(44),""))+1,0),"-"),"") -> 2 | AW95: =IF(B95="X",IF(AN95="DA",LEN(TRIM(U95))-LEN(SUBSTITUTE(U95,CHAR(44),""))+1,"-"),"") -> 2 | AX95: =IF(B95="X",IF(AN95="","Afectat sau NU?",IF(AN95="DA",((AG95+AH95)-(AE95+AF95))*24,"Nu a fost afectat producator/consumator")),"") -> 1.5 | AY95: =IF(B95="X",IF(AN95="DA",IF(AX95>24,IF(BA95="NU",0,LEN(TRIM(V95))-LEN(SUBSTITUTE(V95,CHAR(44),""))+1),0),"-"),"") -> 0 | AZ95: =IF(B95="X",IF(AN95="DA",IF(AX95>24,LEN(TRIM(V95))-LEN(SUBSTITUTE(V95,CHAR(44),""))+1,0),"-"),"") -> 0 | BF95: =IF(C95="X",IF(AN95="","Afectat sau NU?",IF(AN95="DA",IF(AK95="","Neinformat",NETWORKDAYS(AK95+AL95,AE95+AF95,$BS$2:$BS$14)-2),"Nu a fost afectat producator/consumator")),"") ->  | BG95: =IF(C95="X",IF(AN95="DA",IF(AND(BF95>=5,AK95<>""),LEN(TRIM(V95))-LEN(SUBSTITUTE(V95,CHAR(44),""))+1,0),"-"),"") ->  | BH95: =IF(C95="X",IF(AN95="DA",LEN(TRIM(V95))-LEN(SUBSTITUTE(V95,CHAR(44),""))+1,"-"),"") ->  | BI95: =IF(C95="X",IF(AN95="","Afectat sau NU?",IF(AN95="DA",IF(AI95="","Neinformat",NETWORKDAYS(AI95+AJ95,AE95+AF95,$BS$2:$BS$14)-2),"Nu a fost afectat producator/consumator")),"") ->  | BJ95: =IF(C95="X",IF(AN95="DA",IF(AND(BI95>=5,AI95<>""),LEN(TRIM(U95))-LEN(SUBSTITUTE(U95,CHAR(44),""))+1,0),"-"),"") ->  | BK95: =IF(C95="X",IF(AN95="DA",LEN(TRIM(U95))-LEN(SUBSTITUTE(U95,CHAR(44),""))+1,"-"),"") ->  | BL95: =IF(C95="X",IF(AN95="","Afectat sau NU?",IF(AN95="DA",((AG95+AH95)-(Z95+AA95))*24,"Nu a fost afectat producator/consumator")),"") ->  | BM95: =IF(C95="X",IF(AN95<>"DA","-",IF(AND(AN95="DA",BL95<=0),LEN(TRIM(V95))-LEN(SUBSTITUTE(V95,CHAR(44),""))+1+LEN(TRIM(U95))-LEN(SUBSTITUTE(U95,CHAR(44),""))+1,0)),"") ->  | BN95: =IF(C95="X",IF(AN95="DA",LEN(TRIM(V95))-LEN(SUBSTITUTE(V95,CHAR(44),""))+1+LEN(TRIM(U95))-LEN(SUBSTITUTE(U95,CHAR(44),""))+1,"-"),"") -> 
A96: 81 | B96: X | C96: - | D96: Înlocuire robinet defect în SRM Chițcani | E96: 163155 | F96: Chițcani | G96: Vaslui | H96: 715362.07 | I96: 550449.77 | J96: 715362.07 | K96: 550449.77 | L96: - | M96: - | N96: SM1114D0 | O96: Chițcani | P96: - | Q96: - | R96: - | S96: - | T96: SM-SD001 | U96: Aderro, Power&Gas, Cez Vânzare, CIS Gaz, Engie România, E.On Energie, Electrica Furnizare, Electric&Gas, Energy Distribution, Enel Energie, Enel Energie Muntenia, Gas&Power, Premier Energy Trading, Gaz Est, Gaz Vest, Met România, Premier Energy, Petrom, Renovatio, Restart Energy, Safi-Star, Tinmar, AIK Energy | V96: Gaz Est | W96: - | X96: 2020-10-03 | Y96: 12:10:00 | Z96: 2020-10-03 | AA96: 14:00:00 | AB96: Brăila | AC96: Efectuată | AE96: 2020-10-03 | AF96: 12:10:00 | AG96: 2020-10-03 | AH96: 12:35:00 | AI96: 2020-10-03 | AJ96: 12:25:00 | AK96: 2020-10-03 | AL96: 12:15:00 | AM96: 5719/29.09.2020 | AN96: DA | AR96: 0.08333333326 | AS96: 1 | AT96: 1 | AU96: 0.2499999999 | AV96: 23 | AW96: 23 | AX96: 0.4166666666 | AY96: 0 | AZ96: 0
A97: 82 | B97: X | C97: - | D97: Înlocuire cupon pe conducta 4" racord SRM Zagna Vădeni | E97: 44408 | F97: Vădeni | G97: Brăila | H97: 728803.97 | I97: 433053.5 | J97: 728803.97 | K97: 433053.5 | L97: - | M97: - | N97: SM0532D0 | O97: Zagna Vădeni | P97: - | Q97: - | R97: - | S97: - | T97: SM-SD001 | U97: Aderro GP, Alpha Metal, Nova Power, Cez Vânzare, Cis Gaz, Conef Gaz, Crest Energy, Cyeb, Distrigaz Vest, Engie, E.On Energie, Electrocentrale București, Electrocentrale Constanța, Electrica Furnizare, Electric Planners, Electric&Gas, Energy Distribution, Enel Energie, Enel Muntenia, Gas&Power, Entrex, Euro Seven Industry, Premier Energy Trading, Gaz Est, Hargaz, Gaz Vest, Megaconstruct, Met România, Monsson, Next Energy Distribution, Next Energy Parteners, Nord Gaz, Oligopol, Premier Energy, Petrom, Progaz, Energy Gas Provider, Renovatio, Res Energy Solutions, Restart Energy, Romgaz, RWE Supply, Tinmar, Transenergo, AIK România, Veolia, Wiee România | V97: Distrigaz Sud Rețele | W97: - | X97: 2020-10-08 | Y97: 07:05:00 | Z97: 2020-10-08 | AA97: 15:00:00 | AB97: Brăila | AC97: Efectuată | AE97: 2020-10-08 | AF97: 07:05:00 | AG97: 2020-10-08 | AH97: 13:20:00 | AI97: 2020-10-08 | AJ97: 07:37:00 | AK97: 2020-10-08 | AL97: 07:15:00 | AM97: 5901/06.10.2020 | AN97: DA | AR97: =IF(B97="X",IF(AN97="","Afectat sau NU?",IF(AN97="DA",IF(((AK97+AL97)-(AE97+AF97))*24<-720,"Neinformat",((AK97+AL97)-(AE97+AF97))*24),"Nu a fost afectat producator/consumator")),"") -> 0.1666666667 | AS97: =IF(B97="X",IF(AN97="DA",IF(AR97<6,LEN(TRIM(V97))-LEN(SUBSTITUTE(V97,CHAR(44),""))+1,0),"-"),"") -> 1 | AT97: =IF(B97="X",IF(AN97="DA",LEN(TRIM(V97))-LEN(SUBSTITUTE(V97,CHAR(44),""))+1,"-"),"") -> 1 | AU97: =IF(B97="X",IF(AN97="","Afectat sau NU?",IF(AN97="DA",IF(((AI97+AJ97)-(AE97+AF97))*24<-720,"Neinformat",((AI97+AJ97)-(AE97+AF97))*24),"Nu a fost afectat producator/consumator")),"") -> 0.5333333333 | AV97: =IF(B97="X",IF(AN97="DA",IF(AU97<6,LEN(TRIM(U97))-LEN(SUBSTITUTE(U97,CHAR(44),""))+1,0),"-"),"") -> 47 | AW97: =IF(B97="X",IF(AN97="DA",LEN(TRIM(U97))-LEN(SUBSTITUTE(U97,CHAR(44),""))+1,"-"),"") -> 47 | AX97: =IF(B97="X",IF(AN97="","Afectat sau NU?",IF(AN97="DA",((AG97+AH97)-(AE97+AF97))*24,"Nu a fost afectat producator/consumator")),"") -> 6.25 | AY97: =IF(B97="X",IF(AN97="DA",IF(AX97>24,IF(BA97="NU",0,LEN(TRIM(V97))-LEN(SUBSTITUTE(V97,CHAR(44),""))+1),0),"-"),"") -> 0 | AZ97: =IF(B97="X",IF(AN97="DA",IF(AX97>24,LEN(TRIM(V97))-LEN(SUBSTITUTE(V97,CHAR(44),""))+1,0),"-"),"") -> 0 | BF97: =IF(C97="X",IF(AN97="","Afectat sau NU?",IF(AN97="DA",IF(AK97="","Neinformat",NETWORKDAYS(AK97+AL97,AE97+AF97,$BS$2:$BS$14)-2),"Nu a fost afectat producator/consumator")),"") ->  | BG97: =IF(C97="X",IF(AN97="DA",IF(AND(BF97>=5,AK97<>""),LEN(TRIM(V97))-LEN(SUBSTITUTE(V97,CHAR(44),""))+1,0),"-"),"") ->  | BH97: =IF(C97="X",IF(AN97="DA",LEN(TRIM(V97))-LEN(SUBSTITUTE(V97,CHAR(44),""))+1,"-"),"") ->  | BI97: =IF(C97="X",IF(AN97="","Afectat sau NU?",IF(AN97="DA",IF(AI97="","Neinformat",NETWORKDAYS(AI97+AJ97,AE97+AF97,$BS$2:$BS$14)-2),"Nu a fost afectat producator/consumator")),"") ->  | BJ97: =IF(C97="X",IF(AN97="DA",IF(AND(BI97>=5,AI97<>""),LEN(TRIM(U97))-LEN(SUBSTITUTE(U97,CHAR(44),""))+1,0),"-"),"") ->  | BK97: =IF(C97="X",IF(AN97="DA",LEN(TRIM(U97))-LEN(SUBSTITUTE(U97,CHAR(44),""))+1,"-"),"") ->  | BL97: =IF(C97="X",IF(AN97="","Afectat sau NU?",IF(AN97="DA",((AG97+AH97)-(Z97+AA97))*24,"Nu a fost afectat producator/consumator")),"") ->  | BM97: =IF(C97="X",IF(AN97<>"DA","-",IF(AND(AN97="DA",BL97<=0),LEN(TRIM(V97))-LEN(SUBSTITUTE(V97,CHAR(44),""))+1+LEN(TRIM(U97))-LEN(SUBSTITUTE(U97,CHAR(44),""))+1,0)),"") ->  | BN97: =IF(C97="X",IF(AN97="DA",LEN(TRIM(V97))-LEN(SUBSTITUTE(V97,CHAR(44),""))+1+LEN(TRIM(U97))-LEN(SUBSTITUTE(U97,CHAR(44),""))+1,"-"),"") -> 
A98: 83 | B98: X | C98: - | D98: Înlocuire robinet R2 și R3 în SRM Mihăești AG | E98: 17263 | F98: Mihăești | G98: Argeș | H98: 500598.14 | I98: 401110.15 | J98: 500598.14 | K98: 401110.15 | L98: - | M98: - | N98: SM1243D0 | O98: Mihăești AG | P98: - | Q98: - | R98: - | S98: - | T98: SM-SD001 | U98: Aderro GP, Alpha Metal, Nova Power, Cez Vânzare, Cis Gaz, Conef Gaz, Crest Energy, Cyeb, Distrigaz Vest, Engie, E.On Energie, Electrocentrale București, Electrocentrale Constanța, Electrica Furnizare, Electric Planners, Electric&Gas, Energy Distribution, Enel Energie, Enel Muntenia, Gas&Power, Entrex, Euro Seven Industry, Premier Energy Trading, Gaz Est, Hargaz, Gaz Vest, Megaconstruct, Met România, Monsson, Next Energy Distribution, Next Energy Parteners, Nord Gaz, Oligopol, Premier Energy, Petrom, Progaz, Energy Gas Provider, Renovatio, Res Energy Solutions, Restart Energy, Romgaz, RWE Supply, Tinmar, Transenergo, AIK România, Veolia, Wiee România | V98: Distrigaz Sud Rețele | W98: - | X98: 2020-10-14 | Y98: 09:35:00 | Z98: 2020-10-14 | AA98: 14:00:00 | AB98: Craiova | AC98: Efectuată | AE98: 2020-10-14 | AF98: 09:35:00 | AG98: 2020-10-14 | AH98: 13:25:00 | AI98: 2020-10-14 | AJ98: 09:46:00 | AK98: 2020-10-14 | AL98: 09:36:00 | AM98: 2450/13.10.2020 | AN98: DA | AR98: =IF(B98="X",IF(AN98="","Afectat sau NU?",IF(AN98="DA",IF(((AK98+AL98)-(AE98+AF98))*24<-720,"Neinformat",((AK98+AL98)-(AE98+AF98))*24),"Nu a fost afectat producator/consumator")),"") -> 0.01666666672 | AS98: =IF(B98="X",IF(AN98="DA",IF(AR98<6,LEN(TRIM(V98))-LEN(SUBSTITUTE(V98,CHAR(44),""))+1,0),"-"),"") -> 1 | AT98: =IF(B98="X",IF(AN98="DA",LEN(TRIM(V98))-LEN(SUBSTITUTE(V98,CHAR(44),""))+1,"-"),"") -> 1 | AU98: =IF(B98="X",IF(AN98="","Afectat sau NU?",IF(AN98="DA",IF(((AI98+AJ98)-(AE98+AF98))*24<-720,"Neinformat",((AI98+AJ98)-(AE98+AF98))*24),"Nu a fost afectat producator/consumator")),"") -> 0.1833333334 | AV98: =IF(B98="X",IF(AN98="DA",IF(AU98<6,LEN(TRIM(U98))-LEN(SUBSTITUTE(U98,CHAR(44),""))+1,0),"-"),"") -> 47 | AW98: =IF(B98="X",IF(AN98="DA",LEN(TRIM(U98))-LEN(SUBSTITUTE(U98,CHAR(44),""))+1,"-"),"") -> 47 | AX98: =IF(B98="X",IF(AN98="","Afectat sau NU?",IF(AN98="DA",((AG98+AH98)-(AE98+AF98))*24,"Nu a fost afectat producator/consumator")),"") -> 3.833333333 | AY98: =IF(B98="X",IF(AN98="DA",IF(AX98>24,IF(BA98="NU",0,LEN(TRIM(V98))-LEN(SUBSTITUTE(V98,CHAR(44),""))+1),0),"-"),"") -> 0 | AZ98: =IF(B98="X",IF(AN98="DA",IF(AX98>24,LEN(TRIM(V98))-LEN(SUBSTITUTE(V98,CHAR(44),""))+1,0),"-"),"") -> 0 | BF98: =IF(C98="X",IF(AN98="","Afectat sau NU?",IF(AN98="DA",IF(AK98="","Neinformat",NETWORKDAYS(AK98+AL98,AE98+AF98,$BS$2:$BS$14)-2),"Nu a fost afectat producator/consumator")),"") ->  | BG98: =IF(C98="X",IF(AN98="DA",IF(AND(BF98>=5,AK98<>""),LEN(TRIM(V98))-LEN(SUBSTITUTE(V98,CHAR(44),""))+1,0),"-"),"") ->  | BH98: =IF(C98="X",IF(AN98="DA",LEN(TRIM(V98))-LEN(SUBSTITUTE(V98,CHAR(44),""))+1,"-"),"") ->  | BI98: =IF(C98="X",IF(AN98="","Afectat sau NU?",IF(AN98="DA",IF(AI98="","Neinformat",NETWORKDAYS(AI98+AJ98,AE98+AF98,$BS$2:$BS$14)-2),"Nu a fost afectat producator/consumator")),"") ->  | BJ98: =IF(C98="X",IF(AN98="DA",IF(AND(BI98>=5,AI98<>""),LEN(TRIM(U98))-LEN(SUBSTITUTE(U98,CHAR(44),""))+1,0),"-"),"") ->  | BK98: =IF(C98="X",IF(AN98="DA",LEN(TRIM(U98))-LEN(SUBSTITUTE(U98,CHAR(44),""))+1,"-"),"") ->  | BL98: =IF(C98="X",IF(AN98="","Afectat sau NU?",IF(AN98="DA",((AG98+AH98)-(Z98+AA98))*24,"Nu a fost afectat producator/consumator")),"") ->  | BM98: =IF(C98="X",IF(AN98<>"DA","-",IF(AND(AN98="DA",BL98<=0),LEN(TRIM(V98))-LEN(SUBSTITUTE(V98,CHAR(44),""))+1+LEN(TRIM(U98))-LEN(SUBSTITUTE(U98,CHAR(44),""))+1,0)),"") ->  | BN98: =IF(C98="X",IF(AN98="DA",LEN(TRIM(V98))-LEN(SUBSTITUTE(V98,CHAR(44),""))+1+LEN(TRIM(U98))-LEN(SUBSTITUTE(U98,CHAR(44),""))+1,"-"),"") -> 
A99: 84 | B99: X | C99: - | D99: Întrerupere accidentală a SRM Adjud datorită blocării modulului de reglare cauzat de acumularea de impurități mecanice fine la sistemul de pilotare a regulatoarelor de pe ambele linii ale instalației | E99: 174897 | F99: Adjudu Vechi | G99: Vrancea | H99: 669494.85 | I99: 517076.88 | J99: 669494.85 | K99: 517076.88 | L99: - | M99: - | N99: SM0508D0 | O99: Adjud | P99: - | Q99: - | R99: - | S99: - | T99: SM-SD001 | U99: Aderro GP, Alpha Metal, Nova Power, Cez Vânzare, Cis Gaz, Conef Gaz, Crest Energy, Cyeb, Distrigaz Vest, Engie, E.On Energie, Electrocentrale București, Electrocentrale Constanța, Electrica Furnizare, Electric Planners, Electric&Gas, Energy Distribution, Enel Energie, Enel Muntenia, Gas&Power, Entrex, Euro Seven Industry, Premier Energy Trading, Gaz Est, Hargaz, Gaz Vest, Megaconstruct, Met România, Monsson, Next Energy Distribution, Next Energy Parteners, Nord Gaz, Oligopol, Premier Energy, Petrom, Progaz, Energy Gas Provider, Renovatio, Res Energy Solutions, Restart Energy, Romgaz, RWE Supply, Tinmar, Transenergo, AIK România, Veolia, Wiee România | V99: Distrigaz Sud Rețele | W99: - | X99: 2020-10-15 | Y99: 21:00:00 | Z99: 2020-10-16 | AA99: 07:30:00 | AB99: Bacău | AC99: Efectuată | AE99: 2020-10-15 | AF99: 21:00:00 | AG99: 2020-10-16 | AH99: 07:30:00 | AI99: 2020-10-15 | AJ99: 23:30:00 | AK99: 2020-10-15 | AL99: 21:00:00 | AM99: - | AN99: DA | AR99: =IF(B99="X",IF(AN99="","Afectat sau NU?",IF(AN99="DA",IF(((AK99+AL99)-(AE99+AF99))*24<-720,"Neinformat",((AK99+AL99)-(AE99+AF99))*24),"Nu a fost afectat producator/consumator")),"") -> 0 | AS99: =IF(B99="X",IF(AN99="DA",IF(AR99<6,LEN(TRIM(V99))-LEN(SUBSTITUTE(V99,CHAR(44),""))+1,0),"-"),"") -> 1 | AT99: =IF(B99="X",IF(AN99="DA",LEN(TRIM(V99))-LEN(SUBSTITUTE(V99,CHAR(44),""))+1,"-"),"") -> 1 | AU99: =IF(B99="X",IF(AN99="","Afectat sau NU?",IF(AN99="DA",IF(((AI99+AJ99)-(AE99+AF99))*24<-720,"Neinformat",((AI99+AJ99)-(AE99+AF99))*24),"Nu a fost afectat producator/consumator")),"") -> 2.5 | AV99: =IF(B99="X",IF(AN99="DA",IF(AU99<6,LEN(TRIM(U99))-LEN(SUBSTITUTE(U99,CHAR(44),""))+1,0),"-"),"") -> 47 | AW99: =IF(B99="X",IF(AN99="DA",LEN(TRIM(U99))-LEN(SUBSTITUTE(U99,CHAR(44),""))+1,"-"),"") -> 47 | AX99: =IF(B99="X",IF(AN99="","Afectat sau NU?",IF(AN99="DA",((AG99+AH99)-(AE99+AF99))*24,"Nu a fost afectat producator/consumator")),"") -> 10.5 | AY99: =IF(B99="X",IF(AN99="DA",IF(AX99>24,IF(BA99="NU",0,LEN(TRIM(V99))-LEN(SUBSTITUTE(V99,CHAR(44),""))+1),0),"-"),"") -> 0 | AZ99: =IF(B99="X",IF(AN99="DA",IF(AX99>24,LEN(TRIM(V99))-LEN(SUBSTITUTE(V99,CHAR(44),""))+1,0),"-"),"") -> 0 | BF99: =IF(C99="X",IF(AN99="","Afectat sau NU?",IF(AN99="DA",IF(AK99="","Neinformat",NETWORKDAYS(AK99+AL99,AE99+AF99,$BS$2:$BS$14)-2),"Nu a fost afectat producator/consumator")),"") ->  | BG99: =IF(C99="X",IF(AN99="DA",IF(AND(BF99>=5,AK99<>""),LEN(TRIM(V99))-LEN(SUBSTITUTE(V99,CHAR(44),""))+1,0),"-"),"") ->  | BH99: =IF(C99="X",IF(AN99="DA",LEN(TRIM(V99))-LEN(SUBSTITUTE(V99,CHAR(44),""))+1,"-"),"") ->  | BI99: =IF(C99="X",IF(AN99="","Afectat sau NU?",IF(AN99="DA",IF(AI99="","Neinformat",NETWORKDAYS(AI99+AJ99,AE99+AF99,$BS$2:$BS$14)-2),"Nu a fost afectat producator/consumator")),"") ->  | BJ99: =IF(C99="X",IF(AN99="DA",IF(AND(BI99>=5,AI99<>""),LEN(TRIM(U99))-LEN(SUBSTITUTE(U99,CHAR(44),""))+1,0),"-"),"") ->  | BK99: =IF(C99="X",IF(AN99="DA",LEN(TRIM(U99))-LEN(SUBSTITUTE(U99,CHAR(44),""))+1,"-"),"") ->  | BL99: =IF(C99="X",IF(AN99="","Afectat sau NU?",IF(AN99="DA",((AG99+AH99)-(Z99+AA99))*24,"Nu a fost afectat producator/consumator")),"") ->  | BM99: =IF(C99="X",IF(AN99<>"DA","-",IF(AND(AN99="DA",BL99<=0),LEN(TRIM(V99))-LEN(SUBSTITUTE(V99,CHAR(44),""))+1+LEN(TRIM(U99))-LEN(SUBSTITUTE(U99,CHAR(44),""))+1,0)),"") ->  | BN99: =IF(C99="X",IF(AN99="DA",LEN(TRIM(V99))-LEN(SUBSTITUTE(V99,CHAR(44),""))+1+LEN(TRIM(U99))-LEN(SUBSTITUTE(U99,CHAR(44),""))+1,"-"),"") -> 
A100: =SUM(1,A99) -> 85 | B100: X | C100: - | D100: Remediere defecte de coroziune pe conducta 20" Adjudul Vechi - Siliștea, zona Malul Alb | E100: 76709 | F100: Matca | G100: Galați | H100: 695489.22 | I100: 484890.48 | J100: 695489.22 | K100: 484890.48 | L100: - | M100: - | N100: SM0980D0 | O100: Matca(Vega93) | P100: - | Q100: - | R100: - | S100: - | T100: SM-SD001 | U100: Nova Power, Cez Vânzare, Engie, Electrica Furnizare, Enel Energie, Enel Muntenia, Premier Energy Trading, Met România, Petrom, Restart Energy, Tinmar, AIK România, Vega 93 | V100: Vega 93 | W100: - | X100: 2020-10-22 | Y100: 07:05:00 | Z100: 2020-10-22 | AA100: 17:00:00 | AB100: Brăila | AC100: Efectuată | AE100: 2020-10-22 | AF100: 07:05:00 | AG100: 2020-10-22 | AH100: 16:20:00 | AI100: 2020-10-22 | AJ100: 07:27:00 | AK100: 2020-10-22 | AL100: 07:14:00 | AM100: 6174/19.10.2020 | AN100: DA | AR100: 0.15 | AS100: 1 | AT100: 1 | AU100: 0.3666666666 | AV100: 13 | AW100: 13 | AX100: 9.25 | AY100: 0 | AZ100: 0
A101: 86 | B101: X | C101: - | D101: Remediere defecte de coroziune pe conducta 20" Adjudul Vechi - Siliștea, zona Malul Alb | E101: 76166 | F101: Cudalbi | G101: Galați | H101: 695290.48 | I101: 477000.47 | J101: 695290.48 | K101: 477000.47 | L101: - | M101: - | N101: - | O101: - | P101: - | Q101: - | R101: PM0284 | S101: Cudalbi | T101: PM-PP001 | U101: Amromco | V101: Amromco | W101: - | X101: 2020-10-22 | Y101: 07:07:00 | Z101: 2020-10-22 | AA101: 17:00:00 | AB101: Brăila | AC101: Efectuată | AE101: 2020-10-22 | AF101: 07:07:00 | AG101: 2020-10-22 | AH101: 16:23:00 | AI101: 2020-10-22 | AJ101: 07:24:00 | AK101: 2020-10-22 | AL101: 07:15:00 | AM101: 6174/19.10.2020 | AN101: DA | AR101: 0.1333333334 | AS101: 1 | AT101: 1 | AU101: 0.2833333334 | AV101: 1 | AW101: 1 | AX101: 9.266666667 | AY101: 0 | AZ101: 0
A102: 87 | B102: X | C102: - | D102: Întrerupere accidentală a SRM Venchi datorită blocării modulului de reglare. | E102: 116527 | F102: Seleuș | G102: Mureș | H102: 478337.54 | I102: 526538 | J102: 478337.54 | K102: 526538 | L102: - | M102: - | N102: SM0008D0 | O102: Venchi | P102: - | Q102: - | R102: - | S102: - | T102: SM-SD001 | U102: Aderro GP, Nova Power, Cez Vânzare, Cis Gaz, Conef Gaz, CPL Concordia, Crest Energy, Cyeb, Design Proiect, Distrigaz Vest, Engie, E.on Energie, Electrica Furnizare, Electric Planners, Electric&Gas, Energy Distribution, Enel Energie, Enel Muntenia, Gas&Power, Entrex, Premier Energy Trading, Gaz Est, Hargaz, Gazmir, Gaz Vest, Mihoc Oil, Met România, Monsson, Next Energy Distribution, Next Energy Partners, Pado Group, Premier Energy, Petrom, Prisma Serv, Gas Provider, Renovatio, Res Energy Solutions, Restart Energy, RWE Supply, SST Grup, Tetarom, Tinmar, AIK Energy, Veolia, Wiee | V102: Delgaz Grid | W102: - | X102: 2020-10-23 | Y102: 15:30:00 | Z102: 2020-10-23 | AA102: 17:00:00 | AB102: Mediaș | AC102: Efectuată | AE102: 2020-10-23 | AF102: 15:30:00 | AG102: 2020-10-23 | AH102: 17:15:00 | AI102: 2020-10-23 | AJ102: 16:04:00 | AK102: 2020-10-23 | AL102: 15:49:00 | AM102: - | AN102: DA | AR102: =IF(B102="X",IF(AN102="","Afectat sau NU?",IF(AN102="DA",IF(((AK102+AL102)-(AE102+AF102))*24<-720,"Neinformat",((AK102+AL102)-(AE102+AF102))*24),"Nu a fost afectat producator/consumator")),"") -> 0.3166666667 | AS102: =IF(B102="X",IF(AN102="DA",IF(AR102<6,LEN(TRIM(V102))-LEN(SUBSTITUTE(V102,CHAR(44),""))+1,0),"-"),"") -> 1 | AT102: =IF(B102="X",IF(AN102="DA",LEN(TRIM(V102))-LEN(SUBSTITUTE(V102,CHAR(44),""))+1,"-"),"") -> 1 | AU102: =IF(B102="X",IF(AN102="","Afectat sau NU?",IF(AN102="DA",IF(((AI102+AJ102)-(AE102+AF102))*24<-720,"Neinformat",((AI102+AJ102)-(AE102+AF102))*24),"Nu a fost afectat producator/consumator")),"") -> 0.5666666666 | AV102: =IF(B102="X",IF(AN102="DA",IF(AU102<6,LEN(TRIM(U102))-LEN(SUBSTITUTE(U102,CHAR(44),""))+1,0),"-"),"") -> 45 | AW102: =IF(B102="X",IF(AN102="DA",LEN(TRIM(U102))-LEN(SUBSTITUTE(U102,CHAR(44),""))+1,"-"),"") -> 45 | AX102: =IF(B102="X",IF(AN102="","Afectat sau NU?",IF(AN102="DA",((AG102+AH102)-(AE102+AF102))*24,"Nu a fost afectat producator/consumator")),"") -> 1.75 | AY102: =IF(B102="X",IF(AN102="DA",IF(AX102>24,IF(BA102="NU",0,LEN(TRIM(V102))-LEN(SUBSTITUTE(V102,CHAR(44),""))+1),0),"-"),"") -> 0 | AZ102: =IF(B102="X",IF(AN102="DA",IF(AX102>24,LEN(TRIM(V102))-LEN(SUBSTITUTE(V102,CHAR(44),""))+1,0),"-"),"") -> 0 | BF102: =IF(C102="X",IF(AN102="","Afectat sau NU?",IF(AN102="DA",IF(AK102="","Neinformat",NETWORKDAYS(AK102+AL102,AE102+AF102,$BS$2:$BS$14)-2),"Nu a fost afectat producator/consumator")),"") ->  | BG102: =IF(C102="X",IF(AN102="DA",IF(AND(BF102>=5,AK102<>""),LEN(TRIM(V102))-LEN(SUBSTITUTE(V102,CHAR(44),""))+1,0),"-"),"") ->  | BH102: =IF(C102="X",IF(AN102="DA",LEN(TRIM(V102))-LEN(SUBSTITUTE(V102,CHAR(44),""))+1,"-"),"") ->  | BI102: =IF(C102="X",IF(AN102="","Afectat sau NU?",IF(AN102="DA",IF(AI102="","Neinformat",NETWORKDAYS(AI102+AJ102,AE102+AF102,$BS$2:$BS$14)-2),"Nu a fost afectat producator/consumator")),"") ->  | BJ102: =IF(C102="X",IF(AN102="DA",IF(AND(BI102>=5,AI102<>""),LEN(TRIM(U102))-LEN(SUBSTITUTE(U102,CHAR(44),""))+1,0),"-"),"") ->  | BK102: =IF(C102="X",IF(AN102="DA",LEN(TRIM(U102))-LEN(SUBSTITUTE(U102,CHAR(44),""))+1,"-"),"") ->  | BL102: =IF(C102="X",IF(AN102="","Afectat sau NU?",IF(AN102="DA",((AG102+AH102)-(Z102+AA102))*24,"Nu a fost afectat producator/consumator")),"") ->  | BM102: =IF(C102="X",IF(AN102<>"DA","-",IF(AND(AN102="DA",BL102<=0),LEN(TRIM(V102))-LEN(SUBSTITUTE(V102,CHAR(44),""))+1+LEN(TRIM(U102))-LEN(SUBSTITUTE(U102,CHAR(44),""))+1,0)),"") ->  | BN102: =IF(C102="X",IF(AN102="DA",LEN(TRIM(V102))-LEN(SUBSTITUTE(V102,CHAR(44),""))+1+LEN(TRIM(U102))-LEN(SUBSTITUTE(U102,CHAR(44),""))+1,"-"),"") -> 
A103: 88 | B103: X | C103: - | D103: Înlocuire robinet R11 în SRM Ișalnița (ieșire CET) | E103: 70101 | F103: Ișalnița | G103: Dolj | H103: 399102.24 | I103: 320723.83 | J103: 399102.24 | K103: 320723.83 | L103: - | M103: - | N103: SM0207D6 | O103: CET Ișalnița | P103: - | Q103: - | R103: - | S103: - | T103: SM-CF001 | U103: E.on Energie, Premier Energy | V103: Complexul Energetic Oltenia | W103: - | X103: 2020-10-27 | Y103: 09:13:00 | Z103: 2020-10-27 | AA103: 19:00:00 | AB103: Craiova | AC103: Efectuată | AE103: 2020-10-27 | AF103: 09:13:00 | AG103: 2020-10-27 | AH103: 13:16:00 | AI103: 2020-10-27 | AJ103: 09:35:00 | AK103: 2020-10-27 | AL103: 09:27:00 | AM103: - | AN103: DA | AR103: =IF(B103="X",IF(AN103="","Afectat sau NU?",IF(AN103="DA",IF(((AK103+AL103)-(AE103+AF103))*24<-720,"Neinformat",((AK103+AL103)-(AE103+AF103))*24),"Nu a fost afectat producator/consumator")),"") -> 0.2333333334 | AS103: =IF(B103="X",IF(AN103="DA",IF(AR103<6,LEN(TRIM(V103))-LEN(SUBSTITUTE(V103,CHAR(44),""))+1,0),"-"),"") -> 1 | AT103: =IF(B103="X",IF(AN103="DA",LEN(TRIM(V103))-LEN(SUBSTITUTE(V103,CHAR(44),""))+1,"-"),"") -> 1 | AU103: =IF(B103="X",IF(AN103="","Afectat sau NU?",IF(AN103="DA",IF(((AI103+AJ103)-(AE103+AF103))*24<-720,"Neinformat",((AI103+AJ103)-(AE103+AF103))*24),"Nu a fost afectat producator/consumator")),"") -> 0.3666666666 | AV103: =IF(B103="X",IF(AN103="DA",IF(AU103<6,LEN(TRIM(U103))-LEN(SUBSTITUTE(U103,CHAR(44),""))+1,0),"-"),"") -> 2 | AW103: =IF(B103="X",IF(AN103="DA",LEN(TRIM(U103))-LEN(SUBSTITUTE(U103,CHAR(44),""))+1,"-"),"") -> 2 | AX103: =IF(B103="X",IF(AN103="","Afectat sau NU?",IF(AN103="DA",((AG103+AH103)-(AE103+AF103))*24,"Nu a fost afectat producator/consumator")),"") -> 4.05 | AY103: =IF(B103="X",IF(AN103="DA",IF(AX103>24,IF(BA103="NU",0,LEN(TRIM(V103))-LEN(SUBSTITUTE(V103,CHAR(44),""))+1),0),"-"),"") -> 0 | AZ103: =IF(B103="X",IF(AN103="DA",IF(AX103>24,LEN(TRIM(V103))-LEN(SUBSTITUTE(V103,CHAR(44),""))+1,0),"-"),"") -> 0 | BF103: =IF(C103="X",IF(AN103="","Afectat sau NU?",IF(AN103="DA",IF(AK103="","Neinformat",NETWORKDAYS(AK103+AL103,AE103+AF103,$BS$2:$BS$14)-2),"Nu a fost afectat producator/consumator")),"") ->  | BG103: =IF(C103="X",IF(AN103="DA",IF(AND(BF103>=5,AK103<>""),LEN(TRIM(V103))-LEN(SUBSTITUTE(V103,CHAR(44),""))+1,0),"-"),"") ->  | BH103: =IF(C103="X",IF(AN103="DA",LEN(TRIM(V103))-LEN(SUBSTITUTE(V103,CHAR(44),""))+1,"-"),"") ->  | BI103: =IF(C103="X",IF(AN103="","Afectat sau NU?",IF(AN103="DA",IF(AI103="","Neinformat",NETWORKDAYS(AI103+AJ103,AE103+AF103,$BS$2:$BS$14)-2),"Nu a fost afectat producator/consumator")),"") ->  | BJ103: =IF(C103="X",IF(AN103="DA",IF(AND(BI103>=5,AI103<>""),LEN(TRIM(U103))-LEN(SUBSTITUTE(U103,CHAR(44),""))+1,0),"-"),"") ->  | BK103: =IF(C103="X",IF(AN103="DA",LEN(TRIM(U103))-LEN(SUBSTITUTE(U103,CHAR(44),""))+1,"-"),"") ->  | BL103: =IF(C103="X",IF(AN103="","Afectat sau NU?",IF(AN103="DA",((AG103+AH103)-(Z103+AA103))*24,"Nu a fost afectat producator/consumator")),"") ->  | BM103: =IF(C103="X",IF(AN103<>"DA","-",IF(AND(AN103="DA",BL103<=0),LEN(TRIM(V103))-LEN(SUBSTITUTE(V103,CHAR(44),""))+1+LEN(TRIM(U103))-LEN(SUBSTITUTE(U103,CHAR(44),""))+1,0)),"") ->  | BN103: =IF(C103="X",IF(AN103="DA",LEN(TRIM(V103))-LEN(SUBSTITUTE(V103,CHAR(44),""))+1+LEN(TRIM(U103))-LEN(SUBSTITUTE(U103,CHAR(44),""))+1,"-"),"") -> 
A104: 89 | B104: X | C104: - | D104: Înlocuire instalație tehnologică SRM Dumitra | E104: 7419 | F104: Dumitra | G104: Alba | H104: 397685.98 | I104: 511910.97 | J104: 397685.98 | K104: 511910.97 | L104: - | M104: - | N104: SM0277D0 | O104: Dumitra | P104: - | Q104: - | R104: - | S104: - | T104: SM-SD001 | U104: Aderro GP, Nova Power, Cez Vânzare, Cis Gaz, Conef Gaz, CPL Concordia, Crest Energy, Cyeb, Design Proiect, Distrigaz Vest, Engie, E.on Energie, Electrica Furnizare, Electric Planners, Electric&Gas, Energy Distribution, Enel Energie, Enel Muntenia, Gas&Power, Entrex, Premier Energy Trading, Gaz Est, Hargaz, Gazmir, Gaz Vest, Mihoc Oil, Met România, Monsson, Next Energy Distribution, Next Energy Partners, Pado Group, Premier Energy, Petrom, Prisma Serv, Gas Provider, Renovatio, Res Energy Solutions, Restart Energy, RWE Supply, SST Grup, Tetarom, Tinmar, AIK Energy, Veolia, Wiee | V104: Delgaz Grid | W104: - | X104: 2020-10-28 | Y104: 08:00:00 | Z104: 2020-10-28 | AA104: 14:00:00 | AB104: Mediaș | AC104: Efectuată | AE104: 2020-10-28 | AF104: 08:00:00 | AG104: 2020-10-28 | AH104: 14:00:00 | AI104: 2020-10-28 | AJ104: 08:13:00 | AK104: 2020-10-28 | AL104: 08:02:00 | AM104: - | AN104: DA | AR104: =IF(B104="X",IF(AN104="","Afectat sau NU?",IF(AN104="DA",IF(((AK104+AL104)-(AE104+AF104))*24<-720,"Neinformat",((AK104+AL104)-(AE104+AF104))*24),"Nu a fost afectat producator/consumator")),"") -> 0.03333333327 | AS104: =IF(B104="X",IF(AN104="DA",IF(AR104<6,LEN(TRIM(V104))-LEN(SUBSTITUTE(V104,CHAR(44),""))+1,0),"-"),"") -> 1 | AT104: =IF(B104="X",IF(AN104="DA",LEN(TRIM(V104))-LEN(SUBSTITUTE(V104,CHAR(44),""))+1,"-"),"") -> 1 | AU104: =IF(B104="X",IF(AN104="","Afectat sau NU?",IF(AN104="DA",IF(((AI104+AJ104)-(AE104+AF104))*24<-720,"Neinformat",((AI104+AJ104)-(AE104+AF104))*24),"Nu a fost afectat producator/consumator")),"") -> 0.2166666667 | AV104: =IF(B104="X",IF(AN104="DA",IF(AU104<6,LEN(TRIM(U104))-LEN(SUBSTITUTE(U104,CHAR(44),""))+1,0),"-"),"") -> 45 | AW104: =IF(B104="X",IF(AN104="DA",LEN(TRIM(U104))-LEN(SUBSTITUTE(U104,CHAR(44),""))+1,"-"),"") -> 45 | AX104: =IF(B104="X",IF(AN104="","Afectat sau NU?",IF(AN104="DA",((AG104+AH104)-(AE104+AF104))*24,"Nu a fost afectat producator/consumator")),"") -> 6 | AY104: =IF(B104="X",IF(AN104="DA",IF(AX104>24,IF(BA104="NU",0,LEN(TRIM(V104))-LEN(SUBSTITUTE(V104,CHAR(44),""))+1),0),"-"),"") -> 0 | AZ104: =IF(B104="X",IF(AN104="DA",IF(AX104>24,LEN(TRIM(V104))-LEN(SUBSTITUTE(V104,CHAR(44),""))+1,0),"-"),"") -> 0 | BF104: =IF(C104="X",IF(AN104="","Afectat sau NU?",IF(AN104="DA",IF(AK104="","Neinformat",NETWORKDAYS(AK104+AL104,AE104+AF104,$BS$2:$BS$14)-2),"Nu a fost afectat producator/consumator")),"") ->  | BG104: =IF(C104="X",IF(AN104="DA",IF(AND(BF104>=5,AK104<>""),LEN(TRIM(V104))-LEN(SUBSTITUTE(V104,CHAR(44),""))+1,0),"-"),"") ->  | BH104: =IF(C104="X",IF(AN104="DA",LEN(TRIM(V104))-LEN(SUBSTITUTE(V104,CHAR(44),""))+1,"-"),"") ->  | BI104: =IF(C104="X",IF(AN104="","Afectat sau NU?",IF(AN104="DA",IF(AI104="","Neinformat",NETWORKDAYS(AI104+AJ104,AE104+AF104,$BS$2:$BS$14)-2),"Nu a fost afectat producator/consumator")),"") ->  | BJ104: =IF(C104="X",IF(AN104="DA",IF(AND(BI104>=5,AI104<>""),LEN(TRIM(U104))-LEN(SUBSTITUTE(U104,CHAR(44),""))+1,0),"-"),"") ->  | BK104: =IF(C104="X",IF(AN104="DA",LEN(TRIM(U104))-LEN(SUBSTITUTE(U104,CHAR(44),""))+1,"-"),"") ->  | BL104: =IF(C104="X",IF(AN104="","Afectat sau NU?",IF(AN104="DA",((AG104+AH104)-(Z104+AA104))*24,"Nu a fost afectat producator/consumator")),"") ->  | BM104: =IF(C104="X",IF(AN104<>"DA","-",IF(AND(AN104="DA",BL104<=0),LEN(TRIM(V104))-LEN(SUBSTITUTE(V104,CHAR(44),""))+1+LEN(TRIM(U104))-LEN(SUBSTITUTE(U104,CHAR(44),""))+1,0)),"") ->  | BN104: =IF(C104="X",IF(AN104="DA",LEN(TRIM(V104))-LEN(SUBSTITUTE(V104,CHAR(44),""))+1+LEN(TRIM(U104))-LEN(SUBSTITUTE(U104,CHAR(44),""))+1,"-"),"") -> 
A105: 90 | B105: X | C105: - | D105: Oprire accidentală SRM Oradea I | E105: 26671 | F105: Palota | G105: Bihor | H105: 257019.14 | I105: 624573.64 | J105: 257019.14 | K105: 624573.64 | L105: - | M105: - | N105: SM0300D0 | O105: Oradea I | P105: - | Q105: - | R105: - | S105: - | T105: SM-SD001 | U105: Nova Power, Cez Vânzare, CIS Gaz, Cyeb, Distrigaz Vest, Engie, E.On Energie, Electrica Furnizare, Electric&Gas, Energy Distribution, Enel Energie, Enel Muntenia, Gas&Power, Premier Energy Trading, Gaz Est, Gaz Vest, Met România, Premier Energy, Petrom, Energy Gas Provider, Renovatio, Restart Energy, Tinmar, AIK România | V105: Gaz Vest | W105: - | X105: 2020-11-02 | Y105: 10:10:00 | Z105: 2020-11-02 | AA105: 13:00:00 | AB105: Cluj | AC105: Efectuată | AE105: 2020-11-02 | AF105: 10:10:00 | AG105: 2020-11-02 | AH105: 13:00:00 | AI105: 2020-11-02 | AJ105: 11:24:00 | AK105: 2020-11-02 | AL105: 10:57:00 | AM105: - | AN105: DA | AR105: =IF(B105="X",IF(AN105="","Afectat sau NU?",IF(AN105="DA",IF(((AK105+AL105)-(AE105+AF105))*24<-720,"Neinformat",((AK105+AL105)-(AE105+AF105))*24),"Nu a fost afectat producator/consumator")),"") -> 0.7833333334 | AS105: =IF(B105="X",IF(AN105="DA",IF(AR105<6,LEN(TRIM(V105))-LEN(SUBSTITUTE(V105,CHAR(44),""))+1,0),"-"),"") -> 1 | AT105: =IF(B105="X",IF(AN105="DA",LEN(TRIM(V105))-LEN(SUBSTITUTE(V105,CHAR(44),""))+1,"-"),"") -> 1 | AU105: =IF(B105="X",IF(AN105="","Afectat sau NU?",IF(AN105="DA",IF(((AI105+AJ105)-(AE105+AF105))*24<-720,"Neinformat",((AI105+AJ105)-(AE105+AF105))*24),"Nu a fost afectat producator/consumator")),"") -> 1.233333333 | AV105: =IF(B105="X",IF(AN105="DA",IF(AU105<6,LEN(TRIM(U105))-LEN(SUBSTITUTE(U105,CHAR(44),""))+1,0),"-"),"") -> 24 | AW105: =IF(B105="X",IF(AN105="DA",LEN(TRIM(U105))-LEN(SUBSTITUTE(U105,CHAR(44),""))+1,"-"),"") -> 24 | AX105: =IF(B105="X",IF(AN105="","Afectat sau NU?",IF(AN105="DA",((AG105+AH105)-(AE105+AF105))*24,"Nu a fost afectat producator/consumator")),"") -> 2.833333333 | AY105: =IF(B105="X",IF(AN105="DA",IF(AX105>24,IF(BA105="NU",0,LEN(TRIM(V105))-LEN(SUBSTITUTE(V105,CHAR(44),""))+1),0),"-"),"") -> 0 | AZ105: =IF(B105="X",IF(AN105="DA",IF(AX105>24,LEN(TRIM(V105))-LEN(SUBSTITUTE(V105,CHAR(44),""))+1,0),"-"),"") -> 0 | BF105: =IF(C105="X",IF(AN105="","Afectat sau NU?",IF(AN105="DA",IF(AK105="","Neinformat",NETWORKDAYS(AK105+AL105,AE105+AF105,$BS$2:$BS$14)-2),"Nu a fost afectat producator/consumator")),"") ->  | BG105: =IF(C105="X",IF(AN105="DA",IF(AND(BF105>=5,AK105<>""),LEN(TRIM(V105))-LEN(SUBSTITUTE(V105,CHAR(44),""))+1,0),"-"),"") ->  | BH105: =IF(C105="X",IF(AN105="DA",LEN(TRIM(V105))-LEN(SUBSTITUTE(V105,CHAR(44),""))+1,"-"),"") ->  | BI105: =IF(C105="X",IF(AN105="","Afectat sau NU?",IF(AN105="DA",IF(AI105="","Neinformat",NETWORKDAYS(AI105+AJ105,AE105+AF105,$BS$2:$BS$14)-2),"Nu a fost afectat producator/consumator")),"") ->  | BJ105: =IF(C105="X",IF(AN105="DA",IF(AND(BI105>=5,AI105<>""),LEN(TRIM(U105))-LEN(SUBSTITUTE(U105,CHAR(44),""))+1,0),"-"),"") ->  | BK105: =IF(C105="X",IF(AN105="DA",LEN(TRIM(U105))-LEN(SUBSTITUTE(U105,CHAR(44),""))+1,"-"),"") ->  | BL105: =IF(C105="X",IF(AN105="","Afectat sau NU?",IF(AN105="DA",((AG105+AH105)-(Z105+AA105))*24,"Nu a fost afectat producator/consumator")),"") ->  | BM105: =IF(C105="X",IF(AN105<>"DA","-",IF(AND(AN105="DA",BL105<=0),LEN(TRIM(V105))-LEN(SUBSTITUTE(V105,CHAR(44),""))+1+LEN(TRIM(U105))-LEN(SUBSTITUTE(U105,CHAR(44),""))+1,0)),"") ->  | BN105: =IF(C105="X",IF(AN105="DA",LEN(TRIM(V105))-LEN(SUBSTITUTE(V105,CHAR(44),""))+1+LEN(TRIM(U105))-LEN(SUBSTITUTE(U105,CHAR(44),""))+1,"-"),"") -> 
A106: 91 | B106: X | C106: - | D106: Înlocuire cupon de 50 ml pe conducta 16” Buhoci - Valea Malului, zona Poieni | E106: 20830 | F106: Comănești | G106: Bacău | H106: 612544.18 | I106: 546881.67 | J106: 612544.18 | K106: 546881.67 | L106: - | M106: - | N106: SM0432D1 | O106: Comănești | P106: - | Q106: - | R106: - | S106: - | T106: SM-SD001 | U106: Aderro GP, Nova Power, Cez Vânzare, Cis Gaz, Conef Gaz, CPL Concordia, Crest Energy, Cyeb, Design Proiect, Distrigaz Vest, Engie, E.on Energie, Electrica Furnizare, Electric Planners, Electric&Gas, Energy Distribution, Enel Energie, Enel Muntenia, Gas&Power, Entrex, Premier Energy Trading, Gaz Est, Hargaz, Gazmir, Gaz Vest, Mihoc Oil, Met România, Monsson, Next Energy Distribution, Next Energy Partners, Pado Group, Premier Energy, Petrom, Prisma Serv, Gas Provider, Renovatio, Res Energy Solutions, Restart Energy, RWE Supply, SST Grup, Tetarom, Tinmar, AIK Energy, Veolia, Wiee | V106: Delgaz Grid | W106: - | X106: 2020-11-04 | Y106: 09:04:00 | Z106: 2020-11-04 | AA106: 17:00:00 | AB106: Bacău | AC106: Efectuată | AE106: 2020-11-04 | AF106: 09:04:00 | AG106: 2020-11-04 | AH106: 17:00:00 | AI106: 2020-11-04 | AJ106: 09:26:00 | AK106: 2020-11-04 | AL106: 09:10:00 | AM106: 6156/02.11.2020 | AN106: DA | AR106: =IF(B106="X",IF(AN106="","Afectat sau NU?",IF(AN106="DA",IF(((AK106+AL106)-(AE106+AF106))*24<-720,"Neinformat",((AK106+AL106)-(AE106+AF106))*24),"Nu a fost afectat producator/consumator")),"") -> 0.09999999998 | AS106: =IF(B106="X",IF(AN106="DA",IF(AR106<6,LEN(TRIM(V106))-LEN(SUBSTITUTE(V106,CHAR(44),""))+1,0),"-"),"") -> 1 | AT106: =IF(B106="X",IF(AN106="DA",LEN(TRIM(V106))-LEN(SUBSTITUTE(V106,CHAR(44),""))+1,"-"),"") -> 1 | AU106: =IF(B106="X",IF(AN106="","Afectat sau NU?",IF(AN106="DA",IF(((AI106+AJ106)-(AE106+AF106))*24<-720,"Neinformat",((AI106+AJ106)-(AE106+AF106))*24),"Nu a fost afectat producator/consumator")),"") -> 0.3666666666 | AV106: =IF(B106="X",IF(AN106="DA",IF(AU106<6,LEN(TRIM(U106))-LEN(SUBSTITUTE(U106,CHAR(44),""))+1,0),"-"),"") -> 45 | AW106: =IF(B106="X",IF(AN106="DA",LEN(TRIM(U106))-LEN(SUBSTITUTE(U106,CHAR(44),""))+1,"-"),"") -> 45 | AX106: =IF(B106="X",IF(AN106="","Afectat sau NU?",IF(AN106="DA",((AG106+AH106)-(AE106+AF106))*24,"Nu a fost afectat producator/consumator")),"") -> 7.933333333 | AY106: =IF(B106="X",IF(AN106="DA",IF(AX106>24,IF(BA106="NU",0,LEN(TRIM(V106))-LEN(SUBSTITUTE(V106,CHAR(44),""))+1),0),"-"),"") -> 0 | AZ106: =IF(B106="X",IF(AN106="DA",IF(AX106>24,LEN(TRIM(V106))-LEN(SUBSTITUTE(V106,CHAR(44),""))+1,0),"-"),"") -> 0 | BF106: =IF(C106="X",IF(AN106="","Afectat sau NU?",IF(AN106="DA",IF(AK106="","Neinformat",NETWORKDAYS(AK106+AL106,AE106+AF106,$BS$2:$BS$14)-2),"Nu a fost afectat producator/consumator")),"") ->  | BG106: =IF(C106="X",IF(AN106="DA",IF(AND(BF106>=5,AK106<>""),LEN(TRIM(V106))-LEN(SUBSTITUTE(V106,CHAR(44),""))+1,0),"-"),"") ->  | BH106: =IF(C106="X",IF(AN106="DA",LEN(TRIM(V106))-LEN(SUBSTITUTE(V106,CHAR(44),""))+1,"-"),"") ->  | BI106: =IF(C106="X",IF(AN106="","Afectat sau NU?",IF(AN106="DA",IF(AI106="","Neinformat",NETWORKDAYS(AI106+AJ106,AE106+AF106,$BS$2:$BS$14)-2),"Nu a fost afectat producator/consumator")),"") ->  | BJ106: =IF(C106="X",IF(AN106="DA",IF(AND(BI106>=5,AI106<>""),LEN(TRIM(U106))-LEN(SUBSTITUTE(U106,CHAR(44),""))+1,0),"-"),"") ->  | BK106: =IF(C106="X",IF(AN106="DA",LEN(TRIM(U106))-LEN(SUBSTITUTE(U106,CHAR(44),""))+1,"-"),"") ->  | BL106: =IF(C106="X",IF(AN106="","Afectat sau NU?",IF(AN106="DA",((AG106+AH106)-(Z106+AA106))*24,"Nu a fost afectat producator/consumator")),"") ->  | BM106: =IF(C106="X",IF(AN106<>"DA","-",IF(AND(AN106="DA",BL106<=0),LEN(TRIM(V106))-LEN(SUBSTITUTE(V106,CHAR(44),""))+1+LEN(TRIM(U106))-LEN(SUBSTITUTE(U106,CHAR(44),""))+1,0)),"") ->  | BN106: =IF(C106="X",IF(AN106="DA",LEN(TRIM(V106))-LEN(SUBSTITUTE(V106,CHAR(44),""))+1+LEN(TRIM(U106))-LEN(SUBSTITUTE(U106,CHAR(44),""))+1,"-"),"") -> 
A107: 92 | B107: X | C107: - | D107: Înlocuire cupon de 50 ml pe conducta 16” Buhoci - Valea Malului, zona Poieni | E107: 20983 | F107: Poieni | G107: Bacău | H107: 620720.72 | I107: 533623.9 | J107: 620720.72 | K107: 533623.9 | L107: - | M107: - | N107: SM0430D0 | O107: Poieni | P107: - | Q107: - | R107: - | S107: - | T107: SM-SD001 | U107: Aderro GP, Nova Power, Cez Vânzare, Cis Gaz, Conef Gaz, CPL Concordia, Crest Energy, Cyeb, Design Proiect, Distrigaz Vest, Engie, E.on Energie, Electrica Furnizare, Electric Planners, Electric&Gas, Energy Distribution, Enel Energie, Enel Muntenia, Gas&Power, Entrex, Premier Energy Trading, Gaz Est, Hargaz, Gazmir, Gaz Vest, Mihoc Oil, Met România, Monsson, Next Energy Distribution, Next Energy Partners, Pado Group, Premier Energy, Petrom, Prisma Serv, Gas Provider, Renovatio, Res Energy Solutions, Restart Energy, RWE Supply, SST Grup, Tetarom, Tinmar, AIK Energy, Veolia, Wiee | V107: Delgaz Grid | W107: - | X107: 2020-11-04 | Y107: 09:04:00 | Z107: 2020-11-04 | AA107: 17:00:00 | AB107: Bacău | AC107: Efectuată | AE107: 2020-11-04 | AF107: 09:04:00 | AG107: 2020-11-04 | AH107: 17:00:00 | AI107: 2020-11-04 | AJ107: 09:26:00 | AK107: 2020-11-04 | AL107: 09:10:00 | AM107: 6156/02.11.2020 | AN107: DA | AR107: 0.09999999998 | AS107: 1 | AT107: 1 | AU107: 0.3666666666 | AV107: 45 | AW107: 45 | AX107: 7.933333333 | AY107: 0 | AZ107: 0
A108: 93 | B108: X | C108: - | D108: Înlocuire cupon de 50 ml pe conducta 16” Buhoci - Valea Malului, zona Poieni | E108: 20885 | F108: Moinești | G108: Bacău | H108: 613113.2 | I108: 553437.6 | J108: 613113.2 | K108: 553437.6 | L108: - | M108: - | N108: SM0440D0 | O108: Moinești Dealu Mare | P108: - | Q108: - | R108: - | S108: - | T108: SM-SD001 | U108: Aderro GP, Nova Power, Cez Vânzare, Cis Gaz, Conef Gaz, CPL Concordia, Crest Energy, Cyeb, Design Proiect, Distrigaz Vest, Engie, E.on Energie, Electrica Furnizare, Electric Planners, Electric&Gas, Energy Distribution, Enel Energie, Enel Muntenia, Gas&Power, Entrex, Premier Energy Trading, Gaz Est, Hargaz, Gazmir, Gaz Vest, Mihoc Oil, Met România, Monsson, Next Energy Distribution, Next Energy Partners, Pado Group, Premier Energy, Petrom, Prisma Serv, Gas Provider, Renovatio, Res Energy Solutions, Restart Energy, RWE Supply, SST Grup, Tetarom, Tinmar, AIK Energy, Veolia, Wiee | V108: Delgaz Grid | W108: - | X108: 2020-11-04 | Y108: 09:04:00 | Z108: 2020-11-04 | AA108: 17:00:00 | AB108: Bacău | AC108: Efectuată | AE108: 2020-11-04 | AF108: 09:04:00 | AG108: 2020-11-04 | AH108: 17:00:00 | AI108: 2020-11-04 | AJ108: 09:26:00 | AK108: 2020-11-04 | AL108: 09:10:00 | AM108: 6156/02.11.2020 | AN108: DA | AR108: 0.09999999998 | AS108: 1 | AT108: 1 | AU108: 0.3666666666 | AV108: 45 | AW108: 45 | AX108: 7.933333333 | AY108: 0 | AZ108: 0
A109: =SUM(1,A108) -> 94 | B109: X | C109: - | D109: Remediere definitivă a unui defect de coroziune pe conducta 20” Turburea - Ișalnița, fir I, zona Răcari | E109: 72418 | F109: Ghercești | G109: Bihor | H109: 412675.23 | I109: 316838.13 | J109: 412675.23 | K109: 316838.13 | L109: - | M109: - | N109: SM1142D0 | O109: Stația Centrală Ghercești Înmagazinat | P109: - | Q109: - | R109: - | S109: - | T109: VSM01 | U109: Amarad, Nova Power, Cez Vânzare, Cordun Gaz, CPL Concordia, MM Data, Distrigaz Vest, Engie, Axpo, E.on Energie, Enel, Enel Muntenia, Euro Seven, Gaz Est, Mehedinți Gaz, Met România, Nord Gaz, Premier Energy, Petrom, Progaz, Restart Energy, Romgaz, Tinmar | V109: Depogaz Ploiești | W109: - | X109: 2020-11-16 | Y109: 11:10:00 | Z109: 2020-11-16 | AA109: 23:00:00 | AB109: Craiova | AC109: Efectuată (din motive tehnice a trebuit amânată) | AE109: 2020-11-16 | AF109: 11:10:00 | AG109: 2020-11-16 | AH109: 12:50:00 | AI109: 2020-11-16 | AJ109: 12:28:00 | AK109: 2020-11-16 | AL109: 11:26:00 | AM109: 2717/13.11.2020 | AN109: DA | AR109: =IF(B109="X",IF(AN109="","Afectat sau NU?",IF(AN109="DA",IF(((AK109+AL109)-(AE109+AF109))*24<-720,"Neinformat",((AK109+AL109)-(AE109+AF109))*24),"Nu a fost afectat producator/consumator")),"") -> 0.2666666667 | AS109: =IF(B109="X",IF(AN109="DA",IF(AR109<6,LEN(TRIM(V109))-LEN(SUBSTITUTE(V109,CHAR(44),""))+1,0),"-"),"") -> 1 | AT109: =IF(B109="X",IF(AN109="DA",LEN(TRIM(V109))-LEN(SUBSTITUTE(V109,CHAR(44),""))+1,"-"),"") -> 1 | AU109: =IF(B109="X",IF(AN109="","Afectat sau NU?",IF(AN109="DA",IF(((AI109+AJ109)-(AE109+AF109))*24<-720,"Neinformat",((AI109+AJ109)-(AE109+AF109))*24),"Nu a fost afectat producator/consumator")),"") -> 1.3 | AV109: =IF(B109="X",IF(AN109="DA",IF(AU109<6,LEN(TRIM(U109))-LEN(SUBSTITUTE(U109,CHAR(44),""))+1,0),"-"),"") -> 23 | AW109: =IF(B109="X",IF(AN109="DA",LEN(TRIM(U109))-LEN(SUBSTITUTE(U109,CHAR(44),""))+1,"-"),"") -> 23 | AX109: =IF(B109="X",IF(AN109="","Afectat sau NU?",IF(AN109="DA",((AG109+AH109)-(AE109+AF109))*24,"Nu a fost afectat producator/consumator")),"") -> 1.666666667 | AY109: =IF(B109="X",IF(AN109="DA",IF(AX109>24,IF(BA109="NU",0,LEN(TRIM(V109))-LEN(SUBSTITUTE(V109,CHAR(44),""))+1),0),"-"),"") -> 0 | AZ109: =IF(B109="X",IF(AN109="DA",IF(AX109>24,LEN(TRIM(V109))-LEN(SUBSTITUTE(V109,CHAR(44),""))+1,0),"-"),"") -> 0 | BF109: =IF(C109="X",IF(AN109="","Afectat sau NU?",IF(AN109="DA",IF(AK109="","Neinformat",NETWORKDAYS(AK109+AL109,AE109+AF109,$BS$2:$BS$14)-2),"Nu a fost afectat producator/consumator")),"") ->  | BG109: =IF(C109="X",IF(AN109="DA",IF(AND(BF109>=5,AK109<>""),LEN(TRIM(V109))-LEN(SUBSTITUTE(V109,CHAR(44),""))+1,0),"-"),"") ->  | BH109: =IF(C109="X",IF(AN109="DA",LEN(TRIM(V109))-LEN(SUBSTITUTE(V109,CHAR(44),""))+1,"-"),"") ->  | BI109: =IF(C109="X",IF(AN109="","Afectat sau NU?",IF(AN109="DA",IF(AI109="","Neinformat",NETWORKDAYS(AI109+AJ109,AE109+AF109,$BS$2:$BS$14)-2),"Nu a fost afectat producator/consumator")),"") ->  | BJ109: =IF(C109="X",IF(AN109="DA",IF(AND(BI109>=5,AI109<>""),LEN(TRIM(U109))-LEN(SUBSTITUTE(U109,CHAR(44),""))+1,0),"-"),"") ->  | BK109: =IF(C109="X",IF(AN109="DA",LEN(TRIM(U109))-LEN(SUBSTITUTE(U109,CHAR(44),""))+1,"-"),"") ->  | BL109: =IF(C109="X",IF(AN109="","Afectat sau NU?",IF(AN109="DA",((AG109+AH109)-(Z109+AA109))*24,"Nu a fost afectat producator/consumator")),"") ->  | BM109: =IF(C109="X",IF(AN109<>"DA","-",IF(AND(AN109="DA",BL109<=0),LEN(TRIM(V109))-LEN(SUBSTITUTE(V109,CHAR(44),""))+1+LEN(TRIM(U109))-LEN(SUBSTITUTE(U109,CHAR(44),""))+1,0)),"") ->  | BN109: =IF(C109="X",IF(AN109="DA",LEN(TRIM(V109))-LEN(SUBSTITUTE(V109,CHAR(44),""))+1+LEN(TRIM(U109))-LEN(SUBSTITUTE(U109,CHAR(44),""))+1,"-"),"") -> 
A110: =SUM(1,A109) -> 95 | B110: X | C110: - | D110: Remediere definitivă a unui defect de coroziune pe conducta 20” Turburea - Ișalnița, fir I, zona Răcari | E110: 72418 | F110: Ghercești | G110: Bihor | H110: 412675.23 | I110: 316838.13 | J110: 412675.23 | K110: 316838.13 | L110: - | M110: - | N110: - | O110: - | P110: - | Q110: - | R110: PM0275 | S110: Stația Centrală Ghercești Extras | T110: VPM01 | U110: Aderro GP, Alpha Metal, Amarad, Nova Power, Cez Vânzare, Cordun Gaz, CPL Concordia, Cyeb, MM Data, Distrigaz Vest, Engie, E.on Energie, Electrica Furnizare, Electric&Gas, Energy Distribution, Enel Energie, Enel Muntenia, Gas&Power, Euro Seven, Premier Energy Trading, Gaz Est, Hargaz, Gazmir, Gaz Nord Est, Gaz Vest, Gecabuild, Măcin Gaz, Mehedinți Gaz, Met România, Nord Gaz, Oligopol, Pado Group, Premier Energy, Petrom, Prisma Serv, Progaz, Energy Gas Provider, Restart Energy, Romgaz, Tinmar, Vega 93, Veolia, Wiee | V110: Depogaz Ploiești | W110: - | X110: 2020-11-16 | Y110: 11:10:00 | Z110: 2020-11-16 | AA110: 23:00:00 | AB110: Craiova | AC110: Efectuată (din motive tehnice a trebuit amânată) | AE110: 2020-11-16 | AF110: 11:10:00 | AG110: 2020-11-16 | AH110: 12:50:00 | AI110: 2020-11-16 | AJ110: 12:28:00 | AK110: 2020-11-16 | AL110: 11:26:00 | AM110: 2717/13.11.2020 | AN110: DA | AR110: =IF(B110="X",IF(AN110="","Afectat sau NU?",IF(AN110="DA",IF(((AK110+AL110)-(AE110+AF110))*24<-720,"Neinformat",((AK110+AL110)-(AE110+AF110))*24),"Nu a fost afectat producator/consumator")),"") -> 0.2666666667 | AS110: =IF(B110="X",IF(AN110="DA",IF(AR110<6,LEN(TRIM(V110))-LEN(SUBSTITUTE(V110,CHAR(44),""))+1,0),"-"),"") -> 1 | AT110: =IF(B110="X",IF(AN110="DA",LEN(TRIM(V110))-LEN(SUBSTITUTE(V110,CHAR(44),""))+1,"-"),"") -> 1 | AU110: =IF(B110="X",IF(AN110="","Afectat sau NU?",IF(AN110="DA",IF(((AI110+AJ110)-(AE110+AF110))*24<-720,"Neinformat",((AI110+AJ110)-(AE110+AF110))*24),"Nu a fost afectat producator/consumator")),"") -> 1.3 | AV110: =IF(B110="X",IF(AN110="DA",IF(AU110<6,LEN(TRIM(U110))-LEN(SUBSTITUTE(U110,CHAR(44),""))+1,0),"-"),"") -> 43 | AW110: =IF(B110="X",IF(AN110="DA",LEN(TRIM(U110))-LEN(SUBSTITUTE(U110,CHAR(44),""))+1,"-"),"") -> 43 | AX110: =IF(B110="X",IF(AN110="","Afectat sau NU?",IF(AN110="DA",((AG110+AH110)-(AE110+AF110))*24,"Nu a fost afectat producator/consumator")),"") -> 1.666666667 | AY110: =IF(B110="X",IF(AN110="DA",IF(AX110>24,IF(BA110="NU",0,LEN(TRIM(V110))-LEN(SUBSTITUTE(V110,CHAR(44),""))+1),0),"-"),"") -> 0 | AZ110: =IF(B110="X",IF(AN110="DA",IF(AX110>24,LEN(TRIM(V110))-LEN(SUBSTITUTE(V110,CHAR(44),""))+1,0),"-"),"") -> 0 | BF110: =IF(C110="X",IF(AN110="","Afectat sau NU?",IF(AN110="DA",IF(AK110="","Neinformat",NETWORKDAYS(AK110+AL110,AE110+AF110,$BS$2:$BS$14)-2),"Nu a fost afectat producator/consumator")),"") ->  | BG110: =IF(C110="X",IF(AN110="DA",IF(AND(BF110>=5,AK110<>""),LEN(TRIM(V110))-LEN(SUBSTITUTE(V110,CHAR(44),""))+1,0),"-"),"") ->  | BH110: =IF(C110="X",IF(AN110="DA",LEN(TRIM(V110))-LEN(SUBSTITUTE(V110,CHAR(44),""))+1,"-"),"") ->  | BI110: =IF(C110="X",IF(AN110="","Afectat sau NU?",IF(AN110="DA",IF(AI110="","Neinformat",NETWORKDAYS(AI110+AJ110,AE110+AF110,$BS$2:$BS$14)-2),"Nu a fost afectat producator/consumator")),"") ->  | BJ110: =IF(C110="X",IF(AN110="DA",IF(AND(BI110>=5,AI110<>""),LEN(TRIM(U110))-LEN(SUBSTITUTE(U110,CHAR(44),""))+1,0),"-"),"") ->  | BK110: =IF(C110="X",IF(AN110="DA",LEN(TRIM(U110))-LEN(SUBSTITUTE(U110,CHAR(44),""))+1,"-"),"") ->  | BL110: =IF(C110="X",IF(AN110="","Afectat sau NU?",IF(AN110="DA",((AG110+AH110)-(Z110+AA110))*24,"Nu a fost afectat producator/consumator")),"") ->  | BM110: =IF(C110="X",IF(AN110<>"DA","-",IF(AND(AN110="DA",BL110<=0),LEN(TRIM(V110))-LEN(SUBSTITUTE(V110,CHAR(44),""))+1+LEN(TRIM(U110))-LEN(SUBSTITUTE(U110,CHAR(44),""))+1,0)),"") ->  | BN110: =IF(C110="X",IF(AN110="DA",LEN(TRIM(V110))-LEN(SUBSTITUTE(V110,CHAR(44),""))+1+LEN(TRIM(U110))-LEN(SUBSTITUTE(U110,CHAR(44),""))+1,"-"),"") -> 
A111: =SUM(1,A110) -> 96 | B111: X | C111: - | D111: Cuplare deviere conductă 4” racord SRM Tălmăcel | E111: 145845 | F111: Boița | G111: Sibiu | H111: 442446.2 | I111: 460048.52 | J111: 442446.2 | K111: 460048.52 | L111: - | M111: - | N111: SM0736D0 | O111: Boița | P111: - | Q111: - | R111: - | S111: - | T111: SM-SD001 | U111: Aderro GP, Nova Power, Cez Vânzare, Cis Gaz, Conef Gaz, CPL Concordia, Crest Energy, Cyeb, Design Proiect, Distrigaz Vest, Engie, E.on Energie, Electrica Furnizare, Electric Planners, Electric&Gas, Energy Distribution, Enel Energie, Enel Muntenia, Gas&Power, Entrex, Premier Energy Trading, Gaz Est, Hargaz, Gazmir, Gaz Vest, Mihoc Oil, Met România, Monsson, Next Energy Distribution, Next Energy Partners, Pado Group, Premier Energy, Petrom, Prisma Serv, Gas Provider, Renovatio, Res Energy Solutions, Restart Energy, RWE Supply, SST Grup, Tetarom, Tinmar, Veolia, Wiee | V111: Delgaz Grid | W111: - | X111: 2020-11-24 | Y111: 08:00:00 | Z111: 2020-11-24 | AA111: 15:00:00 | AB111: Mediaș | AC111: Efectuată | AE111: 2020-11-24 | AF111: 08:00:00 | AG111: 2020-11-24 | AH111: 14:00:00 | AI111: 2020-11-24 | AJ111: 08:29:00 | AK111: 2020-11-24 | AL111: 08:09:00 | AM111: 10487/23.11.2020 | AN111: DA | AR111: =IF(B111="X",IF(AN111="","Afectat sau NU?",IF(AN111="DA",IF(((AK111+AL111)-(AE111+AF111))*24<-720,"Neinformat",((AK111+AL111)-(AE111+AF111))*24),"Nu a fost afectat producator/consumator")),"") -> 0.15 | AS111: =IF(B111="X",IF(AN111="DA",IF(AR111<6,LEN(TRIM(V111))-LEN(SUBSTITUTE(V111,CHAR(44),""))+1,0),"-"),"") -> 1 | AT111: =IF(B111="X",IF(AN111="DA",LEN(TRIM(V111))-LEN(SUBSTITUTE(V111,CHAR(44),""))+1,"-"),"") -> 1 | AU111: =IF(B111="X",IF(AN111="","Afectat sau NU?",IF(AN111="DA",IF(((AI111+AJ111)-(AE111+AF111))*24<-720,"Neinformat",((AI111+AJ111)-(AE111+AF111))*24),"Nu a fost afectat producator/consumator")),"") -> 0.4833333333 | AV111: =IF(B111="X",IF(AN111="DA",IF(AU111<6,LEN(TRIM(U111))-LEN(SUBSTITUTE(U111,CHAR(44),""))+1,0),"-"),"") -> 44 | AW111: =IF(B111="X",IF(AN111="DA",LEN(TRIM(U111))-LEN(SUBSTITUTE(U111,CHAR(44),""))+1,"-"),"") -> 44 | AX111: =IF(B111="X",IF(AN111="","Afectat sau NU?",IF(AN111="DA",((AG111+AH111)-(AE111+AF111))*24,"Nu a fost afectat producator/consumator")),"") -> 6 | AY111: =IF(B111="X",IF(AN111="DA",IF(AX111>24,IF(BA111="NU",0,LEN(TRIM(V111))-LEN(SUBSTITUTE(V111,CHAR(44),""))+1),0),"-"),"") -> 0 | AZ111: =IF(B111="X",IF(AN111="DA",IF(AX111>24,LEN(TRIM(V111))-LEN(SUBSTITUTE(V111,CHAR(44),""))+1,0),"-"),"") -> 0 | BF111: =IF(C111="X",IF(AN111="","Afectat sau NU?",IF(AN111="DA",IF(AK111="","Neinformat",NETWORKDAYS(AK111+AL111,AE111+AF111,$BS$2:$BS$14)-2),"Nu a fost afectat producator/consumator")),"") ->  | BG111: =IF(C111="X",IF(AN111="DA",IF(AND(BF111>=5,AK111<>""),LEN(TRIM(V111))-LEN(SUBSTITUTE(V111,CHAR(44),""))+1,0),"-"),"") ->  | BH111: =IF(C111="X",IF(AN111="DA",LEN(TRIM(V111))-LEN(SUBSTITUTE(V111,CHAR(44),""))+1,"-"),"") ->  | BI111: =IF(C111="X",IF(AN111="","Afectat sau NU?",IF(AN111="DA",IF(AI111="","Neinformat",NETWORKDAYS(AI111+AJ111,AE111+AF111,$BS$2:$BS$14)-2),"Nu a fost afectat producator/consumator")),"") ->  | BJ111: =IF(C111="X",IF(AN111="DA",IF(AND(BI111>=5,AI111<>""),LEN(TRIM(U111))-LEN(SUBSTITUTE(U111,CHAR(44),""))+1,0),"-"),"") ->  | BK111: =IF(C111="X",IF(AN111="DA",LEN(TRIM(U111))-LEN(SUBSTITUTE(U111,CHAR(44),""))+1,"-"),"") ->  | BL111: =IF(C111="X",IF(AN111="","Afectat sau NU?",IF(AN111="DA",((AG111+AH111)-(Z111+AA111))*24,"Nu a fost afectat producator/consumator")),"") ->  | BM111: =IF(C111="X",IF(AN111<>"DA","-",IF(AND(AN111="DA",BL111<=0),LEN(TRIM(V111))-LEN(SUBSTITUTE(V111,CHAR(44),""))+1+LEN(TRIM(U111))-LEN(SUBSTITUTE(U111,CHAR(44),""))+1,0)),"") ->  | BN111: =IF(C111="X",IF(AN111="DA",LEN(TRIM(V111))-LEN(SUBSTITUTE(V111,CHAR(44),""))+1+LEN(TRIM(U111))-LEN(SUBSTITUTE(U111,CHAR(44),""))+1,"-"),"") -> 
A112: =SUM(1,A111) -> 97 | B112: X | C112: - | D112: Cuplare deviere conductă 4” racord SRM Tălmăcel | E112: 145890 | F112: Tălmăcel | G112: Sibiu | H112: 441757.19 | I112: 461422.55 | J112: 441757.19 | K112: 461422.55 | L112: - | M112: - | N112: SM1160D0 | O112: Tălmăcel II | P112: - | Q112: - | R112: - | S112: - | T112: SM-SD001 | U112: Aderro GP, Nova Power, Cez Vânzare, Cis Gaz, Conef Gaz, CPL Concordia, Crest Energy, Cyeb, Design Proiect, Distrigaz Vest, Engie, E.on Energie, Electrica Furnizare, Electric Planners, Electric&Gas, Energy Distribution, Enel Energie, Enel Muntenia, Gas&Power, Entrex, Premier Energy Trading, Gaz Est, Hargaz, Gazmir, Gaz Vest, Mihoc Oil, Met România, Monsson, Next Energy Distribution, Next Energy Partners, Pado Group, Premier Energy, Petrom, Prisma Serv, Gas Provider, Renovatio, Res Energy Solutions, Restart Energy, RWE Supply, SST Grup, Tetarom, Tinmar, Veolia, Wiee | V112: Delgaz Grid | W112: - | X112: 2020-11-24 | Y112: 08:00:00 | Z112: 2020-11-24 | AA112: 15:00:00 | AB112: Mediaș | AC112: Efectuată | AE112: 2020-11-24 | AF112: 08:00:00 | AG112: 2020-11-24 | AH112: 14:00:00 | AI112: 2020-11-24 | AJ112: 08:29:00 | AK112: 2020-11-24 | AL112: 08:09:00 | AM112: 10487/23.11.2020 | AN112: DA | AR112: =IF(B112="X",IF(AN112="","Afectat sau NU?",IF(AN112="DA",IF(((AK112+AL112)-(AE112+AF112))*24<-720,"Neinformat",((AK112+AL112)-(AE112+AF112))*24),"Nu a fost afectat producator/consumator")),"") -> 0.15 | AS112: =IF(B112="X",IF(AN112="DA",IF(AR112<6,LEN(TRIM(V112))-LEN(SUBSTITUTE(V112,CHAR(44),""))+1,0),"-"),"") -> 1 | AT112: =IF(B112="X",IF(AN112="DA",LEN(TRIM(V112))-LEN(SUBSTITUTE(V112,CHAR(44),""))+1,"-"),"") -> 1 | AU112: =IF(B112="X",IF(AN112="","Afectat sau NU?",IF(AN112="DA",IF(((AI112+AJ112)-(AE112+AF112))*24<-720,"Neinformat",((AI112+AJ112)-(AE112+AF112))*24),"Nu a fost afectat producator/consumator")),"") -> 0.4833333333 | AV112: =IF(B112="X",IF(AN112="DA",IF(AU112<6,LEN(TRIM(U112))-LEN(SUBSTITUTE(U112,CHAR(44),""))+1,0),"-"),"") -> 44 | AW112: =IF(B112="X",IF(AN112="DA",LEN(TRIM(U112))-LEN(SUBSTITUTE(U112,CHAR(44),""))+1,"-"),"") -> 44 | AX112: =IF(B112="X",IF(AN112="","Afectat sau NU?",IF(AN112="DA",((AG112+AH112)-(AE112+AF112))*24,"Nu a fost afectat producator/consumator")),"") -> 6 | AY112: =IF(B112="X",IF(AN112="DA",IF(AX112>24,IF(BA112="NU",0,LEN(TRIM(V112))-LEN(SUBSTITUTE(V112,CHAR(44),""))+1),0),"-"),"") -> 0 | AZ112: =IF(B112="X",IF(AN112="DA",IF(AX112>24,LEN(TRIM(V112))-LEN(SUBSTITUTE(V112,CHAR(44),""))+1,0),"-"),"") -> 0 | BF112: =IF(C112="X",IF(AN112="","Afectat sau NU?",IF(AN112="DA",IF(AK112="","Neinformat",NETWORKDAYS(AK112+AL112,AE112+AF112,$BS$2:$BS$14)-2),"Nu a fost afectat producator/consumator")),"") ->  | BG112: =IF(C112="X",IF(AN112="DA",IF(AND(BF112>=5,AK112<>""),LEN(TRIM(V112))-LEN(SUBSTITUTE(V112,CHAR(44),""))+1,0),"-"),"") ->  | BH112: =IF(C112="X",IF(AN112="DA",LEN(TRIM(V112))-LEN(SUBSTITUTE(V112,CHAR(44),""))+1,"-"),"") ->  | BI112: =IF(C112="X",IF(AN112="","Afectat sau NU?",IF(AN112="DA",IF(AI112="","Neinformat",NETWORKDAYS(AI112+AJ112,AE112+AF112,$BS$2:$BS$14)-2),"Nu a fost afectat producator/consumator")),"") ->  | BJ112: =IF(C112="X",IF(AN112="DA",IF(AND(BI112>=5,AI112<>""),LEN(TRIM(U112))-LEN(SUBSTITUTE(U112,CHAR(44),""))+1,0),"-"),"") ->  | BK112: =IF(C112="X",IF(AN112="DA",LEN(TRIM(U112))-LEN(SUBSTITUTE(U112,CHAR(44),""))+1,"-"),"") ->  | BL112: =IF(C112="X",IF(AN112="","Afectat sau NU?",IF(AN112="DA",((AG112+AH112)-(Z112+AA112))*24,"Nu a fost afectat producator/consumator")),"") ->  | BM112: =IF(C112="X",IF(AN112<>"DA","-",IF(AND(AN112="DA",BL112<=0),LEN(TRIM(V112))-LEN(SUBSTITUTE(V112,CHAR(44),""))+1+LEN(TRIM(U112))-LEN(SUBSTITUTE(U112,CHAR(44),""))+1,0)),"") ->  | BN112: =IF(C112="X",IF(AN112="DA",LEN(TRIM(V112))-LEN(SUBSTITUTE(V112,CHAR(44),""))+1+LEN(TRIM(U112))-LEN(SUBSTITUTE(U112,CHAR(44),""))+1,"-"),"") -> 
A113: =SUM(1,A112) -> 98 | B113: X | C113: - | D113: Cuplare deviere conductă 4” racord SRM Tălmăcel | E113: 145890 | F113: Tălmăcel | G113: Sibiu | H113: 441290.5 | I113: 461208.57 | J113: 441290.5 | K113: 461208.57 | L113: - | M113: - | N113: SM0735D0 | O113: Tălmăcel | P113: - | Q113: - | R113: - | S113: - | T113: SM-SD001 | U113: Aderro GP, Nova Power, Cez Vânzare, Cis Gaz, Conef Gaz, CPL Concordia, Crest Energy, Cyeb, Design Proiect, Distrigaz Vest, Engie, E.on Energie, Electrica Furnizare, Electric Planners, Electric&Gas, Energy Distribution, Enel Energie, Enel Muntenia, Gas&Power, Entrex, Premier Energy Trading, Gaz Est, Hargaz, Gazmir, Gaz Vest, Mihoc Oil, Met România, Monsson, Next Energy Distribution, Next Energy Partners, Pado Group, Premier Energy, Petrom, Prisma Serv, Gas Provider, Renovatio, Res Energy Solutions, Restart Energy, RWE Supply, SST Grup, Tetarom, Tinmar, Veolia, Wiee | V113: Delgaz Grid | W113: - | X113: 2020-11-24 | Y113: 08:00:00 | Z113: 2020-11-24 | AA113: 15:00:00 | AB113: Mediaș | AC113: Efectuată | AE113: 2020-11-24 | AF113: 08:00:00 | AG113: 2020-11-24 | AH113: 14:00:00 | AI113: 2020-11-24 | AJ113: 08:29:00 | AK113: 2020-11-24 | AL113: 08:09:00 | AM113: 10487/23.11.2020 | AN113: DA | AR113: =IF(B113="X",IF(AN113="","Afectat sau NU?",IF(AN113="DA",IF(((AK113+AL113)-(AE113+AF113))*24<-720,"Neinformat",((AK113+AL113)-(AE113+AF113))*24),"Nu a fost afectat producator/consumator")),"") -> 0.15 | AS113: =IF(B113="X",IF(AN113="DA",IF(AR113<6,LEN(TRIM(V113))-LEN(SUBSTITUTE(V113,CHAR(44),""))+1,0),"-"),"") -> 1 | AT113: =IF(B113="X",IF(AN113="DA",LEN(TRIM(V113))-LEN(SUBSTITUTE(V113,CHAR(44),""))+1,"-"),"") -> 1 | AU113: =IF(B113="X",IF(AN113="","Afectat sau NU?",IF(AN113="DA",IF(((AI113+AJ113)-(AE113+AF113))*24<-720,"Neinformat",((AI113+AJ113)-(AE113+AF113))*24),"Nu a fost afectat producator/consumator")),"") -> 0.4833333333 | AV113: =IF(B113="X",IF(AN113="DA",IF(AU113<6,LEN(TRIM(U113))-LEN(SUBSTITUTE(U113,CHAR(44),""))+1,0),"-"),"") -> 44 | AW113: =IF(B113="X",IF(AN113="DA",LEN(TRIM(U113))-LEN(SUBSTITUTE(U113,CHAR(44),""))+1,"-"),"") -> 44 | AX113: =IF(B113="X",IF(AN113="","Afectat sau NU?",IF(AN113="DA",((AG113+AH113)-(AE113+AF113))*24,"Nu a fost afectat producator/consumator")),"") -> 6 | AY113: =IF(B113="X",IF(AN113="DA",IF(AX113>24,IF(BA113="NU",0,LEN(TRIM(V113))-LEN(SUBSTITUTE(V113,CHAR(44),""))+1),0),"-"),"") -> 0 | AZ113: =IF(B113="X",IF(AN113="DA",IF(AX113>24,LEN(TRIM(V113))-LEN(SUBSTITUTE(V113,CHAR(44),""))+1,0),"-"),"") -> 0 | BF113: =IF(C113="X",IF(AN113="","Afectat sau NU?",IF(AN113="DA",IF(AK113="","Neinformat",NETWORKDAYS(AK113+AL113,AE113+AF113,$BS$2:$BS$14)-2),"Nu a fost afectat producator/consumator")),"") ->  | BG113: =IF(C113="X",IF(AN113="DA",IF(AND(BF113>=5,AK113<>""),LEN(TRIM(V113))-LEN(SUBSTITUTE(V113,CHAR(44),""))+1,0),"-"),"") ->  | BH113: =IF(C113="X",IF(AN113="DA",LEN(TRIM(V113))-LEN(SUBSTITUTE(V113,CHAR(44),""))+1,"-"),"") ->  | BI113: =IF(C113="X",IF(AN113="","Afectat sau NU?",IF(AN113="DA",IF(AI113="","Neinformat",NETWORKDAYS(AI113+AJ113,AE113+AF113,$BS$2:$BS$14)-2),"Nu a fost afectat producator/consumator")),"") ->  | BJ113: =IF(C113="X",IF(AN113="DA",IF(AND(BI113>=5,AI113<>""),LEN(TRIM(U113))-LEN(SUBSTITUTE(U113,CHAR(44),""))+1,0),"-"),"") ->  | BK113: =IF(C113="X",IF(AN113="DA",LEN(TRIM(U113))-LEN(SUBSTITUTE(U113,CHAR(44),""))+1,"-"),"") ->  | BL113: =IF(C113="X",IF(AN113="","Afectat sau NU?",IF(AN113="DA",((AG113+AH113)-(Z113+AA113))*24,"Nu a fost afectat producator/consumator")),"") ->  | BM113: =IF(C113="X",IF(AN113<>"DA","-",IF(AND(AN113="DA",BL113<=0),LEN(TRIM(V113))-LEN(SUBSTITUTE(V113,CHAR(44),""))+1+LEN(TRIM(U113))-LEN(SUBSTITUTE(U113,CHAR(44),""))+1,0)),"") ->  | BN113: =IF(C113="X",IF(AN113="DA",LEN(TRIM(V113))-LEN(SUBSTITUTE(V113,CHAR(44),""))+1+LEN(TRIM(U113))-LEN(SUBSTITUTE(U113,CHAR(44),""))+1,"-"),"") -> 
A114: =SUM(1,A113) -> 99 | B114: X | C114: - | D114: Oprire accidentală SRM Vața | E114: 19962 | F114: Vața | G114: Argeș | H114: 474320.82 | I114: 361923.01 | J114: 474320.82 | K114: 361923.01 | L114: - | M114: - | N114: SM0219D0 | O114: Vața | P114: - | Q114: - | R114: - | S114: - | T114: SM-SD001 | U114: Aderro GP, Alpha Metal, Nova Power, Cez Vânzare, Cis Gaz, Conef Gaz, Crest Energy, Cyeb, Distrigaz Vest, Engie, E.on Energie, Electrocentrale București, Electrocentrale Constanța, Electrica Furnizare, Electric Planners, Electric&Gas, Energy Distribution, Enel Energie, Enel Muntenia, Gas&Power, Entrex, Euro Seven, Premier Energy Trading, Gaz Est, Hargaz, Gaz Vest, Megaconstruct, Met România, Monsson, Next Energy Distribution, Next Energy Partners, Nord Gaz, Oligopol, Premier Energy, Petrom, Progaz, Energy Gas Provider, Renovatio, Res Energy Solutions, Restart Energy, Romgaz, RWE Supply, Tinmar, Transenergo, Vega 93, Veolia, Wiee | V114: Distrigaz Sud Rețele | W114: - | X114: 2020-12-03 | Y114: 11:50:00 | Z114: 2020-12-03 | AA114: 14:00:00 | AB114: Craiova | AC114: Efectuată | AE114: 2020-12-03 | AF114: 11:50:00 | AG114: 2020-12-03 | AH114: 14:00:00 | AI114: 2020-12-03 | AJ114: 12:21:00 | AK114: 2020-12-03 | AL114: 12:14:00 | AM114: - | AN114: DA | AR114: 0.4000000001 | AS114: 1 | AT114: 1 | AU114: 0.5166666666 | AV114: 47 | AW114: 47 | AX114: 2.166666667 | AY114: 0 | AZ114: 0
A115: 100 | B115: X | C115: - | D115: Oprire accidentală SRM Gordon Prod Bulgăreni | E115: 84852 | F115: Bulgăreni | G115: Harghita | H115: 518631.57 | I115: 539395.3 | J115: 518631.57 | K115: 539395.3 | L115: - | M115: - | N115: SM0999D0 | O115: SC Gordon Prod Bulgăreni | P115: - | Q115: - | R115: - | S115: - | T115: SM-CF001 | U115: Nova Power | V115: SC Gordon Prod SRL | W115: - | X115: 2020-12-17 | Y115: 14:56:00 | Z115: 2020-12-18 | AA115: 14:00:00 | AB115: Brașov | AC115: Efectuată | AE115: 2020-12-17 | AF115: 14:56:00 | AG115: 2020-12-18 | AH115: 10:00:00 | AI115: 2020-12-17 | AJ115: 15:20:00 | AK115: 2020-12-17 | AL115: 15:03:00 | AM115: 3589/18.12.2020 | AN115: DA | AR115: =IF(B115="X",IF(AN115="","Afectat sau NU?",IF(AN115="DA",IF(((AK115+AL115)-(AE115+AF115))*24<-720,"Neinformat",((AK115+AL115)-(AE115+AF115))*24),"Nu a fost afectat producator/consumator")),"") -> 0.1166666667 | AS115: =IF(B115="X",IF(AN115="DA",IF(AR115<6,LEN(TRIM(V115))-LEN(SUBSTITUTE(V115,CHAR(44),""))+1,0),"-"),"") -> 1 | AT115: =IF(B115="X",IF(AN115="DA",LEN(TRIM(V115))-LEN(SUBSTITUTE(V115,CHAR(44),""))+1,"-"),"") -> 1 | AU115: =IF(B115="X",IF(AN115="","Afectat sau NU?",IF(AN115="DA",IF(((AI115+AJ115)-(AE115+AF115))*24<-720,"Neinformat",((AI115+AJ115)-(AE115+AF115))*24),"Nu a fost afectat producator/consumator")),"") -> 0.4000000001 | AV115: =IF(B115="X",IF(AN115="DA",IF(AU115<6,LEN(TRIM(U115))-LEN(SUBSTITUTE(U115,CHAR(44),""))+1,0),"-"),"") -> 1 | AW115: =IF(B115="X",IF(AN115="DA",LEN(TRIM(U115))-LEN(SUBSTITUTE(U115,CHAR(44),""))+1,"-"),"") -> 1 | AX115: =IF(B115="X",IF(AN115="","Afectat sau NU?",IF(AN115="DA",((AG115+AH115)-(AE115+AF115))*24,"Nu a fost afectat producator/consumator")),"") -> 19.06666667 | AY115: =IF(B115="X",IF(AN115="DA",IF(AX115>24,IF(BA115="NU",0,LEN(TRIM(V115))-LEN(SUBSTITUTE(V115,CHAR(44),""))+1),0),"-"),"") -> 0 | AZ115: =IF(B115="X",IF(AN115="DA",IF(AX115>24,LEN(TRIM(V115))-LEN(SUBSTITUTE(V115,CHAR(44),""))+1,0),"-"),"") -> 0 | BF115: =IF(C115="X",IF(AN115="","Afectat sau NU?",IF(AN115="DA",IF(AK115="","Neinformat",NETWORKDAYS(AK115+AL115,AE115+AF115,$BS$2:$BS$14)-2),"Nu a fost afectat producator/consumator")),"") ->  | BG115: =IF(C115="X",IF(AN115="DA",IF(AND(BF115>=5,AK115<>""),LEN(TRIM(V115))-LEN(SUBSTITUTE(V115,CHAR(44),""))+1,0),"-"),"") ->  | BH115: =IF(C115="X",IF(AN115="DA",LEN(TRIM(V115))-LEN(SUBSTITUTE(V115,CHAR(44),""))+1,"-"),"") ->  | BI115: =IF(C115="X",IF(AN115="","Afectat sau NU?",IF(AN115="DA",IF(AI115="","Neinformat",NETWORKDAYS(AI115+AJ115,AE115+AF115,$BS$2:$BS$14)-2),"Nu a fost afectat producator/consumator")),"") ->  | BJ115: =IF(C115="X",IF(AN115="DA",IF(AND(BI115>=5,AI115<>""),LEN(TRIM(U115))-LEN(SUBSTITUTE(U115,CHAR(44),""))+1,0),"-"),"") ->  | BK115: =IF(C115="X",IF(AN115="DA",LEN(TRIM(U115))-LEN(SUBSTITUTE(U115,CHAR(44),""))+1,"-"),"") ->  | BL115: =IF(C115="X",IF(AN115="","Afectat sau NU?",IF(AN115="DA",((AG115+AH115)-(Z115+AA115))*24,"Nu a fost afectat producator/consumator")),"") ->  | BM115: =IF(C115="X",IF(AN115<>"DA","-",IF(AND(AN115="DA",BL115<=0),LEN(TRIM(V115))-LEN(SUBSTITUTE(V115,CHAR(44),""))+1+LEN(TRIM(U115))-LEN(SUBSTITUTE(U115,CHAR(44),""))+1,0)),"") ->  | BN115: =IF(C115="X",IF(AN115="DA",LEN(TRIM(V115))-LEN(SUBSTITUTE(V115,CHAR(44),""))+1+LEN(TRIM(U115))-LEN(SUBSTITUTE(U115,CHAR(44),""))+1,"-"),"") -> 
A116: 101 | B116: X | C116: - | D116: Remediere defect pe conducta 32" Moșu - Cogenerare Brazi la traversarea râului Prahova | E116: 130721 | F116: Brazii de sus | G116: Prahova | H116: 578964.7 | I116: 376015.84 | J116: 578964.7 | K116: 376015.84 | L116: SM1248D0 | M116: CECC Brazi | N116: - | O116: - | P116: - | Q116: - | R116: - | S116: - | T116: SM-CF001 | U116: Nova Power, Cez Vânzare, Engie, E.on Energie, Electric&Gas, Enel, Premier Energy Trading, Gaz Est, Premier Energy, Petrom, Restart Energy | V116: Petrom | W116: - | X116: 2020-12-31 | Y116: 04:50:00 | Z116: 2020-12-31 | AA116: 14:00:00 | AB116: București | AC116: Efectuată | AE116: 2020-12-31 | AF116: 04:50:00 | AG116: 2020-12-31 | AH116: 11:45:00 | AI116: 2020-12-31 | AJ116: 06:09:00 | AK116: 2020-12-31 | AL116: 05:43:00 | AM116: 5519/31.12.2020 | AN116: DA | AR116: =IF(B116="X",IF(AN116="","Afectat sau NU?",IF(AN116="DA",IF(((AK116+AL116)-(AE116+AF116))*24<-720,"Neinformat",((AK116+AL116)-(AE116+AF116))*24),"Nu a fost afectat producator/consumator")),"") -> 0.8833333332 | AS116: =IF(B116="X",IF(AN116="DA",IF(AR116<6,LEN(TRIM(V116))-LEN(SUBSTITUTE(V116,CHAR(44),""))+1,0),"-"),"") -> 1 | AT116: =IF(B116="X",IF(AN116="DA",LEN(TRIM(V116))-LEN(SUBSTITUTE(V116,CHAR(44),""))+1,"-"),"") -> 1 | AU116: =IF(B116="X",IF(AN116="","Afectat sau NU?",IF(AN116="DA",IF(((AI116+AJ116)-(AE116+AF116))*24<-720,"Neinformat",((AI116+AJ116)-(AE116+AF116))*24),"Nu a fost afectat producator/consumator")),"") -> 1.316666667 | AV116: =IF(B116="X",IF(AN116="DA",IF(AU116<6,LEN(TRIM(U116))-LEN(SUBSTITUTE(U116,CHAR(44),""))+1,0),"-"),"") -> 11 | AW116: =IF(B116="X",IF(AN116="DA",LEN(TRIM(U116))-LEN(SUBSTITUTE(U116,CHAR(44),""))+1,"-"),"") -> 11 | AX116: =IF(B116="X",IF(AN116="","Afectat sau NU?",IF(AN116="DA",((AG116+AH116)-(AE116+AF116))*24,"Nu a fost afectat producator/consumator")),"") -> 6.916666667 | AY116: =IF(B116="X",IF(AN116="DA",IF(AX116>24,IF(BA116="NU",0,LEN(TRIM(V116))-LEN(SUBSTITUTE(V116,CHAR(44),""))+1),0),"-"),"") -> 0 | AZ116: =IF(B116="X",IF(AN116="DA",IF(AX116>24,LEN(TRIM(V116))-LEN(SUBSTITUTE(V116,CHAR(44),""))+1,0),"-"),"") -> 0 | BF116: =IF(C116="X",IF(AN116="","Afectat sau NU?",IF(AN116="DA",IF(AK116="","Neinformat",NETWORKDAYS(AK116+AL116,AE116+AF116,$BS$2:$BS$14)-2),"Nu a fost afectat producator/consumator")),"") ->  | BG116: =IF(C116="X",IF(AN116="DA",IF(AND(BF116>=5,AK116<>""),LEN(TRIM(V116))-LEN(SUBSTITUTE(V116,CHAR(44),""))+1,0),"-"),"") ->  | BH116: =IF(C116="X",IF(AN116="DA",LEN(TRIM(V116))-LEN(SUBSTITUTE(V116,CHAR(44),""))+1,"-"),"") ->  | BI116: =IF(C116="X",IF(AN116="","Afectat sau NU?",IF(AN116="DA",IF(AI116="","Neinformat",NETWORKDAYS(AI116+AJ116,AE116+AF116,$BS$2:$BS$14)-2),"Nu a fost afectat producator/consumator")),"") ->  | BJ116: =IF(C116="X",IF(AN116="DA",IF(AND(BI116>=5,AI116<>""),LEN(TRIM(U116))-LEN(SUBSTITUTE(U116,CHAR(44),""))+1,0),"-"),"") ->  | BK116: =IF(C116="X",IF(AN116="DA",LEN(TRIM(U116))-LEN(SUBSTITUTE(U116,CHAR(44),""))+1,"-"),"") ->  | BL116: =IF(C116="X",IF(AN116="","Afectat sau NU?",IF(AN116="DA",((AG116+AH116)-(Z116+AA116))*24,"Nu a fost afectat producator/consumator")),"") ->  | BM116: =IF(C116="X",IF(AN116<>"DA","-",IF(AND(AN116="DA",BL116<=0),LEN(TRIM(V116))-LEN(SUBSTITUTE(V116,CHAR(44),""))+1+LEN(TRIM(U116))-LEN(SUBSTITUTE(U116,CHAR(44),""))+1,0)),"") ->  | BN116: =IF(C116="X",IF(AN116="DA",LEN(TRIM(V116))-LEN(SUBSTITUTE(V116,CHAR(44),""))+1+LEN(TRIM(U116))-LEN(SUBSTITUTE(U116,CHAR(44),""))+1,"-"),"") -> 
A117: 102 | B117: X | C117: - | D117: Limitare tehnică a conductei 20" NT Mănești - Brazi Fir II | E117: 130721 | F117: Brazii de sus | G117: Prahova | H117: 578964.7 | I117: 376015.84 | J117: 578964.7 | K117: 376015.84 | L117: SM1248D0 | M117: CECC Brazi | N117: - | O117: - | P117: - | Q117: - | R117: - | S117: - | T117: SM-CF001 | U117: Nova Power, Cez Vânzare, Engie, E.on Energie, Electric&Gas, Enel, Premier Energy Trading, Gaz Est, Premier Energy, Petrom, Restart Energy | V117: Petrom | W117: - | X117: 2020-12-31 | Y117: 15:00:00 | Z117: 2021-01-01 | AA117: 04:00:00 | AB117: București | AC117: Efectuată | AE117: 2020-12-31 | AF117: 15:00:00 | AG117: 2021-01-01 | AH117: 10:29:00 | AI117: 2020-12-31 | AJ117: 15:48:00 | AK117: 2020-12-31 | AL117: 15:29:00 | AN117: DA | AR117: =IF(B117="X",IF(AN117="","Afectat sau NU?",IF(AN117="DA",IF(((AK117+AL117)-(AE117+AF117))*24<-720,"Neinformat",((AK117+AL117)-(AE117+AF117))*24),"Nu a fost afectat producator/consumator")),"") -> 0.4833333333 | AS117: =IF(B117="X",IF(AN117="DA",IF(AR117<6,LEN(TRIM(V117))-LEN(SUBSTITUTE(V117,CHAR(44),""))+1,0),"-"),"") -> 1 | AT117: =IF(B117="X",IF(AN117="DA",LEN(TRIM(V117))-LEN(SUBSTITUTE(V117,CHAR(44),""))+1,"-"),"") -> 1 | AU117: =IF(B117="X",IF(AN117="","Afectat sau NU?",IF(AN117="DA",IF(((AI117+AJ117)-(AE117+AF117))*24<-720,"Neinformat",((AI117+AJ117)-(AE117+AF117))*24),"Nu a fost afectat producator/consumator")),"") -> 0.8 | AV117: =IF(B117="X",IF(AN117="DA",IF(AU117<6,LEN(TRIM(U117))-LEN(SUBSTITUTE(U117,CHAR(44),""))+1,0),"-"),"") -> 11 | AW117: =IF(B117="X",IF(AN117="DA",LEN(TRIM(U117))-LEN(SUBSTITUTE(U117,CHAR(44),""))+1,"-"),"") -> 11 | AX117: =IF(B117="X",IF(AN117="","Afectat sau NU?",IF(AN117="DA",((AG117+AH117)-(AE117+AF117))*24,"Nu a fost afectat producator/consumator")),"") -> 19.48333333 | AY117: =IF(B117="X",IF(AN117="DA",IF(AX117>24,IF(BA117="NU",0,LEN(TRIM(V117))-LEN(SUBSTITUTE(V117,CHAR(44),""))+1),0),"-"),"") -> 0 | AZ117: =IF(B117="X",IF(AN117="DA",IF(AX117>24,LEN(TRIM(V117))-LEN(SUBSTITUTE(V117,CHAR(44),""))+1,0),"-"),"") -> 0 | BF117: =IF(C117="X",IF(AN117="","Afectat sau NU?",IF(AN117="DA",IF(AK117="","Neinformat",NETWORKDAYS(AK117+AL117,AE117+AF117,$BS$2:$BS$14)-2),"Nu a fost afectat producator/consumator")),"") ->  | BG117: =IF(C117="X",IF(AN117="DA",IF(AND(BF117>=5,AK117<>""),LEN(TRIM(V117))-LEN(SUBSTITUTE(V117,CHAR(44),""))+1,0),"-"),"") ->  | BH117: =IF(C117="X",IF(AN117="DA",LEN(TRIM(V117))-LEN(SUBSTITUTE(V117,CHAR(44),""))+1,"-"),"") ->  | BI117: =IF(C117="X",IF(AN117="","Afectat sau NU?",IF(AN117="DA",IF(AI117="","Neinformat",NETWORKDAYS(AI117+AJ117,AE117+AF117,$BS$2:$BS$14)-2),"Nu a fost afectat producator/consumator")),"") ->  | BJ117: =IF(C117="X",IF(AN117="DA",IF(AND(BI117>=5,AI117<>""),LEN(TRIM(U117))-LEN(SUBSTITUTE(U117,CHAR(44),""))+1,0),"-"),"") ->  | BK117: =IF(C117="X",IF(AN117="DA",LEN(TRIM(U117))-LEN(SUBSTITUTE(U117,CHAR(44),""))+1,"-"),"") ->  | BL117: =IF(C117="X",IF(AN117="","Afectat sau NU?",IF(AN117="DA",((AG117+AH117)-(Z117+AA117))*24,"Nu a fost afectat producator/consumator")),"") ->  | BM117: =IF(C117="X",IF(AN117<>"DA","-",IF(AND(AN117="DA",BL117<=0),LEN(TRIM(V117))-LEN(SUBSTITUTE(V117,CHAR(44),""))+1+LEN(TRIM(U117))-LEN(SUBSTITUTE(U117,CHAR(44),""))+1,0)),"") ->  | BN117: =IF(C117="X",IF(AN117="DA",LEN(TRIM(V117))-LEN(SUBSTITUTE(V117,CHAR(44),""))+1+LEN(TRIM(U117))-LEN(SUBSTITUTE(U117,CHAR(44),""))+1,"-"),"") -> 
A118: 103 | B118: X | C118: - | D118: Cuplare instalație tehnologică SRM Chișineu Criș la racord 8" Chișineu Criș | E118: 9468 | F118: Chișineu - Criș | G118: Arad | H118: 233939.75 | I118: 564386.76 | J118: 233939.75 | K118: 564386.76 | L118: - | M118: - | N118: SM0357D0 | O118: Chișineu Criș I | P118: - | Q118: - | R118: - | S118: - | T118: SM-SD001 | U118: Aderro GP, Nova Power, Cez Vânzare, Cis Gaz, Conef Gaz, CPL Concordia, Crest Energy, Cyeb, Design Proiect, Distrigaz Vest, Engie, E.on Energie, Electrica Furnizare, Electric Planners, Electric&Gas, Energy Distribution, Enel Energie, Enel Muntenia, Gas&Power, Entrex, Premier Energy Trading, Gaz Est, Hargaz, Gazmir, Gaz Vest, Mihoc Oil, Met România, Monsson, Next Energy Distribution, Next Energy Partners, Pado Group, Premier Energy, Petrom, Prisma Serv, Gas Provider, Renovatio, Res Energy Solutions, Restart Energy, RWE Supply, SST Grup, Tetarom, Tinmar, Veolia, Wiee | V118: Delgaz Grid | W118: - | X118: 2021-01-05 | Y118: 09:00:00 | Z118: 2021-01-05 | AA118: 16:00:00 | AB118: Arad | AC118: Efectuată | AE118: 2021-01-05 | AF118: 09:00:00 | AG118: 2021-01-05 | AH118: 18:00:00 | AI118: 2021-01-05 | AJ118: 09:56:00 | AK118: 2021-01-05 | AL118: 09:34:00 | AM118: 12055/30.12.2020 | AN118: DA | AR118: =IF(B118="X",IF(AN118="","Afectat sau NU?",IF(AN118="DA",IF(((AK118+AL118)-(AE118+AF118))*24<-720,"Neinformat",((AK118+AL118)-(AE118+AF118))*24),"Nu a fost afectat producator/consumator")),"") -> 0.5666666666 | AS118: =IF(B118="X",IF(AN118="DA",IF(AR118<6,LEN(TRIM(V118))-LEN(SUBSTITUTE(V118,CHAR(44),""))+1,0),"-"),"") -> 1 | AT118: =IF(B118="X",IF(AN118="DA",LEN(TRIM(V118))-LEN(SUBSTITUTE(V118,CHAR(44),""))+1,"-"),"") -> 1 | AU118: =IF(B118="X",IF(AN118="","Afectat sau NU?",IF(AN118="DA",IF(((AI118+AJ118)-(AE118+AF118))*24<-720,"Neinformat",((AI118+AJ118)-(AE118+AF118))*24),"Nu a fost afectat producator/consumator")),"") -> 0.9333333334 | AV118: =IF(B118="X",IF(AN118="DA",IF(AU118<6,LEN(TRIM(U118))-LEN(SUBSTITUTE(U118,CHAR(44),""))+1,0),"-"),"") -> 44 | AW118: =IF(B118="X",IF(AN118="DA",LEN(TRIM(U118))-LEN(SUBSTITUTE(U118,CHAR(44),""))+1,"-"),"") -> 44 | AX118: =IF(B118="X",IF(AN118="","Afectat sau NU?",IF(AN118="DA",((AG118+AH118)-(AE118+AF118))*24,"Nu a fost afectat producator/consumator")),"") -> 9 | AY118: =IF(B118="X",IF(AN118="DA",IF(AX118>24,IF(BA118="NU",0,LEN(TRIM(V118))-LEN(SUBSTITUTE(V118,CHAR(44),""))+1),0),"-"),"") -> 0 | AZ118: =IF(B118="X",IF(AN118="DA",IF(AX118>24,LEN(TRIM(V118))-LEN(SUBSTITUTE(V118,CHAR(44),""))+1,0),"-"),"") -> 0 | BF118: =IF(C118="X",IF(AN118="","Afectat sau NU?",IF(AN118="DA",IF(AK118="","Neinformat",NETWORKDAYS(AK118+AL118,AE118+AF118,$BS$2:$BS$14)-2),"Nu a fost afectat producator/consumator")),"") ->  | BG118: =IF(C118="X",IF(AN118="DA",IF(AND(BF118>=5,AK118<>""),LEN(TRIM(V118))-LEN(SUBSTITUTE(V118,CHAR(44),""))+1,0),"-"),"") ->  | BH118: =IF(C118="X",IF(AN118="DA",LEN(TRIM(V118))-LEN(SUBSTITUTE(V118,CHAR(44),""))+1,"-"),"") ->  | BI118: =IF(C118="X",IF(AN118="","Afectat sau NU?",IF(AN118="DA",IF(AI118="","Neinformat",NETWORKDAYS(AI118+AJ118,AE118+AF118,$BS$2:$BS$14)-2),"Nu a fost afectat producator/consumator")),"") ->  | BJ118: =IF(C118="X",IF(AN118="DA",IF(AND(BI118>=5,AI118<>""),LEN(TRIM(U118))-LEN(SUBSTITUTE(U118,CHAR(44),""))+1,0),"-"),"") ->  | BK118: =IF(C118="X",IF(AN118="DA",LEN(TRIM(U118))-LEN(SUBSTITUTE(U118,CHAR(44),""))+1,"-"),"") ->  | BL118: =IF(C118="X",IF(AN118="","Afectat sau NU?",IF(AN118="DA",((AG118+AH118)-(Z118+AA118))*24,"Nu a fost afectat producator/consumator")),"") ->  | BM118: =IF(C118="X",IF(AN118<>"DA","-",IF(AND(AN118="DA",BL118<=0),LEN(TRIM(V118))-LEN(SUBSTITUTE(V118,CHAR(44),""))+1+LEN(TRIM(U118))-LEN(SUBSTITUTE(U118,CHAR(44),""))+1,0)),"") ->  | BN118: =IF(C118="X",IF(AN118="DA",LEN(TRIM(V118))-LEN(SUBSTITUTE(V118,CHAR(44),""))+1+LEN(TRIM(U118))-LEN(SUBSTITUTE(U118,CHAR(44),""))+1,"-"),"") -> 
A119: 104 | B119: X | C119: - | D119: Cuplare instalație tehnologică SRM Chișineu Criș la racord 8" Chișineu Criș | E119: 9468 | F119: Chișineu - Criș | G119: Arad | H119: 234007.73 | I119: 565309.06 | J119: 234007.73 | K119: 565309.06 | L119: - | M119: - | N119: SM0356D0 | O119: SC Maricom Chișineu Criș III | P119: - | Q119: - | R119: - | S119: - | T119: SM-SD001 | U119: Aderro GP, Nova Power, Cez Vânzare, Cis Gaz, Conef Gaz, CPL Concordia, Crest Energy, Cyeb, Design Proiect, Distrigaz Vest, Engie, E.on Energie, Electrica Furnizare, Electric Planners, Electric&Gas, Energy Distribution, Enel Energie, Enel Muntenia, Gas&Power, Entrex, Premier Energy Trading, Gaz Est, Hargaz, Gazmir, Gaz Vest, Mihoc Oil, Met România, Monsson, Next Energy Distribution, Next Energy Partners, Pado Group, Premier Energy, Petrom, Prisma Serv, Gas Provider, Renovatio, Res Energy Solutions, Restart Energy, RWE Supply, SST Grup, Tetarom, Tinmar, Veolia, Wiee | V119: Delgaz Grid | W119: - | X119: 2021-01-05 | Y119: 09:00:00 | Z119: 2021-01-05 | AA119: 16:00:00 | AB119: Arad | AC119: Efectuată | AE119: 2021-01-05 | AF119: 09:00:00 | AG119: 2021-01-05 | AH119: 16:25:00 | AI119: 2021-01-05 | AJ119: 09:55:00 | AK119: 2021-01-05 | AL119: 09:38:00 | AM119: 12055/30.12.2020 | AN119: DA | AR119: 0.6333333333 | AS119: 1 | AT119: 1 | AU119: 0.9166666667 | AV119: 44 | AW119: 44 | AX119: 7.416666667 | AY119: 0 | AZ119: 0
